Workbook

Sheet Introducción
C1: VISOR - INDICADORES DE GESTIÓN
C3: El Instituto Distrital de Recreación y Deporte - IDRD, pone a disposición de sus usuarios una herramienta para facilitar el acceso y consulta de los indicadores de gestión de los procesos. Se trata de un conjunto de tableros conectados - VISOR, con el cual se puede ver gráficamente la información relevante asociada a cada indicador, incluyendo su comportamiento o tendencia. Para su manejo, siga las siguientes instrucciones generales:
C9: * Haga clic en la imagen inferior
C10: * Haga clic en el proceso y/o indicador que necesita consultar
C11: * Observe la gráfica con los resultados obtenidos en la consulta
C12: * Si requiere de una información más detallada puede aplicar los filtros de color azul

Sheet Visor
E1: VISOR - INDICADORES DE GESTIÓN

Sheet Tabla Dinámica (hidden)
A1: Promedio de % Cumplimiento | B1: Etiquetas de columna
A2: Etiquetas de fila | B2: Enero | C2: Febrero | D2: Marzo | E2: Abril | F2: Mayo | G2: Junio | H2: Julio | I2: Agosto | J2: Septiembre | K2: Octubre | L2: Noviembre | M2: Total general
A3: Administración y Mantenimiento de Parques y Escenarios
A4: Aprovechamiento económico de parques y/o escenarios | B4: 0.1082999981 | C4: 0.2126454992 | D4: 0.2980634156 | E4: 0.3750843143 | F4: 0.4765777036 | G4: 0.5475949324 | H4: 0.626362609 | I4: 0.7177466793 | J4: 0.8190540318 | K4: 0.9151346599 | L4: 1.012313228 | M4: 0.555352461
A5: Porcentaje de avance en la ejecución de contratos de obras de mantenimiento o recuperación | E5: 0.8851851852 | G5: 1.001851852 | I5: 1.037037037 | K5: 1.083333333 | M5: 1.001851852
A6: Porcentaje de cumplimiento en acuerdos de sostenibilidad social de parques | G6: 1 | J6: 0.9634146341 | M6: 0.9817073171
A7: Satisfacción de los usuarios con las obras de mantenimiento de nuevas tendencias
A8: Total Administración y Mantenimiento de Parques y Escenarios | B8: 0.1082999981 | C8: 0.2126454992 | D8: 0.2980634156 | E8: 0.6301347497 | F8: 0.4765777036 | G8: 0.8498155948 | H8: 0.626362609 | I8: 0.8773918582 | J8: 0.891234333 | K8: 0.9992339966 | L8: 1.012313228 | M8: 0.710570536
A9: Adquisición de Bienes y Servicios
A10: Porcentaje de contratos legalizados dentro del tiempo establecido | F10: 0.4166666667 | G10: 1.25 | H10: 0.46875 | I10: 0.4166666667 | J10: 0.4166666667 | K10: 0.4166666667 | L10: 0 | M10: 0.4836309524
A11: Porcentaje de procesos de obra tramitados en análisis de costos dentro del tiempo establecido | D11: 1 | G11: 1 | J11: 1 | M11: 1
A12: Porcentaje de procesos de selección publicados dentro del tiempo establecido | G12: 0.987654321 | J12: 1.111111111 | M12: 1.049382716
A13: Porcentaje de procesos diferentes a obra tramitados en análisis de costos dentro del tiempo establecido | D13: 1.095679012 | G13: 1.111111111 | J13: 1.068376068 | M13: 1.091722064
A14: Porcentaje de procesos requeridos por precios artificialmente bajos | D14: 0.8888888889 | G14: 1.432624113 | J14: 1.111111111 | M14: 1.144208038
A15: Total Adquisición de Bienes y Servicios | D15: 0.9948559671 | F15: 0.4166666667 | G15: 1.156277909 | H15: 0.46875 | I15: 0.4166666667 | J15: 0.9414529915 | K15: 0.4166666667 | L15: 0 | M15: 0.8439984669
A16: Control Disciplinario
A17: Porcentaje de procesos disciplinarios resueltos de fondo | G17: 0.9824561404 | M17: 0.9824561404
A18: Porcentaje de procesos disciplinarios sin nulidades decretadas | G18: 1 | J18: 0.9898989899 | M18: 0.9949494949
A19: Porcentaje de procesos disciplinarios sin vencimiento de términos | G19: 0.9789473684 | J19: 0.9797979798 | M19: 0.9793726741
A20: Porcentaje de procesos disciplinarios sin vencimiento de términos | D20: 0.9805825243 | M20: 0.9805825243
A21: Total Control Disciplinario | D21: 0.9805825243 | G21: 0.9871345029 | J21: 0.9848484848 | M21: 0.9852805005
A22: Control, Evaluación y Seguimiento
A23: Índice de eficacia de auditorías internas de control interno | D23: 0.7764705882 | E23: 0.7607843137 | G23: 1.018823529 | J23: 1.082352941 | M23: 0.9096078431
A24: Porcentaje de acciones de mejoramiento externo con seguimiento efectuado | D24: 1 | G24: 1 | J24: 1 | M24: 1
A25: Porcentaje de acciones de mejoramiento interno con seguimiento efectuado | D25: 0.7857142857 | G25: 0.9563106796 | J25: 0.5721393035 | M25: 0.7713880896
A26: Porcentaje de informes presentados por la tercera línea de defensa dentro de los tiempos programados | D26: 1 | G26: 1 | J26: 1 | M26: 1
A27: Total Control, Evaluación y Seguimiento | D27: 0.8905462185 | E27: 0.7607843137 | G27: 0.9937835523 | J27: 0.9136230612 | M27: 0.919430434
A28: Diseño y Construcción de Parques y Escenarios
A29: Porcentaje de avance en la ejecución de obras de construcción y adecuación de parques y escenarios | E29: 1.083191022 | F29: 1.052429882 | G29: 1.030683969 | H29: 1.025031975 | I29: 0.9885935645 | J29: 1.004535499 | K29: 1.031221304 | L29: 1.05308705 | M29: 1.033596783
A30: Porcentaje de avance en la ejecución de proyectos de estudios y/o diseños de parques y escenarios | E30: 1.098881648 | F30: 1.016548463 | G30: 1.0430839 | H30: 1.021719044 | I30: 1.047555556 | J30: 1.053888889 | K30: 1.059888889 | L30: 1.031 | M30: 1.046570799
A31: Porcentaje de fallas de calidad o estabilidad de obra atendidas en construcción y adecuación de parques y escenarios | G31: 1.018518519 | J31: 1.031746032 | M31: 1.025132275
A32: Satisfacción de los usuarios con las obras de construcción y/o adecuación entregadas
A33: Total Diseño y Construcción de Parques y Escenarios | E33: 1.091036335 | F33: 1.034489173 | G33: 1.030762129 | H33: 1.02337551 | I33: 1.01807456 | J33: 1.030056807 | K33: 1.045555096 | L33: 1.042043525 | M33: 1.038422511
A34: Fomento al Deporte
A35: Cambio comportamental frente a la actividad física y el deporte
A36: Satisfacción de los usuarios con las actividades realizadas en los programas deportivos
A37: Total Fomento al Deporte
A38: Gestión de Asuntos Locales
A39: Porcentaje de actividades recreativas programadas por asuntos locales | E39: 0.9039722329 | F39: 1.13525068 | G39: 0.8422075398 | H39: 1.226190476 | I39: 1.043657331 | J39: 1.135508637 | K39: 1.411371237 | L39: 1.387546468 | M39: 1.135713075
A40: Porcentaje de asistencias técnicas realizadas a los Fondos de Desarrollo Local | G40: 1 | J40: 1 | M40: 1
A41: Porcentaje de beneficiarios inscritos por asuntos locales en actividades deportivas | G41: 0.8583280789 | J41: 0.9470588235 | M41: 0.9026934512
A42: Porcentaje de compromisos atendidos en el marco de las instancias de participación locales | G42: 1 | J42: 1 | M42: 1
A43: Porcentaje de conceptos previos tramitados dentro de los términos legales vigentes | D43: 1.375 | G43: 1.135135135 | J43: 1.1 | M43: 1.203378378
A44: Porcentaje de proyectos viabilizados con seguimiento efectuado | G44: 1 | J44: 1 | M44: 1
A45: Total Gestión de Asuntos Locales | D45: 1.375 | E45: 0.9039722329 | F45: 1.13525068 | G45: 0.9726117923 | H45: 1.226190476 | I45: 1.043657331 | J45: 1.03042791 | K45: 1.411371237 | L45: 1.387546468 | M45: 1.079011928
A46: Gestión de Comunicaciones
A47: Impacto de noticias publicadas en medios de comunicación | G47: 0.7818181818 | J47: 0.7818181818 | M47: 0.7818181818
A48: Porcentaje de solicitudes de servicios de comunicaciones atendidas dentro de los tiempos establecidos | D48: 1.092436975 | G48: 1.012658228 | J48: 1.012658228 | M48: 1.039251143
A49: Salidas publicadas en medios de comunicación | E49: 1.0625 | F49: 1.2625 | G49: 1.7875 | H49: 2.325 | I49: 3.55 | J49: 3.55 | K49: 1.675 | L49: 1.975 | M49: 2.1484375
A50: Tasa de variación en el alcance total de las publicaciones en redes sociales | G50: 1.609994818 | J50: 1.609994818 | M50: 1.609994818
A51: Total Gestión de Comunicaciones | D51: 1.092436975 | E51: 1.0625 | F51: 1.2625 | G51: 1.297992807 | H51: 2.325 | I51: 3.55 | J51: 1.738617807 | K51: 1.675 | L51: 1.975 | M51: 1.672591962
A52: Gestión de Recursos Físicos
A53: Índice de implementación del PIGA
A54: Porcentaje de inventario aleatorio validado físicamente en bodega | J54: 1 | M54: 1
A55: Porcentaje de inventario individual validado físicamente
A56: Porcentaje de mantenimientos realizados a la infraestructura física de la sede administrativa | G56: 1.111111111 | J56: 1.111111111 | M56: 1.111111111
A57: Porcentaje de requerimientos de mantenimiento correctivo atendidos en la sede administrativa dentro de los tiempos establecidos | D57: 1.052631579 | G57: 1.052631579 | J57: 1.052631579 | M57: 1.052631579
A58: Total Gestión de Recursos Físicos | D58: 1.052631579 | G58: 1.081871345 | J58: 1.054580897 | M58: 1.063352827
A59: Gestión de Talento Humano
A60: Prevalencia de la enfermedad laboral | G60: 1.193548387 | J60: 1.193548387 | M60: 1.193548387
A61: Impacto de la capacitación en el desempeño laboral de funcionarios | G61: 0.8187134503 | J61: 1.039949271 | M61: 0.9293313605
A62: Incidencia de la enfermedad laboral | G62: 2 | J62: 2 | M62: 2
A63: Índice de clima organizacional
A64: Índice de desempeño laboral de funcionarios
A65: Porcentaje de ejecución del plan anual de bienestar e incentivos | G65: 0.4347826087 | M65: 0.4347826087
A66: Porcentaje de ejecución del plan anual de seguridad y salud en el trabajo | E66: 0.9330143541 | F66: 0.9122807018 | G66: 0.955465587 | H66: 0.9530583215 | I66: 0.971659919 | J66: 0.9704558795 | K66: 0.977443609 | L66: 0.9665673618 | M66: 0.9549932167
A67: Porcentaje de ejecución del plan institucional de capacitación | G67: 0.6896551724 | M67: 0.6896551724
A68: Porcentaje de funcionarios que asisten a las actividades del plan institucional de capacitación | G68: 1.049196787 | M68: 1.049196787
A69: Porcentaje de funcionarios que participan en las actividades del plan de bienestar e incentivos | G69: 0.7308467742 | M69: 0.7308467742
A70: Tasa de accidentalidad | E70: 1.743362832 | F70: 1.673735726 | G70: 1.585808065 | H70: 1.468583932 | I70: 1.397307451 | J70: 1.324111914 | K70: 1.261238604 | L70: 1.142394822 | M70: 1.449567918
A71: Total Gestión de Talento Humano | E71: 1.338188593 | F71: 1.293008214 | G71: 1.050890759 | H71: 1.210821127 | I71: 1.184483685 | J71: 1.30561309 | K71: 1.119341107 | L71: 1.054481092 | M71: 1.168720381
A72: Gestión de Tecnología de la Información y las Comunicaciones
A73: Índice de implementación de gobierno digital
A74: Porcentaje de avance en proyectos de TI | G74: 1 | M74: 1
A75: Porcentaje de disponibilidad de los servicios de comunicaciones | E75: 1.111095679 | F75: 1.110185185 | G75: 1.075268817 | H75: 1.110558542 | I75: 1.111096177 | J75: 1.111080247 | K75: 1.111081243 | L75: 1.110540123 | M75: 1.106363252
A76: Porcentaje de disponibilidad de los sistemas de información | E76: 1.107445988 | F76: 1.111073775 | G76: 1.110833333 | H76: 1.110558542 | I76: 1.111111111 | J76: 1.110725309 | K76: 1.11067503 | L76: 1.110540123 | M76: 1.110370401
A77: Porcentaje de remediación de vulnerabilidades de seguridad de la información
A78: Porcentaje de solicitudes de servicio tecnológico atendidas dentro de los tiempos establecidos | B78: 1.09005507 | C78: 1.092907652 | D78: 1.075364909 | E78: 1.087358142 | F78: 1.067464771 | G78: 1.099734547 | H78: 1.10604333 | I78: 1.111111111 | J78: 1.106045255 | K78: 1.109662466 | L78: 1.102092352 | M78: 1.095258146
A79: Total Gestión de Tecnología de la Información y las Comunicaciones | B79: 1.09005507 | C79: 1.092907652 | D79: 1.075364909 | E79: 1.101966603 | F79: 1.096241244 | G79: 1.071459174 | H79: 1.109053471 | I79: 1.111106133 | J79: 1.109283604 | K79: 1.110472913 | L79: 1.1077242 | M79: 1.099346744
A80: Gestión Documental
A81: Porcentaje de espacios controlados para la conservación documental | E81: 1 | F81: 1 | G81: 1 | H81: 1 | I81: 1 | J81: 1 | K81: 1 | L81: 1 | M81: 1
A82: Porcentaje de inventario validado del fondo documental acumulado del archivo central | E82: 0.3063058931 | F82: 0.4106305893 | G82: 0.4822105022 | H82: 0.5801696859 | I82: 0.6807521211 | J82: 0.7436184361 | K82: 1.001985783 | M82: 0.6008104301
A83: Porcentaje de transferencias primarias realizadas de acuerdo con los tiempos de retención | E83: 0.4545454545 | F83: 0.6818181818 | G83: 1.060606061 | H83: 1.25 | I83: 1.515151515 | J83: 1.590909091 | K83: 1.78030303 | L83: 1.856060606 | M83: 1.273674242
A84: Total Gestión Documental | E84: 0.5869504492 | F84: 0.6974829237 | G84: 0.8476055209 | H84: 0.9433898953 | I84: 1.065301212 | J84: 1.111509176 | K84: 1.260762938 | L84: 1.428030303 | M84: 0.9736985631
A85: Gestión Financiera
A86: Porcentaje de cuentas colectivas pagadas dentro del tiempo establecido | C86: 1 | D86: 1 | E86: 1 | F86: 1 | G86: 1 | H86: 1 | I86: 1 | J86: 1 | K86: 1 | L86: 1 | M86: 1
A87: Porcentaje de cuentas individuales pagadas dentro del tiempo establecido | B87: 1 | C87: 1 | D87: 0.9944444444 | E87: 0.9958333333 | F87: 0.9961685824 | G87: 1 | H87: 1 | I87: 1 | J87: 1 | K87: 1 | L87: 0.9905063291 | M87: 0.9979047899
A88: Porcentaje de ejecución del programa anual de caja | E88: 0.9630381087 | F88: 0.9461631252 | G88: 0.9408656099 | H88: 0.9065348932 | I88: 0.9314768854 | J88: 0.8658619984 | K88: 0.9335231101 | L88: 0.7824085534 | M88: 0.9087340355
A89: Porcentaje de ejecución presupuestal en gastos de funcionamiento | E89: 0.3214139152 | F89: 0.3970324966 | G89: 0.5045829175 | H89: 0.5613147228 | I89: 0.6083842721 | J89: 0.6721739473 | K89: 0.7705292832 | L89: 0.8738408375 | M89: 0.588659049
A90: Porcentaje de ejecución presupuestal en gastos de inversión | E90: 0.3632749827 | F90: 0.380893125 | G90: 0.427027406 | H90: 0.4649237396 | I90: 0.4897675546 | J90: 0.5615063363 | K90: 0.6007184192 | L90: 0.7100855234 | M90: 0.4997746359
A91: Porcentaje de informes financieros presentados a los entes de vigilancia y control dentro de los términos legales vigentes | G91: 1 | J91: 1 | K91: 1 | L91: 1 | M91: 1
A92: Porcentaje de notas a los estados financieros reveladas correctamente
A93: Porcentaje de obligaciones contingentes registradas correctamente en la contabilidad | J93: 1 | M93: 1
A94: Porcentaje de partidas conciliatorias identificadas dentro del tiempo establecido | E94: 1.041666667 | F94: 0.8465608466 | G94: 0.8465608466 | H94: 1.111111111 | I94: 1.111111111 | J94: 1.111111111 | K94: 1.111111111 | M94: 1.025604686
A95: Total Gestión Financiera | B95: 1 | C95: 1 | D95: 0.9972222222 | E95: 0.7808711678 | F95: 0.7611363626 | G95: 0.8170052543 | H95: 0.8406474111 | I95: 0.8567899705 | J95: 0.9013316741 | K95: 0.9165545605 | L95: 0.8928068739 | M95: 0.8619917063
A96: Gestión Jurídica
A97: Porcentaje de procesos de cobro de cartera efectuados | E97: 1 | I97: 1 | M97: 1
A98: Porcentaje de procesos judiciales y extrajudiciales atendidos dentro de los términos legales vigentes | D98: 1 | G98: 1 | J98: 1 | M98: 1
A99: Porcentaje de solicitudes de concepto a proyectos de acuerdo, decreto o ley atendidas dentro del tiempo establecido | G99: 1.111111111 | M99: 1.111111111
A100: Porcentaje de trámites de aval de escuelas deportivas atendidos dentro del término legal vigente | G100: 1.086956522 | J100: 1.086956522 | M100: 1.086956522
A101: Porcentaje de trámites de reconocimiento deportivo atendidos dentro del término legal vigente | D101: 1.032608696 | G101: 1.042199488 | J101: 1.083381007 | M101: 1.05272973
A102: Satisfacción de los usuarios con el trámite de reconocimiento deportivo | G102: 1.005847953 | M102: 1.005847953
A103: Índice de condenas adversas | G103: 2 | M103: 2
A104: Total Gestión Jurídica | D104: 1.016304348 | E104: 1 | G104: 1.207685846 | I104: 1 | J104: 1.056779176 | M104: 1.111466254
A105: Promoción de la Recreación
A106: Porcentaje de actividades recreativas que cumplen con los requisitos para su ejecución | D106: 1.028157144 | G106: 1.0261468 | J106: 1.0261468 | M106: 1.026816915
A107: Satisfacción de los usuarios con los eventos y/o programas recreativos
A108: Total Promoción de la Recreación | D108: 1.028157144 | G108: 1.0261468 | J108: 1.0261468 | M108: 1.026816915
A109: Servicio a la Ciudadanía
A110: Porcentaje de información actualizada en ley de transparencia | E110: 0.9285714286 | G110: 0.9464285714 | J110: 0.9464285714 | M110: 0.9404761905
A111: Porcentaje de peticiones, quejas, reclamos y sugerencias contestadas dentro de los términos legales vigentes | B111: 0.9162995595 | C111: 0.9222222222 | D111: 0.9201520913 | E111: 0.8928571429 | F111: 0.5608695652 | G111: 0.9215686275 | H111: 0.831202046 | I111: 0.8413597734 | J111: 0.9228395062 | K111: 0.8703703704 | L111: 0.8806584362 | M111: 0.8618544855
A112: Porcentaje de requerimientos atendidos con oportunidad y calidad | C112: 0.9715346535 | D112: 1.001157407 | E112: 1.018907563 | F112: 0.9580838323 | G112: 0.9090909091 | H112: 0.9166666667 | I112: 1.079749104 | J112: 1.03046595 | K112: 1.101036269 | L112: 1.002906977 | M112: 0.9989599332
A113: Satisfacción de peticionarios con la respuesta dada a sus requerimientos | B113: 1 | C113: 1.032608696 | D113: 1.057692308 | E113: 1.041666667 | F113: 1.009615385 | G113: 1 | H113: 1.018518519 | I113: 1.045918367 | J113: 1.075581395 | K113: 1.052631579 | L113: 1.0546875 | M113: 1.035356401
A114: Satisfacción del ciudadano con la atención recibida en los SUPERCADE | B114: 1.052631579 | C114: 1.052631579 | D114: 1.05150154 | E114: 1.05218517 | F114: 1.052139695 | G114: 1.052631579 | H114: 1.052327174 | I114: 1.052318854 | J114: 1.052631579 | K114: 1.052194258 | L114: 1.050989408 | M114: 1.052198401
A115: Total Servicio a la Ciudadanía | B115: 0.9896437128 | C115: 0.9947492876 | D115: 1.007625837 | E115: 0.9868375943 | F115: 0.8951771193 | G115: 0.9659439374 | H115: 0.9546786014 | I115: 1.004836525 | J115: 1.0055894 | K115: 1.019058119 | L115: 0.9973105802 | M115: 0.983794132
A116: Planeación de la Gestión
A117: Porcentaje de acciones de mejora con seguimiento efectuado dentro del Sistema de Gestión | E117: 1 | F117: 1 | G117: 1 | H117: 1 | I117: 1 | J117: 1 | K117: 1 | L117: 1 | M117: 1
A118: Porcentaje de reportes de información presentados dentro de los tiempos programados | G118: 1 | J118: 1 | M118: 1
A119: Total Planeación de la Gestión | E119: 1 | F119: 1 | G119: 1 | H119: 1 | I119: 1 | J119: 1 | K119: 1 | L119: 1 | M119: 1
A120: Total general | B120: 0.8612143677 | C120: 0.9105687877 | D120: 0.977570264 | E120: 0.9118622156 | F120: 0.8989875592 | G120: 1.024757217 | H120: 1.005385013 | I120: 1.068871562 | J120: 1.070006833 | K120: 1.053226676 | L120: 1.045551071 | M120: 1.01031086

Sheet Tabla Ranking procesos (hidden)
A1: Período | B1: (Todas)
A3: Etiquetas de fila | B3: Promedio de % Cumplimiento
A4: Gestión de Comunicaciones | B4: 1.672591962
A5: Gestión de Talento Humano | B5: 1.219262172
A6: Gestión Jurídica | B6: 1.111466254
A7: Gestión de Tecnología de la Información y las Comunicaciones | B7: 1.103026253
A8: Gestión de Asuntos Locales | B8: 1.079011928
A9: Gestión de Recursos Físicos | B9: 1.063352827
A10: Diseño y Construcción de Parques y Escenarios | B10: 1.038422511
A11: Promoción de la Recreación | B11: 1.026816915
A12: Gestión Financiera | B12: 1.004732894
A13: Planeación de la Gestión | B13: 1
A14: Gestión Documental | B14: 1
A15: Administración y Mantenimiento de Parques y Escenarios | B15: 0.9951370069
A16: Control Disciplinario | B16: 0.9852805005
A17: Servicio a la Ciudadanía | B17: 0.983794132
A18: Control, Evaluación y Seguimiento | B18: 0.919430434
A19: Adquisición de Bienes y Servicios | B19: 0.8439984669
A20: Fomento al Deporte
A21: Total general | B21: 1.066691056

Sheet Tabla Ranking Objetivos SG (hidden)
A1: Período | B1: (Todas)
A3: Etiquetas de fila | B3: Promedio de % Cumplimiento
A4: Prevenir los factores que afecten la salud y seguridad a fin de mejorar las condiciones del ambiente de trabajo | B4: 1.281179293
A5: Proteger la integridad, confidencialidad y disponibilidad de la información | B5: 1.110370401
A6: Mejorar continuamente los procesos del Sistema Integrado de Gestión | B6: 1.049503059
A7: Satisfacer las necesidades de los usuarios a través de la prestación de servicios eficientes, eficaces y efectivos | B7: 1.042128295
A8: Implementar las políticas y líneas de acción para la preservación e integridad de la documentación | B8: 1
A9: Implementar buenas prácticas ambientales para la prevención de la contaminación en el marco de una Bogotá que defiende lo público en su función administrativa y de desarrollo institucional
A10: Total general | B10: 1.066691056

Sheet Ranking
A1: RANKING

Sheet Indicadores Gestión
A1: Objetivo Sistema de Gestión | B1: Proceso Fuente | C1: Objetivo Proceso | D1: FCE asociado 1 | E1: FCE asociado 2 | F1: FCE asociado 3 | G1: Indicador | H1: Fórmula | I1: Clasificación | J1: Ámbito | K1: Frecuencia | L1: Meta | M1: Unidad de medida | N1: Fuente de información | O1: Tendencia | P1: Acumulado | Q1: Observaciones del indicador (Ficha) | R1: Año | S1: Período | T1: Numerador | U1: Denominador | V1: Resultado | W1: % Cumplimiento | X1: Análisis Tolerancia | Y1: Observaciones del indicador (Mediciones)
A2: Mejorar continuamente los procesos del Sistema Integrado de Gestión | B2: Planeación de la Gestión | C2: Establecer directrices para formular y realizar seguimiento a la planeación estratégica y operativa de la entidad con el propósito de contribuir al desarrollo de la misión y objetivos institucionales, así como facilitar la oportunidad y cumplimiento de los resultados esperados | D2: Oportunidad, veracidad y calidad de la información de inversión y gestión | G2: Porcentaje de reportes de información presentados dentro de los tiempos programados | H2: (No. de reportes de información elaborados y presentados/Total de reportes de información programados)*100 | I2: Gestión | J2: Calidad | K2: Trimestral | L2: 1 | M2: Porcentaje | N2: Cronograma de trabajo interno, plan operativo por dependencias (Oficina Asesora de Planeación), plan de adecuación y sostenibilidad SIGD-MIPG | O2: Positiva | P2: No | Q2: En el análisis del indicador se desagregará la programación para cada trimestre. | R2: 2019 | S2: Enero
A3: Mejorar continuamente los procesos del Sistema Integrado de Gestión | B3: Planeación de la Gestión | C3: Establecer directrices para formular y realizar seguimiento a la planeación estratégica y operativa de la entidad con el propósito de contribuir al desarrollo de la misión y objetivos institucionales, así como facilitar la oportunidad y cumplimiento de los resultados esperados | D3: Oportunidad en el seguimiento de las acciones institucionales para la mejora (correcciones, acciones correctivas, oportunidades de mejora, acciones para abordar riesgos) | G3: Porcentaje de acciones de mejora con seguimiento efectuado dentro del Sistema de Gestión | H3: [No. de acciones de mejora con seguimiento efectuado dentro del tiempo programado/Total de acciones de mejora abiertas dentro del Sistema de Gestión de la Calidad (correcciones, acciones correctivas, oportunidades de mejora, acciones para abordar riesgos)]*100 | I3: Gestión | J3: Eficacia | K3: Mensual | L3: 1 | M3: Porcentaje | N3: Isolución | O3: Positiva | P3: No | Q3: En el análisis del indicador se presentará el resultado desagregado por cada tipología de mejora (corrección, acciones correctivas, oportunidades de mejora, acciones para abordar riesgos). | R3: 2019 | S3: Enero
A4: Mejorar continuamente los procesos del Sistema Integrado de Gestión | B4: Gestión de Recursos Físicos | C4: Administrar y controlar los bienes muebles y servicios para el funcionamiento administrativo de la entidad | D4: Oportunidad en la atención de requerimientos y necesidades de servicios administrativos | G4: Porcentaje de mantenimientos realizados a la infraestructura física de la sede administrativa | H4: (No. de mantenimientos realizados a la infraestructura física/Total de mantenimientos programados a la infraestructura física de la sede administrativa)*100 | I4: Gestión | J4: Eficacia | K4: Trimestral | L4: 0.9 | M4: Porcentaje | N4: Expendientes contractuales en plataforma ORFEO | O4: Positiva | P4: No | R4: 2019 | S4: Enero
A5: Mejorar continuamente los procesos del Sistema Integrado de Gestión | B5: Gestión de Recursos Físicos | C5: Administrar y controlar los bienes muebles y servicios para el funcionamiento administrativo de la entidad | D5: Oportunidad en la atención de requerimientos y necesidades de servicios administrativos | G5: Porcentaje de requerimientos de mantenimiento correctivo atendidos en la sede administrativa dentro de los tiempos establecidos | H5: (No. de requerimientos de mantenimiento correctivo atendidos dentro de los tiempos establecidos/Total de requerimientos de mantenimiento correctivo reportados en la sede administrativa)*100 | I5: Gestión | J5: Calidad | K5: Trimestral | L5: 0.95 | M5: Porcentaje | N5: Aplicativo mesa de ayuda OTRS | O5: Positiva | P5: No | R5: 2019 | S5: Enero
A6: Implementar buenas prácticas ambientales para la prevención de la contaminación en el marco de una Bogotá que defiende lo público en su función administrativa y de desarrollo institucional | B6: Gestión de Recursos Físicos | C6: Administrar y controlar los bienes muebles y servicios para el funcionamiento administrativo de la entidad | D6: Calificación de la implementación del Plan Institucional de Gestión Ambiental, por parte de la Secretaría Distrital de Ambiente | E6: Oportunidad en el reporte de formularios y registros electrónicos del PIGA ante la Secretaría Distrital de Ambiente | G6: Índice de implementación del PIGA | H6: Promedio ponderado de cumplimiento de aspectos normativos y de implementación del PIGA, según auditoría realizada por la Secretaría Distrital de Ambiente en cada vigencia | I6: Gestión | J6: Eficacia | K6: Anual | L6: 0.7 | M6: Porcentaje | N6: Informe de auditoría anual realizada por la Secretaría Distrital de Ambiente | O6: Positiva | P6: No | Q6: En el análisis del indicador se presentará el resultado desagregado por cada uno de los aspectos evaluados en la visita de control y seguimiento por parte de la Secretaría Distrital de Ambiente. La meta está configurada como mayor a 70%. | R6: 2019 | S6: Enero
A7: Mejorar continuamente los procesos del Sistema Integrado de Gestión | B7: Gestión de Recursos Físicos | C7: Administrar y controlar los bienes muebles y servicios para el funcionamiento administrativo de la entidad | D7: Confiabilidad del inventario de bienes devolutivos | G7: Porcentaje de inventario individual validado físicamente | H7: (No. de elementos devolutivos del inventario individual validados físicamente/Total de elementos devolutivos del inventario individual registrados en el sistema de información SEVEN)*100 | I7: Gestión | J7: Eficacia | K7: Anual | L7: 1 | M7: Porcentaje | N7: Sistema de información SEVEN | O7: Positiva | P7: No | R7: 2019 | S7: Enero
A8: Mejorar continuamente los procesos del Sistema Integrado de Gestión | B8: Gestión de Recursos Físicos | C8: Administrar y controlar los bienes muebles y servicios para el funcionamiento administrativo de la entidad | D8: Confiabilidad del inventario de bienes devolutivos | G8: Porcentaje de inventario aleatorio validado físicamente en bodega | H8: (No. de elementos devolutivos y de consumo en bodegas validados físicamente/Muestra de inventario de elementos devolutivos y de consumo registrados en el sistema de información SEVEN)*100 | I8: Gestión | J8: Eficacia | K8: Trimestral | L8: 1 | M8: Porcentaje | N8: Sistema de información SEVEN | O8: Positiva | P8: No | R8: 2019 | S8: Enero
A9: Mejorar continuamente los procesos del Sistema Integrado de Gestión | B9: Gestión de Asuntos Locales | C9: Desarrollar acciones a nivel local para promover la participación ciudadana, brindar acompañamiento a las alcaldías locales en temas misionales de la entidad y ofertar sus programas | D9: Oportunidad en la emisión del concepto previo y favorable según los tiempos establecidos en la normatividad vigente | G9: Porcentaje de conceptos previos tramitados dentro de los términos legales vigentes | H9: (No. de conceptos previos tramitados dentro de los términos legales vigentes/Total de solicitudes de conceptos previos recibidas)*100 | I9: Gestión | J9: Calidad | K9: Trimestral | L9: 0.5 | M9: Porcentaje | N9: Matriz de seguimiento a conceptos previos tramitados | O9: Positiva | P9: No | R9: 2019 | S9: Enero
A10: Mejorar continuamente los procesos del Sistema Integrado de Gestión | B10: Control, Evaluación y Seguimiento | C10: Evaluar los controles y la gestión de la entidad con el fin de identificar e implementar acciones de mejora, en pro de la sostenibilidad del Sistema de Control Interno | D10: Pertinencia y oportunidad en la entrega de los resultados del seguimiento a las partes interesadas | E10: Oportunidad y calidad en la información reportada a las entidades competentes del orden nacional y distrital | G10: Porcentaje de informes presentados por la tercera línea de defensa dentro de los tiempos programados | H10: (No. de informes de ley y de gestión elaborados y presentados dentro de los tiempos programados/Total de informes de ley y de gestión a cargo de la tercera línea de defensa )*100 | I10: Gestión | J10: Calidad | K10: Trimestral | L10: 1 | M10: Porcentaje | N10: Plan anual de auditoría Cronograma presentación de informes | O10: Positiva | P10: No | Q10: En el análisis del indicador se presentará el resultado desagregado por cada uno de los informes realizados. | R10: 2019 | S10: Enero
A11: Mejorar continuamente los procesos del Sistema Integrado de Gestión | B11: Control, Evaluación y Seguimiento | C11: Evaluar los controles y la gestión de la entidad con el fin de identificar e implementar acciones de mejora, en pro de la sostenibilidad del Sistema de Control Interno | D11: Cumplimiento de los objetivos definidos en el plan de auditoría conforme al plan de pruebas | E11: Cobertura de las unidades a auditar de acuerdo con los parámetros establecidos en la matriz de priorización, en concordancia con los recursos disponibles para la ejecución del Plan Anual de Auditoría | G11: Índice de eficacia de auditorías internas de control interno | H11: (Índice auditoría 1 + índice auditoría 2 +...+Índice auditoría n)/Total de auditorías realizadas Donde: Índice auditoría n = Calificación porcentual de la variable Objetivos Específicos*Peso de la variable Objetivos Específicos + Calificación porcentual de la variable Actividad Plan de Auditoría*Peso de la variable Actividad Plan de Auditoría + Calificación porcentual de la variable Oportunidad*Peso de la variable Oportunidad Pesos de las variables: Objetivos Específicos = 40% Actividades Plan de Auditoría = 30% Oportunidad = 30%. Esta se medirá tomando como fecha de referencia la de emisión del informe preliminar de auditoría. n = número de auditorías realizadas | I11: Gestión | J11: Eficacia | K11: Trimestral | L11: 0.85 | M11: Porcentaje | N11: Planes de cada una de las auditorías | O11: Positiva | P11: No | Q11: En el análisis del indicador se presentará el resultado desagregado por cada una de las auditorías realizadas. | R11: 2019 | S11: Enero
A12: Mejorar continuamente los procesos del Sistema Integrado de Gestión | B12: Gestión Financiera | C12: Administrar los recursos financieros asignados y realizar los respectivos registros, para el cumplimiento de las funciones de la entidad y pago de sus obligaciones con terceros | D12: Oportunidad en el seguimiento de las partidas pendientes por conciliar | G12: Porcentaje de partidas conciliatorias identificadas dentro del tiempo establecido | H12: (No. de partidas conciliatorias identificadas con edad inferior a 60 días/Total de partidas reportadas)*100 | I12: Gestión | J12: Calidad | K12: Mensual | L12: 0.9 | M12: Porcentaje | N12: Sistema de información SEVEN | O12: Positiva | P12: No | R12: 2019 | S12: Enero
A13: Mejorar continuamente los procesos del Sistema Integrado de Gestión | B13: Gestión Financiera | C13: Administrar los recursos financieros asignados y realizar los respectivos registros, para el cumplimiento de las funciones de la entidad y pago de sus obligaciones con terceros | D13: Oportunidad e integridad de la información necesaria para realizar las diferentes conciliaciones | G13: Porcentaje de obligaciones contingentes registradas correctamente en la contabilidad | H13: (No. de procesos registrados correctamente en la contabilidad/Total de procesos reportados en SIPROJ Web)*100 | I13: Gestión | J13: Calidad | K13: Trimestral | L13: 1 | M13: Porcentaje | N13: Sistema de información SEVEN | O13: Positiva | P13: No | R13: 2019 | S13: Enero
A14: Mejorar continuamente los procesos del Sistema Integrado de Gestión | B14: Gestión Financiera | C14: Administrar los recursos financieros asignados y realizar los respectivos registros, para el cumplimiento de las funciones de la entidad y pago de sus obligaciones con terceros | D14: Oportunidad en la presentación de informes y estados financieros a los diferentes entes de vigilancia y control | G14: Porcentaje de notas a los estados financieros reveladas correctamente | H14: (No. de notas sin observaciones por parte de los órganos de control internos y externos/Total de notas a los estados financieros elaboradas)*100 | I14: Gestión | J14: Calidad | K14: Anual | L14: 0.95 | M14: Porcentaje | N14: Informes de entes de control y vigilancia | O14: Positiva | P14: No | R14: 2019 | S14: Enero
A15: Mejorar continuamente los procesos del Sistema Integrado de Gestión | B15: Gestión Financiera | C15: Administrar los recursos financieros asignados y realizar los respectivos registros, para el cumplimiento de las funciones de la entidad y pago de sus obligaciones con terceros | D15: Oportunidad en la presentación de informes y estados financieros a los diferentes entes de vigilancia y control | E15: Oportunidad en la presentación de las declaraciones tributarias | G15: Porcentaje de informes financieros presentados a los entes de vigilancia y control dentro de los términos legales vigentes | H15: (No. de informes financieros presentados dentro de los términos legales vigentes/Total de informes financieros a reportar a los entes de vigilancia y control)*100 | I15: Gestión | J15: Calidad | K15: Trimestral | L15: 1 | M15: Porcentaje | N15: Matriz de seguimiento a la presentación de informes | O15: Positiva | P15: No | R15: 2019 | S15: Enero
A16: Satisfacer las necesidades de los usuarios a través de la prestación de servicios eficientes, eficaces y efectivos | B16: Promoción de la Recreación | C16: Desarrollar actividades recreativas en función de las características y necesidades de la población de Bogotá D.C., para promover el aprovechamiento del tiempo libre y el mejoramiento en la calidad de vida | D16: Satisfacción del usuario con las actividades recreativas realizadas | G16: Satisfacción de los usuarios con los eventos y/o programas recreativos | H16: (No. de usuarios satisfechos con los eventos y/o programas recreativos/Total de usuarios de eventos y/o programas recreativos encuestados)*100 | I16: Gestión | J16: Efectividad | K16: Anual | L16: 1 | M16: Porcentaje | N16: Encuesta de satisfacción sobre eventos y/o programas recreativos | O16: Positiva | P16: No | Q16: En el análisis del indicador se presentará el resultado desagregado por programa y por cada uno de los aspectos evaluados en la encuesta de satisfacción. Se colocó una meta de 100%, mientras se levanta la línea base con la primera medición. | R16: 2019 | S16: Enero
A17: Mejorar continuamente los procesos del Sistema Integrado de Gestión | B17: Promoción de la Recreación | C17: Desarrollar actividades recreativas en función de las características y necesidades de la población de Bogotá D.C., para promover el aprovechamiento del tiempo libre y el mejoramiento en la calidad de vida | D17: Cumplimiento del programa de actividades recreativas, teniendo en cuenta lo establecido en las fichas técnicas o según lo concertado con la comunidad e instituciones | G17: Porcentaje de actividades recreativas que cumplen con los requisitos para su ejecución | H17: (No. de actividades recreativas que cumplen con los requisitos definidos para su ejecución/Total de actividades recreativas realizadas)*100 | I17: Gestión | J17: Eficacia | K17: Trimestral | L17: 0.97 | M17: Porcentaje | N17: Sistema de información misional - SIM | O17: Positiva | P17: No | Q17: En el análisis del indicador se presentará el resultado desagregado por programa y por actividad. | R17: 2019 | S17: Enero
A18: Satisfacer las necesidades de los usuarios a través de la prestación de servicios eficientes, eficaces y efectivos | B18: Fomento al Deporte | C18: Desarrollar e implementar programas deportivos y de actividad física, para contribuir con el mejoramiento de la calidad de vida en la población de Bogotá D.C. | D18: Satisfacción del usuario con las actividades deportivas realizadas | G18: Satisfacción de los usuarios con las actividades realizadas en los programas deportivos | H18: (No. de usuarios satisfechos con las actividades deportivas realizadas/Total de usuarios de actividades deportivas encuestados)*100 | I18: Gestión | J18: Efectividad | K18: Anual | L18: 1 | M18: Porcentaje | N18: Encuesta de satisfacción sobre actividades/programas deportivos | O18: Positiva | P18: No | Q18: En el análisis del indicador se presentará el resultado desagregado por programa y por cada uno de los aspectos evaluados en la encuesta de satisfacción. Se colocó una meta de 100%, mientras se levanta la línea base con la primera medición. | R18: 2019 | S18: Enero
A19: Mejorar continuamente los procesos del Sistema Integrado de Gestión | B19: Fomento al Deporte | C19: Desarrollar e implementar programas deportivos y de actividad física, para contribuir con el mejoramiento de la calidad de vida en la población de Bogotá D.C. | D19: Cambios comportamentales como resultados de los programas deportivos y de actividad física | G19: Cambio comportamental frente a la actividad física y el deporte | H19: (No. de beneficiarios con percepción de cambio comportamental alrededor de las 4 dimensiones de la alfabetización física/Total de beneficiarios de programas deportivos y de actividad física seleccionados en la muestra)*100 | I19: Gestión | J19: Efectividad | K19: Anual | L19: 1 | M19: Porcentaje | N19: Encuesta para medir las 4 dimensiones de la alfabetización física | O19: Positiva | P19: No | Q19: La metodología se aplicará sobre una muestra por cada por cada programa. Se define en 4 tipos de mediciones: 1. Medición dimensión competencia física. Aplicar test de resistencia, fuerza de torso, habilidades y flexibilidad. 2. Medición dimensiones: competencia cognitiva, comportamental y motivacional a través de un cuestionario (on-line o presencial). Se colocó una meta de 100%, mientras se levanta la línea base con la primera medición. | R19: 2019 | S19: Enero
A20: Satisfacer las necesidades de los usuarios a través de la prestación de servicios eficientes, eficaces y efectivos | B20: Servicio a la Ciudadanía | C20: Brindar información y atender los requerimientos de los grupos de valor y de interés de la entidad para responder a sus necesidades en cumplimiento de sus derechos | D20: Oportunidad y calidad en la respuesta a los requerimientos de los grupos de valor e interés de la entidad | E20: Satisfacción del ciudadano frente a las respuestas a sus requerimientos | G20: Satisfacción de peticionarios con la respuesta dada a sus requerimientos | H20: (No. de peticionarios satisfechos con la respuesta dada a sus peticiones, quejas, reclamos y sugerencias/Total de peticionarios contactados)*100 | I20: Gestión | J20: Efectividad | K20: Mensual | L20: 0.8 | M20: Porcentaje | N20: Base de datos de gestión de PQRS | O20: Positiva | P20: No | R20: 2019 | S20: Enero | T20: 20 | U20: 25 | V20: =+T20/U20 -> 0.8 | W20: =+V20/L20 -> 1 | X20: =_xlfn.IFS(W20<=69%,"Crítico",W20>=90%,"Aceptable",W20>=70%,"Tolerable") -> Aceptable
A21: Mejorar continuamente los procesos del Sistema Integrado de Gestión | B21: Adquisición de Bienes y Servicios | C21: Realizar actividades contractuales para adquirir bienes y servicios con la oportunidad y de acuerdo con las especificaciones establecidas por la entidad | D21: Cumplimiento de requisitos de acuerdo con la modalidad de selección | G21: Porcentaje de procesos de selección publicados dentro del tiempo establecido | H21: (No. de actos de apertura de procesos de selección publicados en un tiempo menor o igual a 30 días hábiles después de la radicación/Total de actos de apertura expedidos)*100 | I21: Gestión | J21: Calidad | K21: Trimestral | L21: 0.9 | M21: Porcentaje | N21: Plataforma ORFEO y SECOP | O21: Positiva | P21: No | Q21: En el análisis del indicador se presentará el resultado desagregado para licitación pública, concurso de méritos y selección abreviada. | R21: 2019 | S21: Enero
A22: Mejorar continuamente los procesos del Sistema Integrado de Gestión | B22: Adquisición de Bienes y Servicios | C22: Realizar actividades contractuales para adquirir bienes y servicios con la oportunidad y de acuerdo con las especificaciones establecidas por la entidad | D22: Oportunidad en la suscripción y legalización del contrato | G22: Porcentaje de contratos legalizados dentro del tiempo establecido | H22: (No. de contratos legalizados en un tiempo menor o igual a 10 días hábiles a partir del acto administrativo de adjudicación/Total de procesos de selección adjudicados)*100 | I22: Gestión | J22: Calidad | K22: Mensual | L22: 0.8 | M22: Porcentaje | N22: SECOP y Plataforma ORFEO | O22: Positiva | P22: No | Q22: En el análisis del indicador se presentará el resultado desagregado para licitación pública, concurso de méritos y selección abreviada. | R22: 2019 | S22: Enero
A23: Mejorar continuamente los procesos del Sistema Integrado de Gestión | B23: Adquisición de Bienes y Servicios | C23: Realizar actividades contractuales para adquirir bienes y servicios con la oportunidad y de acuerdo con las especificaciones establecidas por la entidad | D23: Definición clara y precisa de requisitos técnicos, financieros, económicos, jurídicos y de riesgos de acuerdo con el bien o servicio a adquirir | G23: Porcentaje de procesos de obra tramitados en análisis de costos dentro del tiempo establecido | H23: (No. de procesos de obra (todas las Subdirecciones) tramitados en oportunidad al recibo del memorando con la solicitud estudio del sector (20 días)/Total de procesos de obra recibidos)*100 | I23: Gestión | J23: Calidad | K23: Trimestral | L23: 1 | M23: Porcentaje | N23: Matriz de tráfico ACEE | O23: Positiva | P23: No | R23: 2019 | S23: Enero
A24: Mejorar continuamente los procesos del Sistema Integrado de Gestión | B24: Adquisición de Bienes y Servicios | C24: Realizar actividades contractuales para adquirir bienes y servicios con la oportunidad y de acuerdo con las especificaciones establecidas por la entidad | D24: Definición clara y precisa de requisitos técnicos, financieros, económicos, jurídicos y de riesgos de acuerdo con el bien o servicio a adquirir | G24: Porcentaje de procesos diferentes a obra tramitados en análisis de costos dentro del tiempo establecido | H24: (No. de procesos diferentes a obra tramitados en oportunidad al recibo del memorando con la solicitud estudio del sector (10 días hábiles)/Total de procesos recibidos diferentes a obra)*100 | I24: Gestión | J24: Calidad | K24: Trimestral | L24: 0.9 | M24: Porcentaje | N24: Matriz de tráfico ACEE | O24: Positiva | P24: No | Q24: En el análisis del indicador se presentará el resultado desagregado para procesos diferentes a obra. | R24: 2019 | S24: Enero
A25: Mejorar continuamente los procesos del Sistema Integrado de Gestión | B25: Adquisición de Bienes y Servicios | C25: Realizar actividades contractuales para adquirir bienes y servicios con la oportunidad y de acuerdo con las especificaciones establecidas por la entidad | D25: Definición clara y precisa de requisitos técnicos, financieros, económicos, jurídicos y de riesgos de acuerdo con el bien o servicio a adquirir | G25: Porcentaje de procesos requeridos por precios artificialmente bajos | H25: (No. de procesos (excepto Subastas SAS) requeridos por precios artificialmente bajos/Total de procesos evaluados)*100 | I25: Gestión | J25: Calidad | K25: Trimestral | L25: 0.15 | M25: Porcentaje | N25: Evaluación económica de los proponentes Análisis de precios realizado por la ACEE | O25: Negativa | P25: No | Q25: En el análisis del indicador se presentará el resultado desagregado por tipo de proceso. | R25: 2019 | S25: Enero
A26: Mejorar continuamente los procesos del Sistema Integrado de Gestión | B26: Control, Evaluación y Seguimiento | C26: Evaluar los controles y la gestión de la entidad con el fin de identificar e implementar acciones de mejora, en pro de la sostenibilidad del Sistema de Control Interno | D26: Pertinencia y oportunidad en la entrega de los resultados del seguimiento a las partes interesadas | G26: Porcentaje de acciones de mejoramiento interno con seguimiento efectuado | H26: (No. de acciones de mejoramiento interno con seguimiento efectuado)/Total de acciones de mejoramiento interno abiertas de auditorías internas de control interno)*100 | I26: Gestión | J26: Eficacia | K26: Trimestral | L26: 1 | M26: Porcentaje | N26: Plataforma Isolución | O26: Positiva | P26: No | Q26: En el análisis del indicador se presentará el resultado desagregado por proceso. | R26: 2019 | S26: Enero
A27: Mejorar continuamente los procesos del Sistema Integrado de Gestión | B27: Control, Evaluación y Seguimiento | C27: Evaluar los controles y la gestión de la entidad con el fin de identificar e implementar acciones de mejora, en pro de la sostenibilidad del Sistema de Control Interno | D27: Pertinencia y oportunidad en la entrega de los resultados del seguimiento a las partes interesadas | G27: Porcentaje de acciones de mejoramiento externo con seguimiento efectuado | H27: (No. de acciones de mejoramiento externo con seguimiento efectuado)/Total de acciones de mejoramiento externo abiertas de auditorías externas)*100 | I27: Gestión | J27: Eficacia | K27: Trimestral | L27: 1 | M27: Porcentaje | N27: Matrices de consolidación del estado de las acciones de los diferentes entes de control y vigilancia | O27: Positiva | P27: No | Q27: En el análisis del indicador se presentará el resultado desagregado por auditoría externa. | R27: 2019 | S27: Enero
A28: Mejorar continuamente los procesos del Sistema Integrado de Gestión | B28: Gestión Financiera | C28: Administrar los recursos financieros asignados y realizar los respectivos registros, para el cumplimiento de las funciones de la entidad y pago de sus obligaciones con terceros | D28: Oportunidad en la expedición de los certificados presupuestales y en la presentación de los informes de ejecución | G28: Porcentaje de ejecución presupuestal en gastos de funcionamiento | H28: (Presupuesto de funcionamiento ejecutado/Presupuesto disponible de funcionamiento)*100 | I28: Gestión | J28: Eficiencia | K28: Mensual | L28: 0.95 | M28: Porcentaje | N28: Ejecución presupuestal en SEVEN | O28: Positiva | P28: Si | Q28: La meta es anual con medición y análisis mensual. La medición está a cargo del Área Financiera y el análisis a cargo de la Subdirección Administrativa y Financiera. La medición y el análisis se deben realizar a más tardar el quinto día hábil de cada mes. Una vez se realice el Comité Financiero, el Área Financiera debe enviar a la Oficina Asesora de Planeación la presentación correspondiente, con el análisis respectivo en cuanto al desempeño del indicador. | R28: 2019 | S28: Enero
A29: Mejorar continuamente los procesos del Sistema Integrado de Gestión | B29: Gestión Financiera | C29: Administrar los recursos financieros asignados y realizar los respectivos registros, para el cumplimiento de las funciones de la entidad y pago de sus obligaciones con terceros | D29: Oportunidad en la expedición de los certificados presupuestales y en la presentación de los informes de ejecución | E29: Oportunidad en la autorización de giro de los recursos de transferencia | G29: Porcentaje de ejecución presupuestal en gastos de inversión | H29: (Presupuesto de inversión ejecutado/Presupuesto disponible de inversión)*100 | I29: Gestión | J29: Eficiencia | K29: Mensual | L29: 1 | M29: Porcentaje | N29: Ejecución presupuestal en SEVEN | O29: Positiva | P29: Si | Q29: La meta es anual con medición y análisis mensual. La medición está a cargo del Área Financiera y el análisis a cargo de los Ordenadores del Gasto. La medición y el análisis se deben realizar a más tardar el quinto día hábil de cada mes. Una vez se realice el Comité Financiero, el Área Financiera debe enviar a la Oficina Asesora de Planeación la presentación correspondiente, con el análisis respectivo en cuanto al desempeño del indicador. | R29: 2019 | S29: Enero
A30: Mejorar continuamente los procesos del Sistema Integrado de Gestión | B30: Gestión Financiera | C30: Administrar los recursos financieros asignados y realizar los respectivos registros, para el cumplimiento de las funciones de la entidad y pago de sus obligaciones con terceros | D30: Oportunidad en el pago de las obligaciones financieras de la entidad | G30: Porcentaje de ejecución del programa anual de caja | H30: (Recursos ejecutados de reserva, vigencia y pasivos exigibles/Recursos programados de reserva, vigencia y pasivos exigibles)*100 | I30: Gestión | J30: Eficiencia | K30: Mensual | L30: 1 | M30: Porcentaje | N30: Sistema de información SEVEN | O30: Positiva | P30: Si | Q30: La meta es anual con medición y análisis mensual. La medición está a cargo del Área Financiera y el análisis a cargo de los Ordenadores del Gasto. La medición y el análisis se deben realizar a más tardar el quinto día hábil de cada mes. Una vez se realice el Comité Financiero, el Área Financiera debe enviar a la Oficina Asesora de Planeación la presentación correspondiente, con el análisis respectivo en cuanto al desempeño del indicador. | R30: 2019 | S30: Enero
A31: Mejorar continuamente los procesos del Sistema Integrado de Gestión | B31: Gestión Financiera | C31: Administrar los recursos financieros asignados y realizar los respectivos registros, para el cumplimiento de las funciones de la entidad y pago de sus obligaciones con terceros | D31: Oportunidad en el pago de las obligaciones financieras de la entidad | E31: Oportunidad en la causación de ordenes de pago que cumplan con todos los requisitos establecidos | F31: Oportunidad y veracidad de la información necesaria para la causación de las ordenes de pago reportada por los ordenadores del gasto | G31: Porcentaje de cuentas individuales pagadas dentro del tiempo establecido | H31: (No. de cuentas individuales pagadas en un tiempo menor o igual a 6 días/Total de cuentas de pago individuales tramitadas)*100 | I31: Gestión | J31: Calidad | K31: Mensual | L31: 1 | M31: Porcentaje | N31: Bitácora de cuentas en SEVEN | O31: Positiva | P31: No | Q31: La medición y el análisis están a cargo del Área Financiera. En el análisis del indicador se presentará el resultado del tiempo promedio en cada una de las etapas para el pago, según la bitácora de cuentas de SEVEN. | R31: 2019 | S31: Enero | T31: 24 | U31: 24 | V31: =+T31/U31 -> 1 | W31: =+V31/L31 -> 1 | X31: =_xlfn.IFS(W31<=69%,"Crítico",W31>=90%,"Aceptable",W31>=70%,"Tolerable") -> Aceptable
A32: Mejorar continuamente los procesos del Sistema Integrado de Gestión | B32: Gestión Financiera | C32: Administrar los recursos financieros asignados y realizar los respectivos registros, para el cumplimiento de las funciones de la entidad y pago de sus obligaciones con terceros | D32: Oportunidad en el pago de las obligaciones financieras de la entidad | E32: Oportunidad en la causación de ordenes de pago que cumplan con todos los requisitos establecidos | F32: Oportunidad y veracidad de la información necesaria para la causación de las ordenes de pago reportada por los ordenadores del gasto | G32: Porcentaje de cuentas colectivas pagadas dentro del tiempo establecido | H32: (No. de cuentas colectivas pagadas en un tiempo menor o igual a 10 días/Total de cuentas de pago colectivas tramitadas)*100 | I32: Gestión | J32: Calidad | K32: Mensual | L32: 1 | M32: Porcentaje | N32: Bitácora de cuentas en SEVEN | O32: Positiva | P32: No | Q32: La medición y el análisis están a cargo del Área Financiera. En el análisis del indicador se debe presentar el resultado del tiempo promedio en cada una de las etapas para el pago, según la bitácora de cuentas de SEVEN. | R32: 2019 | S32: Enero | T32: No se efectuó ningún pago de cuentas colectivas | U32: No se efectuó ningún pago de cuentas colectivas
A33: Implementar las políticas y líneas de acción para la preservación e integridad de la documentación | B33: Gestión Documental | C33: Administrar, conservar y custodiar la documentación generada en la entidad, desde su origen hasta su disposición final, para preservar la memoria institucional | D33: Actualización del inventario documental en el Formato Único de Inventario Documental, con base en la aplicación de las tablas de retención documental | E33: Cumplimiento de los tiempos de retención documental establecidos en las tablas | F33: Actualización de los instrumentos archivísticos | G33: Porcentaje de inventario validado del fondo documental acumulado del archivo central | H33: (No. de metros lineales de inventario validado en cuanto a series, subseries, asuntos y oficinas productoras/Total de metros lineales de archivo inventariado en estado natural del archivo central)*100 | I33: Gestión | J33: Eficacia | K33: Mensual | L33: 1 | M33: Porcentaje | N33: Matriz de seguimiento a inventario documental | O33: Positiva | P33: Si | Q33: La meta es anual con medición y análisis mensual | R33: 2019 | S33: Enero
A34: Implementar las políticas y líneas de acción para la preservación e integridad de la documentación | B34: Gestión Documental | C34: Administrar, conservar y custodiar la documentación generada en la entidad, desde su origen hasta su disposición final, para preservar la memoria institucional | D34: Oportunidad en las transferencias documentales de acuerdo con los tiempos de retención establecidos en las tablas | G34: Porcentaje de transferencias primarias realizadas de acuerdo con los tiempos de retención | H34: (No. de transferencias primarias realizadas de acuerdo con los tiempos de retención establecidos en las TRD/Total de transferencias documentales programadas)*100 | I34: Gestión | J34: Eficacia | K34: Mensual | L34: 0.8 | M34: Porcentaje | N34: Matriz de seguimiento a transferencias documentales | O34: Positiva | P34: Si | Q34: La meta es anual con medición y análisis mensual | R34: 2019 | S34: Enero
A35: Implementar las políticas y líneas de acción para la preservación e integridad de la documentación | B35: Gestión Documental | C35: Administrar, conservar y custodiar la documentación generada en la entidad, desde su origen hasta su disposición final, para preservar la memoria institucional | D35: Cumplimiento de los estándares de temperatura, humedad relativa y luminosidad de los espacios de almacenamiento de material documental, dentro de los rangos establecidos en la normatividad vigente | G35: Porcentaje de espacios controlados para la conservación documental | H35: (No. de espacios monitoreados e intervenidos/Total de espacios monitoreados)*100 | I35: Gestión | J35: Eficacia | K35: Mensual | L35: 1 | M35: Porcentaje | N35: Informe de monitoreo de espacios controlados | O35: Positiva | P35: No | Q35: La medición es mes vencido | R35: 2019 | S35: Enero
A36: Mejorar continuamente los procesos del Sistema Integrado de Gestión | B36: Servicio a la Ciudadanía | C36: Brindar información y atender los requerimientos de los grupos de valor y de interés de la entidad para responder a sus necesidades en cumplimiento de sus derechos | D36: Oportunidad y calidad en la respuesta a los requerimientos de los grupos de valor e interés de la entidad | G36: Porcentaje de peticiones, quejas, reclamos y sugerencias contestadas dentro de los términos legales vigentes | H36: (No. de peticiones, quejas, reclamos y sugerencias contestadas en el aplicativo SDQS dentro de los términos legales vigentes/Total de peticiones, quejas, reclamos y sugerencias recibidas)*100 | I36: Gestión | J36: Calidad | K36: Mensual | L36: 1 | M36: Porcentaje | N36: Sistema SDQS | O36: Positiva | P36: No | Q36: La medición es mes vencido | R36: 2019 | S36: Enero | T36: 208 | U36: 227 | V36: 0.9162995595 | W36: 0.9162995595 | X36: =_xlfn.IFS(W36<=69%,"Crítico",W36>=90%,"Aceptable",W36>=70%,"Tolerable") -> Aceptable
A37: Satisfacer las necesidades de los usuarios a través de la prestación de servicios eficientes, eficaces y efectivos | B37: Servicio a la Ciudadanía | C37: Brindar información y atender los requerimientos de los grupos de valor y de interés de la entidad para responder a sus necesidades en cumplimiento de sus derechos | D37: Satisfacción del ciudadano frente a la atención brindada por la entidad | G37: Satisfacción del ciudadano con la atención recibida en los SUPERCADE | H37: (No. de ciudadanos satisfechos con la atención recibida en los SUPERCADE/Total de ciudadanos atendidos en los SUPERCADE)*100 | I37: Gestión | J37: Efectividad | K37: Mensual | L37: 0.95 | M37: Porcentaje | N37: Encuesta de satisfacción con la atención brindada en SUPERCADES | O37: Positiva | P37: No | R37: 2019 | S37: Enero | T37: 1408 | U37: 1408 | V37: 1 | W37: 1.052631579 | X37: Aceptable
A38: Mejorar continuamente los procesos del Sistema Integrado de Gestión | B38: Servicio a la Ciudadanía | C38: Brindar información y atender los requerimientos de los grupos de valor y de interés de la entidad para responder a sus necesidades en cumplimiento de sus derechos | D38: Oportunidad en la actualización de la información publicada en la sección de ley de transparencia en la página web de la entidad | G38: Porcentaje de información actualizada en ley de transparencia | H38: (No. de subcategorías con información actualizada en la página web/Total de subcategorías definidas en ley de transparencia)*100 | I38: Gestión | J38: Eficacia | K38: Trimestral | L38: 1 | M38: Porcentaje | N38: Página web | O38: Positiva | P38: No | R38: 2019 | S38: Enero
A39: Mejorar continuamente los procesos del Sistema Integrado de Gestión | B39: Servicio a la Ciudadanía | C39: Brindar información y atender los requerimientos de los grupos de valor y de interés de la entidad para responder a sus necesidades en cumplimiento de sus derechos | D39: Coherencia, claridad, solución de fondo, calidez y manejo del sistema en relación con los requerimientos atendidos por la entidad | G39: Porcentaje de requerimientos atendidos con oportunidad y calidad | H39: (No. de respuestas a requerimientos sin observaciones en cuanto a los criterios de oportunidad y calidad/Total de requerimientos evaluados en el aplicativo SDQS)*100 | I39: Gestión | J39: Eficacia | K39: Mensual | L39: 0.8 | M39: Porcentaje | N39: SDQS y base de datos de gestión de PQRS | O39: Positiva | P39: No | Q39: La medición es mes vencido | R39: 2019 | S39: Enero
A40: Proteger la integridad, confidencialidad y disponibilidad de la información | B40: Gestión de Tecnología de la Información y las Comunicaciones | C40: Proporcionar soluciones estratégicas de tecnologías de la información y las comunicaciones, para contribuir con la eficiencia administrativa, la mejora de los trámites y servicios y la protección de los activos de información de la entidad | D40: Impacto del plan de remediación frente a las vulnerabilidades identificadas | E40: Aseguramiento de incidencias en la seguridad de la información que afecten la confidencialidad, integridad y disponibilidad | G40: Porcentaje de remediación de vulnerabilidades de seguridad de la información | H40: (No. de vulnerabilidades críticas o altas remediadas/Total de vulnerabilidades de seguridad de la información detectadas como críticas o altas)*100 | I40: Gestión | J40: Eficacia | K40: Anual | L40: 0.7 | M40: Porcentaje | N40: Matriz de vulnerabilidades | O40: Positiva | P40: No | Q40: La meta está configurada como mínimo 70%. | R40: 2019 | S40: Enero
A41: Proteger la integridad, confidencialidad y disponibilidad de la información | B41: Gestión de Tecnología de la Información y las Comunicaciones | C41: Proporcionar soluciones estratégicas de tecnologías de la información y las comunicaciones, para contribuir con la eficiencia administrativa, la mejora de los trámites y servicios y la protección de los activos de información de la entidad | D41: Avances en la implementación de gobierno digital de acuerdo con los componentes evaluados por MINTIC | G41: Índice de implementación de gobierno digital | H41: Sumatoria de la calificación obtenida por cada componente/Total de componentes de la política de gobierno digital | I41: Gestión | J41: Eficacia | K41: Anual | L41: 0.65 | M41: Porcentaje | N41: Instrumento de medición suministrado para el seguimiento a la política de gobierno digital | O41: Positiva | P41: No | Q41: En el análisis del indicador se presentará el resultado desagregado de las calificaciones obtenidas en cada componente de la política de seguridad digital. | R41: 2019 | S41: Enero
A42: Mejorar continuamente los procesos del Sistema Integrado de Gestión | B42: Gestión de Tecnología de la Información y las Comunicaciones | C42: Proporcionar soluciones estratégicas de tecnologías de la información y las comunicaciones, para contribuir con la eficiencia administrativa, la mejora de los trámites y servicios y la protección de los activos de información de la entidad | D42: Cumplimiento del Plan Estratégico de Tecnologías de la Información PETI | G42: Porcentaje de avance en proyectos de TI | H42: (No. de hitos en proyectos de TI alcanzados/Total de hitos en proyectos de TI programados en la vigencia)*100 | I42: Gestión | J42: Eficacia | K42: Semestral | L42: 1 | M42: Porcentaje | N42: Cronograma de proyectos del PETI | O42: Positiva | P42: Si | Q42: La meta es anual con medición y análisis semestral. | R42: 2019 | S42: Enero
A43: Proteger la integridad, confidencialidad y disponibilidad de la información | B43: Gestión de Tecnología de la Información y las Comunicaciones | C43: Proporcionar soluciones estratégicas de tecnologías de la información y las comunicaciones, para contribuir con la eficiencia administrativa, la mejora de los trámites y servicios y la protección de los activos de información de la entidad | D43: Disponibilidad de los sistemas de información de la entidad | G43: Porcentaje de disponibilidad de los sistemas de información | H43: (No. de horas disponibles de los sistemas de información/Total de horas en servicio de los sistemas de información)*100 | I43: Gestión | J43: Eficiencia | K43: Mensual | L43: 0.9 | M43: Porcentaje | N43: Herramienta de monitoreo ZABBIX | O43: Positiva | P43: No | Q43: En el análisis del indidicador se presentará el resultado desagregado de disponibilidad en ORFEO, SEVEN, KACTUS y SIM. La meta está configurada como mayor o igual a 90%. | R43: 2019 | S43: Enero
A44: Mejorar continuamente los procesos del Sistema Integrado de Gestión | B44: Gestión de Tecnología de la Información y las Comunicaciones | C44: Proporcionar soluciones estratégicas de tecnologías de la información y las comunicaciones, para contribuir con la eficiencia administrativa, la mejora de los trámites y servicios y la protección de los activos de información de la entidad | D44: Disponibilidad de los servicios de comunicaciones en la entidad, según los acuerdos de niveles de servicios establecidos | G44: Porcentaje de disponibilidad de los servicios de comunicaciones | H44: (No. de horas disponibles de los servicios de comunicaciones /Total de horas de los servicios de comunicaciones)*100 | I44: Gestión | J44: Eficiencia | K44: Mensual | L44: 0.9 | M44: Porcentaje | N44: Herramienta de monitoreo ZABBIX | O44: Positiva | P44: No | Q44: En el análisis del indidicador se presentará el resultado desagregado de disponibilidad en Internet y Telefonía IP. La meta está configurada como mayor o igual a 90%. | R44: 2019 | S44: Enero
A45: Mejorar continuamente los procesos del Sistema Integrado de Gestión | B45: Gestión de Tecnología de la Información y las Comunicaciones | C45: Proporcionar soluciones estratégicas de tecnologías de la información y las comunicaciones, para contribuir con la eficiencia administrativa, la mejora de los trámites y servicios y la protección de los activos de información de la entidad | D45: Incidencias reportadas en el funcionamiento del módulo o sistema de información implementado | E45: Cumplimiento de los acuerdos de niveles de servicios establecidos | G45: Porcentaje de solicitudes de servicio tecnológico atendidas dentro de los tiempos establecidos | H45: (No. de solicitudes atendidas dentro de los tiempos establecidos en los acuerdos de nivel de servicio/Total de solicitudes de servicio tecnológico recibidas)*100 | I45: Gestión | J45: Calidad | K45: Mensual | L45: 0.9 | M45: Porcentaje | N45: Herramienta GLPI | O45: Positiva | P45: No | R45: 2019 | S45: Enero | T45: 1346 | U45: 1372 | V45: 0.9810495627 | W45: 1.09005507 | X45: =_xlfn.IFS(W45<=69%,"Crítico",W45>=90%,"Aceptable",W45>=70%,"Tolerable") -> Aceptable
A46: Mejorar continuamente los procesos del Sistema Integrado de Gestión | B46: Gestión de Talento Humano | C46: Gestionar el potencial del talento humano como factor estratégico, para contribuir con el desarrollo de la entidad en un ambiente seguro y saludable | D46: Cumplimiento de compromisos y competencias del servidor público en el desempeño laboral | E46: Oportunidad en el seguimiento y la evaluación anual u ordinaria del servidor público para continuar su permanencia en el servicio | G46: Índice de desempeño laboral de funcionarios | H46: (Sumatoria de calificaciones finales de la evaluación de desempeño de los funcionarios/Total de funcionarios evaluados)*100 | I46: Gestión | J46: Eficacia | K46: Anual | L46: 0.9 | M46: Porcentaje | N46: Consolidado de las calificaciones finales de la evaluación de desempeño | O46: Positiva | P46: No | Q46: En el análisis del indicador se presentará el resultado desagregado por niveles jerárquicos y comparar con la evaluación de las áreas. La meta está configurada como mayor a 90%. Nota: Se mide para vigencia 2018-2019. | R46: 2019 | S46: Enero
A47: Mejorar continuamente los procesos del Sistema Integrado de Gestión | B47: Gestión de Talento Humano | C47: Gestionar el potencial del talento humano como factor estratégico, para contribuir con el desarrollo de la entidad en un ambiente seguro y saludable | D47: Cobertura de servidores públicos en las actividades del plan de bienestar e incentivos | G47: Porcentaje de funcionarios que participan en las actividades del plan de bienestar e incentivos | H47: (No. de funcionarios participantes en las actividades del plan de bienestar e incentivos/Total de funcionarios de la entidad)*100 | I47: Gestión | J47: Eficacia | K47: Semestral | L47: 0.8 | M47: Porcentaje | N47: Registros de asistencia a las actividades del plan de bienestar | O47: Positiva | P47: No | R47: 2019 | S47: Enero
A48: Mejorar continuamente los procesos del Sistema Integrado de Gestión | B48: Gestión de Talento Humano | C48: Gestionar el potencial del talento humano como factor estratégico, para contribuir con el desarrollo de la entidad en un ambiente seguro y saludable | D48: Cobertura de servidores públicos en las actividades del plan institucional de capacitación | G48: Porcentaje de funcionarios que asisten a las actividades del plan institucional de capacitación | H48: (No. de funcionarios asistentes a las actividades del plan institucional de capacitación/Total de funcionarios citados a las actividades del plan institucional de capacitación)*100 | I48: Gestión | J48: Eficacia | K48: Semestral | L48: 0.8 | M48: Porcentaje | N48: Registros de asistencia a las actividades del plan de capacitación | O48: Positiva | P48: No | Q48: Las capacitaciones que se incluyen en el indicador son las que implican recursos. | R48: 2019 | S48: Enero
A49: Mejorar continuamente los procesos del Sistema Integrado de Gestión | B49: Gestión de Talento Humano | C49: Gestionar el potencial del talento humano como factor estratégico, para contribuir con el desarrollo de la entidad en un ambiente seguro y saludable | D49: Evaluación del impacto de la capacitación en el desempeño de los servidores públicos y de la entidad | G49: Impacto de la capacitación en el desempeño laboral de funcionarios | H49: (No. de funcionarios con capacitaciones efectivas/Total de funcionarios evaluados)*100 | I49: Gestión | J49: Eficacia | K49: Trimestral | L49: 0.95 | M49: Porcentaje | N49: Consolidado de las evaluaciones de impacto de la capacitación | O49: Positiva | P49: No | R49: 2019 | S49: Enero
A50: Mejorar continuamente los procesos del Sistema Integrado de Gestión | B50: Gestión de Talento Humano | C50: Gestionar el potencial del talento humano como factor estratégico, para contribuir con el desarrollo de la entidad en un ambiente seguro y saludable | D50: Satisfacción de los servidores públicos frente a las actividades de bienestar e incentivos | E50: Satisfacción de los servidores públicos frente a las actividades de capacitación | G50: Índice de clima organizacional | H50: Promedio ponderado de las dimensiones evaluadas en la encuesta de medición de clima organizacional | I50: Gestión | J50: Eficacia | K50: Anual | L50: 0.8 | M50: Porcentaje | N50: Informe de medición de clima organizacional | O50: Positiva | P50: No | Q50: En el análisis del indicador se presentará el resultado desagregado por áreas y/o dependencias, y por las dimensiones evaluadas. | R50: 2019 | S50: Enero
A51: Mejorar continuamente los procesos del Sistema Integrado de Gestión | B51: Gestión de Talento Humano | C51: Gestionar el potencial del talento humano como factor estratégico, para contribuir con el desarrollo de la entidad en un ambiente seguro y saludable | D51: Cumplimiento del plan anual de bienestar e incentivos | G51: Porcentaje de ejecución del plan anual de bienestar e incentivos | H51: (No. de actividades de bienestar e incentivos desarrolladas/Total de actividades programadas en el plan anual de bienestar e incentivos)*100 | I51: Gestión | J51: Eficacia | K51: Semestral | L51: 1 | M51: Porcentaje | N51: Matriz de seguimiento a la ejecución de actividades de bienestar e incentivos | O51: Positiva | P51: Si | Q51: La meta es anual con medición y análisis semestral. | R51: 2019 | S51: Enero
A52: Mejorar continuamente los procesos del Sistema Integrado de Gestión | B52: Gestión de Talento Humano | C52: Gestionar el potencial del talento humano como factor estratégico, para contribuir con el desarrollo de la entidad en un ambiente seguro y saludable | D52: Cumplimiento del plan institucional de capacitación | G52: Porcentaje de ejecución del plan institucional de capacitación | H52: (No. de actividades de capacitación desarrolladas/Total de actividades programadas en el plan institucional de capacitación)*100 | I52: Gestión | J52: Eficacia | K52: Semestral | L52: 1 | M52: Porcentaje | N52: Matriz de seguimiento a la ejecución de actividades de capacitación | O52: Positiva | P52: Si | Q52: La meta es anual con medición y análisis semestral. | R52: 2019 | S52: Enero
A53: Prevenir los factores que afecten la salud y seguridad a fin de mejorar las condiciones del ambiente de trabajo | B53: Gestión de Talento Humano | C53: Gestionar el potencial del talento humano como factor estratégico, para contribuir con el desarrollo de la entidad en un ambiente seguro y saludable | D53: Cumplimiento del plan anual de trabajo | G53: Porcentaje de ejecución del plan anual de seguridad y salud en el trabajo | H53: (No. de actividades de seguridad y salud desarrolladas/Total de actividades programadas en el plan anual de seguridad y salud en el trabajo)*100 | I53: Gestión | J53: Eficacia | K53: Mensual | L53: 0.95 | M53: Porcentaje | N53: Plan de trabajo anual del Sistema de Gestión de Seguridad y Salud en el Trabajo | O53: Positiva | P53: No | R53: 2019 | S53: Enero
A54: Prevenir los factores que afecten la salud y seguridad a fin de mejorar las condiciones del ambiente de trabajo | B54: Gestión de Talento Humano | C54: Gestionar el potencial del talento humano como factor estratégico, para contribuir con el desarrollo de la entidad en un ambiente seguro y saludable | D54: Tasa de accidentalidad | G54: Tasa de accidentalidad | H54: (No. de accidentes de trabajo reportados/Total de trabajadores (funcionarios y contratistas)*100 | I54: Gestión | J54: Efectividad | K54: Mensual | L54: 0.04 | M54: Porcentaje | N54: Matriz de accidentes de trabajo | O54: Negativa | P54: No | Q54: La meta está configurada como menor o igual a 4%. | R54: 2019 | S54: Enero
A55: Prevenir los factores que afecten la salud y seguridad a fin de mejorar las condiciones del ambiente de trabajo | B55: Gestión de Talento Humano | C55: Gestionar el potencial del talento humano como factor estratégico, para contribuir con el desarrollo de la entidad en un ambiente seguro y saludable | D55: Incidencia y prevalencia de enfermedades laborales | G55: Prevalencia de la enfermedad laboral | H55: (No. de casos de enfermedad laboral calificada/Total de funcionarios)*100 | I55: Gestión | J55: Efectividad | K55: Trimestral | L55: 0.02 | M55: Porcentaje | N55: Matriz de seguimiento de enfermedades laborales | O55: Negativa | P55: No | Q55: La meta está configurada como menor o igual a 2%. | R55: 2019 | S55: Enero
A56: Prevenir los factores que afecten la salud y seguridad a fin de mejorar las condiciones del ambiente de trabajo | B56: Gestión de Talento Humano | C56: Gestionar el potencial del talento humano como factor estratégico, para contribuir con el desarrollo de la entidad en un ambiente seguro y saludable | D56: Incidencia y prevalencia de enfermedades laborales | G56: Incidencia de la enfermedad laboral | H56: (No. de casos nuevos de enfermedad laboral calificados/Total de funcionarios)*100 | I56: Gestión | J56: Efectividad | K56: Trimestral | L56: 0.01 | M56: Porcentaje | N56: Matriz de seguimiento de enfermedades laborales | O56: Negativa | P56: No | Q56: La meta está configurada como menor o igual a 1%. | R56: 2019 | S56: Enero
A57: Mejorar continuamente los procesos del Sistema Integrado de Gestión | B57: Gestión de Asuntos Locales | C57: Desarrollar acciones a nivel local para promover la participación ciudadana, brindar acompañamiento a las alcaldías locales en temas misionales de la entidad y ofertar sus programas | D57: Cumplimiento de los compromisos adquiridos por la entidad, en el marco de las instancias de participación locales | G57: Porcentaje de compromisos atendidos en el marco de las instancias de participación locales | H57: (No. de compromisos atendidos en las instancias Consejo Local de Gobierno, Unidad de Apoyo Técnico y Comisión Local Intersectorial de Participación /Total de compromisos generados en las instancias Consejo Local de Gobierno, Unidad de Apoyo Técnico y Comisión Local Intersectorial de Participación)*100 | I57: Gestión | J57: Eficacia | K57: Trimestral | L57: 1 | M57: Porcentaje | N57: Matriz de seguimiento a compromisos derivados de instancias de participación locales | O57: Positiva | P57: No | R57: 2019 | S57: Enero
A58: Mejorar continuamente los procesos del Sistema Integrado de Gestión | B58: Gestión de Asuntos Locales | C58: Desarrollar acciones a nivel local para promover la participación ciudadana, brindar acompañamiento a las alcaldías locales en temas misionales de la entidad y ofertar sus programas | D58: Efectividad en la atención de la demanda de actividades recreodeportivas en las localidades de Bogotá | G58: Porcentaje de actividades recreativas programadas por asuntos locales | H58: (No. de actividades recreativas programadas en la plataforma SIM por los gestores locales/Total de actividades recreativas solicitadas por Promoción de la Recreación)*100 | I58: Gestión | J58: Eficacia | K58: Mensual | L58: 1 | M58: Porcentaje | N58: Sistema de información misional - SIM Cuadro de metas de actividades recreativas | O58: Positiva | P58: No | R58: 2019 | S58: Enero
A59: Mejorar continuamente los procesos del Sistema Integrado de Gestión | B59: Gestión de Asuntos Locales | C59: Desarrollar acciones a nivel local para promover la participación ciudadana, brindar acompañamiento a las alcaldías locales en temas misionales de la entidad y ofertar sus programas | D59: Efectividad en la atención de la demanda de actividades recreodeportivas en las localidades de Bogotá | G59: Porcentaje de beneficiarios inscritos por asuntos locales en actividades deportivas | H59: (No. de beneficiarios inscritos en actividades deportivas por los gestores locales/Total de beneficiarios de actividades deportivas programados por Fomento al Deporte)*100 | I59: Gestión | J59: Eficacia | K59: Trimestral | L59: 1 | M59: Porcentaje | N59: Reporte de las distintas plataformas para inscripciones Cuadro de metas de actividades deportivas | O59: Positiva | P59: No | R59: 2019 | S59: Enero
A60: Mejorar continuamente los procesos del Sistema Integrado de Gestión | B60: Gestión de Asuntos Locales | C60: Desarrollar acciones a nivel local para promover la participación ciudadana, brindar acompañamiento a las alcaldías locales en temas misionales de la entidad y ofertar sus programas | D60: Cumplimiento de lineamientos y criterios de elegibilidad y viabilidad de los proyectos de contratación | G60: Porcentaje de asistencias técnicas realizadas a los Fondos de Desarrollo Local | H60: (No. de asistencias técnicas realizadas a los Fondos de Desarrollo Local/Total de asistencias técnicas programadas a los Fondos de Desarrollo Local en las cuatro líneas de inversión)*100 | I60: Gestión | J60: Eficacia | K60: Trimestral | L60: 1 | M60: Porcentaje | N60: Cronograma de asistencias técnicas a los Fondos de Desarrollo Local | O60: Positiva | P60: No | R60: 2019 | S60: Enero
A61: Mejorar continuamente los procesos del Sistema Integrado de Gestión | B61: Gestión de Asuntos Locales | C61: Desarrollar acciones a nivel local para promover la participación ciudadana, brindar acompañamiento a las alcaldías locales en temas misionales de la entidad y ofertar sus programas | D61: Ejecución de los proyectos con recursos de los fondos de desarrollo local, en concordancia con el concepto previo y favorable emitido por la entidad | G61: Porcentaje de proyectos viabilizados con seguimiento efectuado | H61: (No. de proyectos contratados con seguimiento efectuado/Total de proyectos viabilizados con contratación por parte de los Fondos de Desarrollo Local)*100 | I61: Gestión | J61: Eficacia | K61: Trimestral | L61: 1 | M61: Porcentaje | N61: SECOP Informe de seguimiento a viabilidades | O61: Positiva | P61: No | R61: 2019 | S61: Enero
A62: Mejorar continuamente los procesos del Sistema Integrado de Gestión | B62: Control Disciplinario | C62: Investigar conductas presuntamente disciplinables e imponer sanciones cuando haya lugar, tanto a servidores como a ex-servidores públicos de la entidad, con el fin de que éstos cumplan con sus deberes y funciones | D62: Cumplimiento de los términos legales en las distintas etapas procesales | G62: Porcentaje de procesos disciplinarios resueltos de fondo | H62: (No. de procesos disciplinarios decididos de fondo/Total de procesos disciplinarios activos)*100 | I62: Gestión | J62: Eficacia | K62: Semestral | L62: 0.6 | M62: Porcentaje | N62: Matriz de autos | O62: Positiva | P62: No | R62: 2019 | S62: Enero
A63: Mejorar continuamente los procesos del Sistema Integrado de Gestión | B63: Control Disciplinario | C63: Investigar conductas presuntamente disciplinables e imponer sanciones cuando haya lugar, tanto a servidores como a ex-servidores públicos de la entidad, con el fin de que éstos cumplan con sus deberes y funciones | D63: Garantía del debido proceso en las distintas etapas procesales | G63: Porcentaje de procesos disciplinarios sin nulidades decretadas | H63: (No. de procesos disciplinarios sin nulidades decretadas/Total de procesos disciplinarios activos)*100 | I63: Gestión | J63: Eficacia | K63: Trimestral | L63: 1 | M63: Porcentaje | N63: Matriz de autos | O63: Positiva | P63: No | R63: 2019 | S63: Enero
A64: Mejorar continuamente los procesos del Sistema Integrado de Gestión | B64: Control Disciplinario | C64: Investigar conductas presuntamente disciplinables e imponer sanciones cuando haya lugar, tanto a servidores como a ex-servidores públicos de la entidad, con el fin de que éstos cumplan con sus deberes y funciones | D64: Cumplimiento de los términos legales en las distintas etapas procesales | G64: Porcentaje de procesos disciplinarios sin vencimiento de términos | H64: (No. de procesos disciplinarios sin vencimiento de términos/Total de procesos disciplinarios activos)*100 | I64: Gestión | J64: Calidad | K64: Trimestral | L64: 1 | M64: Porcentaje | N64: Expediente del proceso disciplinario | O64: Positiva | P64: No | R64: 2019 | S64: Enero
A65: Mejorar continuamente los procesos del Sistema Integrado de Gestión | B65: Administración y Mantenimiento de Parques y Escenarios | C65: Ofrecer parques y escenarios del Sistema Distrital para el uso y disfrute de la comunidad general, gestionando la sostenibilidad física, social, ambiental y económica | D65: Uso de parques y escenarios con motivación económica que generen recursos para el mantenimiento de los mismos | G65: Aprovechamiento económico de parques y/o escenarios | H65: (Ingresos del mes + acumulado de los ingresos del mes anterior/Total presupuesto anual)*100 | I65: Gestión | J65: Eficiencia | K65: Mensual | L65: 1 | M65: Porcentaje | N65: Sistema de información SEVEN | O65: Positiva | P65: Si | Q65: La meta es anual con medición y análisis mensual. En el análisis del indicador se presentará la desagregación del aprovechamiento económico por tipo de parque y/o escenario, expresado en ingresos y participación porcentual. | R65: 2019 | S65: Enero | T65: 2387367 | U65: 22044017 | V65: =+T65/U65 -> 0.1082999981 | W65: =+V65/L65 -> 0.1082999981
A66: Satisfacer las necesidades de los usuarios a través de la prestación de servicios eficientes, eficaces y efectivos | B66: Administración y Mantenimiento de Parques y Escenarios | C66: Ofrecer parques y escenarios del Sistema Distrital para el uso y disfrute de la comunidad general, gestionando la sostenibilidad física, social, ambiental y económica | D66: Satisfacción de los usuarios con las actividades de mantenimiento preventivo y correctivo | G66: Satisfacción de los usuarios con las obras de mantenimiento de nuevas tendencias | H66: (No. de usuarios satisfechos con las obras de mantenimiento realizadas/Total de usuarios de parques y escenarios encuestados para obras de mantenimiento de nuevas tendencias)*100 | I66: Gestión | J66: Efectividad | K66: Anual | L66: 0.9 | M66: Porcentaje | N66: Encuesta de satisfacción con las obras de mantenimiento de nuevas tendencias | O66: Positiva | P66: No | Q66: En el análisis del indicador se presentará el resultado desagregado por cada uno de los aspectos evaluados en la encuesta de satisfacción. | R66: 2019 | S66: Enero
A67: Mejorar continuamente los procesos del Sistema Integrado de Gestión | B67: Administración y Mantenimiento de Parques y Escenarios | C67: Ofrecer parques y escenarios del Sistema Distrital para el uso y disfrute de la comunidad general, gestionando la sostenibilidad física, social, ambiental y económica | D67: Oportunidad y cumplimiento en la generación de compromisos o acuerdos ciudadanos frente al uso y sostenibilidad de los parques administrados | G67: Porcentaje de cumplimiento en acuerdos de sostenibilidad social de parques | H67: (No. de compromisos gestionados/Total de compromisos adquiridos mediante acuerdos ciudadanos en parques)*100 | I67: Gestión | J67: Eficacia | K67: Trimestral | L67: 1 | M67: Porcentaje | N67: Matriz de seguimiento a compromisos o acuerdos ciudadanos | O67: Positiva | P67: No | R67: 2019 | S67: Enero
A68: Mejorar continuamente los procesos del Sistema Integrado de Gestión | B68: Administración y Mantenimiento de Parques y Escenarios | C68: Ofrecer parques y escenarios del Sistema Distrital para el uso y disfrute de la comunidad general, gestionando la sostenibilidad física, social, ambiental y económica | D68: Disponibilidad de los equipamientos en parques y escenarios | E68: Cumplimiento de las especificaciones técnicas en las actividades de mantenimiento preventivo y correctivo | F68: Cobertura en el mantenimiento de parques y escenarios de acuerdo con la priorización | G68: Porcentaje de avance en la ejecución de contratos de obras de mantenimiento o recuperación | H68: (Porcentaje contrato 1 + Porcentaje contrato 2 +...+ Porcentaje contrato n)/Total de contratos de obras de mantenimiento o recuperación en ejecución Donde: Porcentaje contrato n = Avance físico ejecutado/Avance físico programado n = Número de contratos de obras de mantenimiento o recuperación en ejecución | I68: Gestión | J68: Eficacia | K68: Bimestral | L68: 0.9 | M68: Porcentaje | N68: Informes mensuales de interventoría presentados según programación de los contratistas | O68: Positiva | P68: No | R68: 2019 | S68: Enero
A69: Satisfacer las necesidades de los usuarios a través de la prestación de servicios eficientes, eficaces y efectivos | B69: Diseño y Construcción de Parques y Escenarios | C69: Ampliar y mejorar la infraestructura física recreativa y deportiva del Distrito Capital para el uso de la comunidad en general | D69: Cumplimiento de requisitos técnicos, administrativos, financieros y jurídicos de los proyectos | G69: Satisfacción de los usuarios con las obras de construcción y/o adecuación entregadas | H69: (No. de usuarios satisfechos con las obras de construcción y/o adecuación entregadas /Total de usuarios encuestados por proyecto)*100 | I69: Gestión | J69: Efectividad | K69: Anual | L69: 0.9 | M69: Porcentaje | N69: Resultados de la encuesta de satisfacción entregados por los contratistas de obra | O69: Positiva | P69: No | Q69: En el análisis del indicador se presentará el resultado desagregado por cada uno de los aspectos evaluados en la encuesta de satisfacción. | R69: 2019 | S69: Enero
A70: Mejorar continuamente los procesos del Sistema Integrado de Gestión | B70: Diseño y Construcción de Parques y Escenarios | C70: Ampliar y mejorar la infraestructura física recreativa y deportiva del Distrito Capital para el uso de la comunidad en general | D70: Oportunidad en el seguimiento y adopción de medidas durante el seguimiento de la estabilidad de la obra | E70: Cumplimiento de especificaciones técnicas conforme a lo establecido en la etapa de construcción | G70: Porcentaje de fallas de calidad o estabilidad de obra atendidas en construcción y adecuación de parques y escenarios | H70: (No. de fallas de calidad o estabilidad de obra atendidas/Total de fallas de calidad o estabilidad de obra detectadas o reportadas por terceros)*100 Atendido = Se genera requerimiento al contratista para establecer compromisos de reparación. | I70: Gestión | J70: Eficacia | K70: Trimestral | L70: 0.9 | M70: Porcentaje | N70: Actas de visita o reconocimiento de estabilidad de obra Acta de compromiso de reparación constructiva Programación de visita Comunicación oficial- notificación de fallas visita de inspección por estabilidad Acta de verificación de reparación constructiva | O70: Positiva | P70: No | Q70: En el análisis del indicador se presentará la desagregación por parque y escenario. | R70: 2019 | S70: Enero
A71: Mejorar continuamente los procesos del Sistema Integrado de Gestión | B71: Diseño y Construcción de Parques y Escenarios | C71: Ampliar y mejorar la infraestructura física recreativa y deportiva del Distrito Capital para el uso de la comunidad en general | D71: Cumplimiento de requisitos técnicos, administrativos, financieros y jurídicos de los proyectos | E71: Oportunidad en el seguimiento y adopción de medidas durante la ejecución de las obras | F71: Cumplimiento del alcance de las obras conforme a los estudios y diseños, especificaciones técnicas y normatividad vigente | G71: Porcentaje de avance en la ejecución de obras de construcción y adecuación de parques y escenarios | H71: ((%Ejecutado Obra 1*Plazo de ejecución Obra 1)+(%Ejecutado Obra 2*Plazo de ejecución Obra 2) +...+ (%Ejecutado Obra n*Plazo de ejecución Obra n))/((%Programado Obra 1*Plazo de ejecución Obra 1)+(%Programado Obra 2*Plazo de ejecución Obra 2) +...+ (%Programado Obra n*Plazo de ejecución Obra n)) Donde: n = Número de obras en ejecución | I71: Gestión | J71: Eficacia | K71: Mensual | L71: 0.9 | M71: Porcentaje | N71: Informes mensuales de interventoría Informes mensuales de supervisión | O71: Positiva | P71: No | Q71: En el análisis del indicador se presentará la desagregación por parque y escenario. | R71: 2019 | S71: Enero
A72: Mejorar continuamente los procesos del Sistema Integrado de Gestión | B72: Diseño y Construcción de Parques y Escenarios | C72: Ampliar y mejorar la infraestructura física recreativa y deportiva del Distrito Capital para el uso de la comunidad en general | D72: Cumplimiento de requisitos técnicos, administrativos, financieros y legales de los proyectos de estudios y diseños | E72: Oportunidad en el seguimiento y adopción de medidas durante la ejecución de los proyectos de estudios y diseños | F72: Cumplimiento del alcance de los proyectos de estudios y diseños conforme a las necesidades identificadas | G72: Porcentaje de avance en la ejecución de proyectos de estudios y/o diseños de parques y escenarios | H72: (Porcentaje proyecto 1 + Porcentaje proyecto 2 +...+ Porcentaje proyecto n)/Total de proyectos de estudios y/o diseños en ejecución Donde: Porcentaje proyecto n =(Avance ejecutado de estudios y/o diseños/Avance programado de estudios y/o diseños al corte según forma de pago) n = Número de proyectos de estudios y/o diseños en ejecución | I72: Gestión | J72: Eficacia | K72: Mensual | L72: 0.9 | M72: Porcentaje | N72: Informes mensuales de interventoría Informes mensuales de supervisión | O72: Positiva | P72: No | Q72: En el análisis del indicador se presentará la desagregación por proyecto. | R72: 2019 | S72: Enero
A73: Mejorar continuamente los procesos del Sistema Integrado de Gestión | B73: Gestión Jurídica | C73: Ejercer la defensa judicial y extrajudicial de la entidad y atender requerimientos jurídicos, para salvaguardar sus intereses y cumplir con los requisitos constitucionales y legales | D73: Intervención oportuna en las distintas actuaciones judiciales y extrajudiciales en que sea parte la entidad | E73: Oportunidad en el seguimiento a los procesos en los despachos e instancias judiciales | G73: Porcentaje de procesos judiciales y extrajudiciales atendidos dentro de los términos legales vigentes | H73: (No. de procesos jurídicos atendidos dentro de los términos legales vigentes)/Total de procesos jurídicos notificados)*100 | I73: Gestión | J73: Calidad | K73: Trimestral | L73: 1 | M73: Porcentaje | N73: SIPROJ Web ORFEO | O73: Positiva | P73: No | Q73: En el análisis del indicador se presentará la desagregación por procesos judiciales y extrajudiciales. | R73: 2019 | S73: Enero
A74: Satisfacer las necesidades de los usuarios a través de la prestación de servicios eficientes, eficaces y efectivos | B74: Gestión Jurídica | C74: Ejercer la defensa judicial y extrajudicial de la entidad y atender requerimientos jurídicos, para salvaguardar sus intereses y cumplir con los requisitos constitucionales y legales | D74: Cumplimiento de los requisitos establecidos para el reconocimiento deportivo y el aval de escuelas deportivas | G74: Satisfacción de los usuarios con el trámite de reconocimiento deportivo | H74: (No. de usuarios satisfechos con el trámite de reconocimiento deportivo/Total de usuarios encuestados)*100 | I74: Gestión | J74: Efectividad | K74: Semestral | L74: 0.95 | M74: Porcentaje | N74: Encuesta de satisfacción de usuarios de reconocimiento deportivo | O74: Positiva | P74: No | Q74: En el análisis del indicador se presentarán los resultados desagregados por cada uno de los aspectos evaluados en la encuesta de satisfacción. | R74: 2019 | S74: Enero
A75: Mejorar continuamente los procesos del Sistema Integrado de Gestión | B75: Gestión Jurídica | C75: Ejercer la defensa judicial y extrajudicial de la entidad y atender requerimientos jurídicos, para salvaguardar sus intereses y cumplir con los requisitos constitucionales y legales | D75: Oportunidad en la respuesta del trámite de otorgamiento deportivo (45 días hábiles siguientes al cumplimiento de requisitos de otorgamiento deportivo) | E75: Vigencia y aplicabilidad de la normatividad empleada para el reconocimiento deportivo y el aval de escuelas deportivas | G75: Porcentaje de trámites de reconocimiento deportivo atendidos dentro del término legal vigente | H75: (No. de trámites de reconocimiento deportivo atendidos dentro del término legal vigente/Total de trámites de reconocimiento deportivo atendidos)*100 | I75: Gestión | J75: Calidad | K75: Trimestral | L75: 0.92 | M75: Porcentaje | N75: Matriz de control de reconocimiento deportivo | O75: Positiva | P75: No | R75: 2019 | S75: Enero
A76: Mejorar continuamente los procesos del Sistema Integrado de Gestión | B76: Gestión Jurídica | C76: Ejercer la defensa judicial y extrajudicial de la entidad y atender requerimientos jurídicos, para salvaguardar sus intereses y cumplir con los requisitos constitucionales y legales | D76: Oportunidad en la respuesta del trámite de aval de escuelas deportivas (58 días hábiles) | E76: Vigencia y aplicabilidad de la normatividad empleada para el reconocimiento deportivo y el aval de escuelas deportivas | G76: Porcentaje de trámites de aval de escuelas deportivas atendidos dentro del término legal vigente | H76: (No. de trámites de aval de escuelas deportivas atendidos dentro del término legal vigente/Total de trámites de aval de escuelas deportivas atendidos)*100 | I76: Gestión | J76: Calidad | K76: Trimestral | L76: 0.92 | M76: Porcentaje | N76: Matriz de control de aval de escuelas deportivas | O76: Positiva | P76: No | R76: 2019 | S76: Enero
A77: Mejorar continuamente los procesos del Sistema Integrado de Gestión | B77: Gestión Jurídica | C77: Ejercer la defensa judicial y extrajudicial de la entidad y atender requerimientos jurídicos, para salvaguardar sus intereses y cumplir con los requisitos constitucionales y legales | D77: Oportunidad en la respuesta a conceptos de proyectos de acuerdo con los tiempos establecidos | E77: Suministro oportuno de la información de carácter técnico, de oportunidad y conveniencia del proyecto por parte de las dependencias y áreas de la entidad | G77: Porcentaje de solicitudes de concepto a proyectos de acuerdo, decreto o ley atendidas dentro del tiempo establecido | H77: (No. de solicitudes de concepto a proyectos de acuerdo, decreto o ley atendidas dentro del tiempo establecido/Total de solicitudes de concepto a proyectos de acuerdo, decreto o ley recibidas)*100 | I77: Gestión | J77: Calidad | K77: Semestral | L77: 0.9 | M77: Porcentaje | N77: Matriz de seguimiento a solicitudes Congreso y Concejo | O77: Positiva | P77: No | Q77: En el análisis del indicador se presentará la desagregación por proyectos de acuerdo, decreto y ley. | R77: 2019 | S77: Enero
A78: Mejorar continuamente los procesos del Sistema Integrado de Gestión | B78: Gestión Jurídica | C78: Ejercer la defensa judicial y extrajudicial de la entidad y atender requerimientos jurídicos, para salvaguardar sus intereses y cumplir con los requisitos constitucionales y legales | D78: Recuperación de la cartera en mora | G78: Porcentaje de procesos de cobro de cartera efectuados | H78: (No. de procesos con etapas de cobro efectuadas/Total de procesos de cobro remitidos con documentación completa)*100 | I78: Gestión | J78: Eficacia | K78: Cuatrimestral | L78: 1 | M78: Porcentaje | N78: Matriz de seguimiento cobro de cartera | O78: Positiva | P78: No | Q78: Los primeros cinco días hábiles de mayo se reportará el indicador con corte a 31 de diciembre del año anterior. Los primeros días de septiembre se reportará con corte 30 de abril de la vigencia. Los primeros días de enero se reportará con corte a 31 de agosto del año anterior. En el análisis del indicador se presentará la desagregación por etapa (persuasivo y coactivo), así como también el porcentaje de recuperación de cartera. | R78: 2019 | S78: Enero
A79: Mejorar continuamente los procesos del Sistema Integrado de Gestión | B79: Gestión Jurídica | C79: Ejercer la defensa judicial y extrajudicial de la entidad y atender requerimientos jurídicos, para salvaguardar sus intereses y cumplir con los requisitos constitucionales y legales | D79: Intervención oportuna en las distintas actuaciones judiciales y extrajudiciales en que sea parte la entidad - tipos de daño en que se resulte demandado o condenado | G79: Índice de condenas adversas | H79: (No. de condenas adversas/Total de procesos judiciales)*100 | I79: Gestión | J79: Calidad | K79: Semestral | L79: 0.08 | M79: Porcentaje | N79: Informe Siproj web mensual (procesos judiciales) | O79: Negativa | P79: No | Q79: El análisis del indicador debe evaluar dentro del comité de conciliación los procesos que cursen o hayan cursado en contra de la entidad, determinando causas generadoras de conflictos y los tipos de daño. | R79: 2019 | S79: Enero
A80: Mejorar continuamente los procesos del Sistema Integrado de Gestión | B80: Gestión de Comunicaciones | C80: Dar a conocer interna y externamente las actividades, programas y obras que realiza la entidad, para generar apropiación y participación que contribuyan al posicionamiento de la imagen institucional | D80: Exigencia de la solicitud de servicios para todos los procesos con la información completa y detallada de lo requerido | E80: Veracidad de la información reportada por los solicitantes del servicio | G80: Porcentaje de solicitudes de servicios de comunicaciones atendidas dentro de los tiempos establecidos | H80: (No. de solicitudes de servicio atendidas dentro de los tiempos establecidos/Total de solicitudes de servicio de comunicaciones recibidas)*100 | I80: Gestión | J80: Calidad | K80: Trimestral | L80: 0.9 | M80: Porcentaje | N80: Consolidado de solicitudes de servicios de comunicaciones | O80: Positiva | P80: No | R80: 2019 | S80: Enero
A81: Mejorar continuamente los procesos del Sistema Integrado de Gestión | B81: Gestión de Comunicaciones | C81: Dar a conocer interna y externamente las actividades, programas y obras que realiza la entidad, para generar apropiación y participación que contribuyan al posicionamiento de la imagen institucional | D81: Relacionamiento con medios de comunicación | E81: Análisis de los resultados obtenidos mediante el monitoreo de medios para facilitar la toma de decisiones | G81: Impacto de noticias publicadas en medios de comunicación | H81: (No. de noticias positivas o neutras registradas/Total de noticias publicadas en medios de comunicación)*100 | I81: Gestión | J81: Eficacia | K81: Trimestral | L81: 1 | M81: Porcentaje | N81: Informes mensuales generados por la empresa contratada para realizar el monitoreo de medios | O81: Positiva | P81: No | Q81: En el análisis del indicador se presentará el resultado desagregado de noticias positivas y neutras, indicando los principales medios de comunicación. Se colocó una meta de 100%, mientras se levanta la línea base con la primera medición. | R81: 2019 | S81: Enero
A82: Mejorar continuamente los procesos del Sistema Integrado de Gestión | B82: Gestión de Comunicaciones | C82: Dar a conocer interna y externamente las actividades, programas y obras que realiza la entidad, para generar apropiación y participación que contribuyan al posicionamiento de la imagen institucional | D82: Seguimiento a los cambios en las condiciones de publicación en redes sociales y página web | G82: Tasa de variación en el alcance total de las publicaciones en redes sociales | H82: ((Alcance total de publicaciones en el trimestre actual - Alcance total de publicaciones en el trimestre anterior)/Alcance total de publicaciones en el trimestre anterior)*100 Donde: Alcance total de las publicaciones = Total de usuarios que vieron las publicaciones de redes sociales | I82: Gestión | J82: Eficacia | K82: Trimestral | L82: 0.2 | M82: Porcentaje | N82: Métricas nativas de cada red social | O82: Positiva | P82: No | Q82: En el análisis del indicador se presentará el resultado desagregado del alcance de las publicaciones por cada red social. | R82: 2019 | S82: Enero
A83: Mejorar continuamente los procesos del Sistema Integrado de Gestión | B83: Gestión de Comunicaciones | C83: Dar a conocer interna y externamente las actividades, programas y obras que realiza la entidad, para generar apropiación y participación que contribuyan al posicionamiento de la imagen institucional | D83: Análisis de los resultados obtenidos mediante el monitoreo de medios para facilitar la toma de decisiones | G83: Salidas publicadas en medios de comunicación | H83: N/A | I83: Gestión | J83: Eficacia | K83: Mensual | L83: 80 | M83: Número | N83: Informes mensuales generados por la empresa contratada para realizar el monitoreo de medios | O83: Positiva | P83: No | Q83: En el análisis del indicador se presentará el valor estimado de las publicaciones en medios de comunicación. | R83: 2019 | S83: Enero
A84: Mejorar continuamente los procesos del Sistema Integrado de Gestión | B84: Planeación de la Gestión | C84: Establecer directrices para formular y realizar seguimiento a la planeación estratégica y operativa de la entidad con el propósito de contribuir al desarrollo de la misión y objetivos institucionales, así como facilitar la oportunidad y cumplimiento de los resultados esperados | D84: Oportunidad, veracidad y calidad de la información de inversión y gestión | G84: Porcentaje de reportes de información presentados dentro de los tiempos programados | H84: (No. de reportes de información elaborados y presentados/Total de reportes de información programados)*100 | I84: Gestión | J84: Calidad | K84: Trimestral | L84: 1 | M84: Porcentaje | N84: Cronograma de trabajo interno, plan operativo por dependencias (Oficina Asesora de Planeación), plan de adecuación y sostenibilidad SIGD-MIPG | O84: Positiva | P84: No | Q84: En el análisis del indicador se desagregará la programación para cada trimestre. | R84: 2019 | S84: Febrero
A85: Mejorar continuamente los procesos del Sistema Integrado de Gestión | B85: Planeación de la Gestión | C85: Establecer directrices para formular y realizar seguimiento a la planeación estratégica y operativa de la entidad con el propósito de contribuir al desarrollo de la misión y objetivos institucionales, así como facilitar la oportunidad y cumplimiento de los resultados esperados | D85: Oportunidad en el seguimiento de las acciones institucionales para la mejora (correcciones, acciones correctivas, oportunidades de mejora, acciones para abordar riesgos) | G85: Porcentaje de acciones de mejora con seguimiento efectuado dentro del Sistema de Gestión | H85: [No. de acciones de mejora con seguimiento efectuado dentro del tiempo programado/Total de acciones de mejora abiertas dentro del Sistema de Gestión de la Calidad (correcciones, acciones correctivas, oportunidades de mejora, acciones para abordar riesgos)]*100 | I85: Gestión | J85: Eficacia | K85: Mensual | L85: 1 | M85: Porcentaje | N85: Isolución | O85: Positiva | P85: No | Q85: En el análisis del indicador se presentará el resultado desagregado por cada tipología de mejora (corrección, acciones correctivas, oportunidades de mejora, acciones para abordar riesgos). | R85: 2019 | S85: Febrero
A86: Mejorar continuamente los procesos del Sistema Integrado de Gestión | B86: Gestión de Recursos Físicos | C86: Administrar y controlar los bienes muebles y servicios para el funcionamiento administrativo de la entidad | D86: Oportunidad en la atención de requerimientos y necesidades de servicios administrativos | G86: Porcentaje de mantenimientos realizados a la infraestructura física de la sede administrativa | H86: (No. de mantenimientos realizados a la infraestructura física/Total de mantenimientos programados a la infraestructura física de la sede administrativa)*100 | I86: Gestión | J86: Eficacia | K86: Trimestral | L86: 0.9 | M86: Porcentaje | N86: Expendientes contractuales en plataforma ORFEO | O86: Positiva | P86: No | R86: 2019 | S86: Febrero
A87: Mejorar continuamente los procesos del Sistema Integrado de Gestión | B87: Gestión de Asuntos Locales | C87: Desarrollar acciones a nivel local para promover la participación ciudadana, brindar acompañamiento a las alcaldías locales en temas misionales de la entidad y ofertar sus programas | D87: Oportunidad en la emisión del concepto previo y favorable según los tiempos establecidos en la normatividad vigente | G87: Porcentaje de conceptos previos tramitados dentro de los términos legales vigentes | H87: (No. de conceptos previos tramitados dentro de los términos legales vigentes/Total de solicitudes de conceptos previos recibidas)*100 | I87: Gestión | J87: Calidad | K87: Trimestral | L87: 0.5 | M87: Porcentaje | N87: Matriz de seguimiento a conceptos previos tramitados | O87: Positiva | P87: No | R87: 2019 | S87: Febrero
A88: Mejorar continuamente los procesos del Sistema Integrado de Gestión | B88: Control, Evaluación y Seguimiento | C88: Evaluar los controles y la gestión de la entidad con el fin de identificar e implementar acciones de mejora, en pro de la sostenibilidad del Sistema de Control Interno | D88: Pertinencia y oportunidad en la entrega de los resultados del seguimiento a las partes interesadas | E88: Oportunidad y calidad en la información reportada a las entidades competentes del orden nacional y distrital | G88: Porcentaje de informes presentados por la tercera línea de defensa dentro de los tiempos programados | H88: (No. de informes de ley y de gestión elaborados y presentados dentro de los tiempos programados/Total de informes de ley y de gestión a cargo de la tercera línea de defensa )*100 | I88: Gestión | J88: Calidad | K88: Trimestral | L88: 1 | M88: Porcentaje | N88: Plan anual de auditoría Cronograma presentación de informes | O88: Positiva | P88: No | Q88: En el análisis del indicador se presentará el resultado desagregado por cada uno de los informes realizados. | R88: 2019 | S88: Febrero
A89: Mejorar continuamente los procesos del Sistema Integrado de Gestión | B89: Control, Evaluación y Seguimiento | C89: Evaluar los controles y la gestión de la entidad con el fin de identificar e implementar acciones de mejora, en pro de la sostenibilidad del Sistema de Control Interno | D89: Cumplimiento de los objetivos definidos en el plan de auditoría conforme al plan de pruebas | E89: Cobertura de las unidades a auditar de acuerdo con los parámetros establecidos en la matriz de priorización, en concordancia con los recursos disponibles para la ejecución del Plan Anual de Auditoría | G89: Índice de eficacia de auditorías internas de control interno | H89: (Índice auditoría 1 + índice auditoría 2 +...+Índice auditoría n)/Total de auditorías realizadas Donde: Índice auditoría n = Calificación porcentual de la variable Objetivos Específicos*Peso de la variable Objetivos Específicos + Calificación porcentual de la variable Actividad Plan de Auditoría*Peso de la variable Actividad Plan de Auditoría + Calificación porcentual de la variable Oportunidad*Peso de la variable Oportunidad Pesos de las variables: Objetivos Específicos = 40% Actividades Plan de Auditoría = 30% Oportunidad = 30%. Esta se medirá tomando como fecha de referencia la de emisión del informe preliminar de auditoría. n = número de auditorías realizadas | I89: Gestión | J89: Eficacia | K89: Trimestral | L89: 0.85 | M89: Porcentaje | N89: Planes de cada una de las auditorías | O89: Positiva | P89: No | Q89: En el análisis del indicador se presentará el resultado desagregado por cada una de las auditorías realizadas. | R89: 2019 | S89: Febrero
A90: Mejorar continuamente los procesos del Sistema Integrado de Gestión | B90: Gestión Financiera | C90: Administrar los recursos financieros asignados y realizar los respectivos registros, para el cumplimiento de las funciones de la entidad y pago de sus obligaciones con terceros | D90: Oportunidad en el seguimiento de las partidas pendientes por conciliar | G90: Porcentaje de partidas conciliatorias identificadas dentro del tiempo establecido | H90: (No. de partidas conciliatorias identificadas con edad inferior a 60 días/Total de partidas reportadas)*100 | I90: Gestión | J90: Calidad | K90: Mensual | L90: 0.9 | M90: Porcentaje | N90: Sistema de información SEVEN | O90: Positiva | P90: No | R90: 2019 | S90: Febrero
A91: Mejorar continuamente los procesos del Sistema Integrado de Gestión | B91: Gestión Financiera | C91: Administrar los recursos financieros asignados y realizar los respectivos registros, para el cumplimiento de las funciones de la entidad y pago de sus obligaciones con terceros | D91: Oportunidad e integridad de la información necesaria para realizar las diferentes conciliaciones | G91: Porcentaje de obligaciones contingentes registradas correctamente en la contabilidad | H91: (No. de procesos registrados correctamente en la contabilidad/Total de procesos reportados en SIPROJ Web)*100 | I91: Gestión | J91: Calidad | K91: Trimestral | L91: 1 | M91: Porcentaje | N91: Sistema de información SEVEN | O91: Positiva | P91: No | R91: 2019 | S91: Febrero
A92: Mejorar continuamente los procesos del Sistema Integrado de Gestión | B92: Gestión Financiera | C92: Administrar los recursos financieros asignados y realizar los respectivos registros, para el cumplimiento de las funciones de la entidad y pago de sus obligaciones con terceros | D92: Oportunidad en la presentación de informes y estados financieros a los diferentes entes de vigilancia y control | G92: Porcentaje de notas a los estados financieros reveladas correctamente | H92: (No. de notas sin observaciones por parte de los órganos de control internos y externos/Total de notas a los estados financieros elaboradas)*100 | I92: Gestión | J92: Calidad | K92: Anual | L92: 0.95 | M92: Porcentaje | N92: Informes de entes de control y vigilancia | O92: Positiva | P92: No | R92: 2019 | S92: Febrero
A93: Mejorar continuamente los procesos del Sistema Integrado de Gestión | B93: Gestión Financiera | C93: Administrar los recursos financieros asignados y realizar los respectivos registros, para el cumplimiento de las funciones de la entidad y pago de sus obligaciones con terceros | D93: Oportunidad en la presentación de informes y estados financieros a los diferentes entes de vigilancia y control | E93: Oportunidad en la presentación de las declaraciones tributarias | G93: Porcentaje de informes financieros presentados a los entes de vigilancia y control dentro de los términos legales vigentes | H93: (No. de informes financieros presentados dentro de los términos legales vigentes/Total de informes financieros a reportar a los entes de vigilancia y control)*100 | I93: Gestión | J93: Calidad | K93: Trimestral | L93: 1 | M93: Porcentaje | N93: Matriz de seguimiento a la presentación de informes | O93: Positiva | P93: No | R93: 2019 | S93: Febrero
A94: Satisfacer las necesidades de los usuarios a través de la prestación de servicios eficientes, eficaces y efectivos | B94: Promoción de la Recreación | C94: Desarrollar actividades recreativas en función de las características y necesidades de la población de Bogotá D.C., para promover el aprovechamiento del tiempo libre y el mejoramiento en la calidad de vida | D94: Satisfacción del usuario con las actividades recreativas realizadas | G94: Satisfacción de los usuarios con los eventos y/o programas recreativos | H94: (No. de usuarios satisfechos con los eventos y/o programas recreativos/Total de usuarios de eventos y/o programas recreativos encuestados)*100 | I94: Gestión | J94: Efectividad | K94: Anual | L94: 1 | M94: Porcentaje | N94: Encuesta de satisfacción sobre eventos y/o programas recreativos | O94: Positiva | P94: No | Q94: En el análisis del indicador se presentará el resultado desagregado por programa y por cada uno de los aspectos evaluados en la encuesta de satisfacción. Se colocó una meta de 100%, mientras se levanta la línea base con la primera medición. | R94: 2019 | S94: Febrero
A95: Mejorar continuamente los procesos del Sistema Integrado de Gestión | B95: Promoción de la Recreación | C95: Desarrollar actividades recreativas en función de las características y necesidades de la población de Bogotá D.C., para promover el aprovechamiento del tiempo libre y el mejoramiento en la calidad de vida | D95: Cumplimiento del programa de actividades recreativas, teniendo en cuenta lo establecido en las fichas técnicas o según lo concertado con la comunidad e instituciones | G95: Porcentaje de actividades recreativas que cumplen con los requisitos para su ejecución | H95: (No. de actividades recreativas que cumplen con los requisitos definidos para su ejecución/Total de actividades recreativas realizadas)*100 | I95: Gestión | J95: Eficacia | K95: Trimestral | L95: 0.97 | M95: Porcentaje | N95: Sistema de información misional - SIM | O95: Positiva | P95: No | Q95: En el análisis del indicador se presentará el resultado desagregado por programa y por actividad. | R95: 2019 | S95: Febrero
A96: Satisfacer las necesidades de los usuarios a través de la prestación de servicios eficientes, eficaces y efectivos | B96: Fomento al Deporte | C96: Desarrollar e implementar programas deportivos y de actividad física, para contribuir con el mejoramiento de la calidad de vida en la población de Bogotá D.C. | D96: Satisfacción del usuario con las actividades deportivas realizadas | G96: Satisfacción de los usuarios con las actividades realizadas en los programas deportivos | H96: (No. de usuarios satisfechos con las actividades deportivas realizadas/Total de usuarios de actividades deportivas encuestados)*100 | I96: Gestión | J96: Efectividad | K96: Anual | L96: 1 | M96: Porcentaje | N96: Encuesta de satisfacción sobre actividades/programas deportivos | O96: Positiva | P96: No | Q96: En el análisis del indicador se presentará el resultado desagregado por programa y por cada uno de los aspectos evaluados en la encuesta de satisfacción. Se colocó una meta de 100%, mientras se levanta la línea base con la primera medición. | R96: 2019 | S96: Febrero
A97: Mejorar continuamente los procesos del Sistema Integrado de Gestión | B97: Fomento al Deporte | C97: Desarrollar e implementar programas deportivos y de actividad física, para contribuir con el mejoramiento de la calidad de vida en la población de Bogotá D.C. | D97: Cambios comportamentales como resultados de los programas deportivos y de actividad física | G97: Cambio comportamental frente a la actividad física y el deporte | H97: (No. de beneficiarios con percepción de cambio comportamental alrededor de las 4 dimensiones de la alfabetización física/Total de beneficiarios de programas deportivos y de actividad física seleccionados en la muestra)*100 | I97: Gestión | J97: Efectividad | K97: Anual | L97: 1 | M97: Porcentaje | N97: Encuesta para medir las 4 dimensiones de la alfabetización física | O97: Positiva | P97: No | Q97: La metodología se aplicará sobre una muestra por cada por cada programa. Se define en 4 tipos de mediciones: 1. Medición dimensión competencia física. Aplicar test de resistencia, fuerza de torso, habilidades y flexibilidad. 2. Medición dimensiones: competencia cognitiva, comportamental y motivacional a través de un cuestionario (on-line o presencial). Se colocó una meta de 100%, mientras se levanta la línea base con la primera medición. | R97: 2019 | S97: Febrero
A98: Satisfacer las necesidades de los usuarios a través de la prestación de servicios eficientes, eficaces y efectivos | B98: Servicio a la Ciudadanía | C98: Brindar información y atender los requerimientos de los grupos de valor y de interés de la entidad para responder a sus necesidades en cumplimiento de sus derechos | D98: Oportunidad y calidad en la respuesta a los requerimientos de los grupos de valor e interés de la entidad | E98: Satisfacción del ciudadano frente a las respuestas a sus requerimientos | G98: Satisfacción de peticionarios con la respuesta dada a sus requerimientos | H98: (No. de peticionarios satisfechos con la respuesta dada a sus peticiones, quejas, reclamos y sugerencias/Total de peticionarios contactados)*100 | I98: Gestión | J98: Efectividad | K98: Mensual | L98: 0.8 | M98: Porcentaje | N98: Base de datos de gestión de PQRS | O98: Positiva | P98: No | R98: 2019 | S98: Febrero | T98: 19 | U98: 23 | V98: =+T98/U98 -> 0.8260869565 | W98: =+V98/L98 -> 1.032608696 | X98: =_xlfn.IFS(W98<=69%,"Crítico",W98>=90%,"Aceptable",W98>=70%,"Tolerable") -> Aceptable
A99: Mejorar continuamente los procesos del Sistema Integrado de Gestión | B99: Gestión de Recursos Físicos | C99: Administrar y controlar los bienes muebles y servicios para el funcionamiento administrativo de la entidad | D99: Oportunidad en la atención de requerimientos y necesidades de servicios administrativos | G99: Porcentaje de requerimientos de mantenimiento correctivo atendidos en la sede administrativa dentro de los tiempos establecidos | H99: (No. de requerimientos de mantenimiento correctivo atendidos dentro de los tiempos establecidos/Total de requerimientos de mantenimiento correctivo reportados en la sede administrativa)*100 | I99: Gestión | J99: Calidad | K99: Trimestral | L99: 0.95 | M99: Porcentaje | N99: Aplicativo mesa de ayuda OTRS | O99: Positiva | P99: No | R99: 2019 | S99: Febrero
A100: Mejorar continuamente los procesos del Sistema Integrado de Gestión | B100: Adquisición de Bienes y Servicios | C100: Realizar actividades contractuales para adquirir bienes y servicios con la oportunidad y de acuerdo con las especificaciones establecidas por la entidad | D100: Cumplimiento de requisitos de acuerdo con la modalidad de selección | G100: Porcentaje de procesos de selección publicados dentro del tiempo establecido | H100: (No. de actos de apertura de procesos de selección publicados en un tiempo menor o igual a 30 días hábiles después de la radicación/Total de actos de apertura expedidos)*100 | I100: Gestión | J100: Calidad | K100: Trimestral | L100: 0.9 | M100: Porcentaje | N100: Plataforma ORFEO y SECOP | O100: Positiva | P100: No | Q100: En el análisis del indicador se presentará el resultado desagregado para licitación pública, concurso de méritos y selección abreviada. | R100: 2019 | S100: Febrero
A101: Mejorar continuamente los procesos del Sistema Integrado de Gestión | B101: Adquisición de Bienes y Servicios | C101: Realizar actividades contractuales para adquirir bienes y servicios con la oportunidad y de acuerdo con las especificaciones establecidas por la entidad | D101: Oportunidad en la suscripción y legalización del contrato | G101: Porcentaje de contratos legalizados dentro del tiempo establecido | H101: (No. de contratos legalizados en un tiempo menor o igual a 10 días hábiles a partir del acto administrativo de adjudicación/Total de procesos de selección adjudicados)*100 | I101: Gestión | J101: Calidad | K101: Mensual | L101: 0.8 | M101: Porcentaje | N101: SECOP y Plataforma ORFEO | O101: Positiva | P101: No | Q101: En el análisis del indicador se presentará el resultado desagregado para licitación pública, concurso de méritos y selección abreviada. | R101: 2019 | S101: Febrero
A102: Mejorar continuamente los procesos del Sistema Integrado de Gestión | B102: Adquisición de Bienes y Servicios | C102: Realizar actividades contractuales para adquirir bienes y servicios con la oportunidad y de acuerdo con las especificaciones establecidas por la entidad | D102: Definición clara y precisa de requisitos técnicos, financieros, económicos, jurídicos y de riesgos de acuerdo con el bien o servicio a adquirir | G102: Porcentaje de procesos de obra tramitados en análisis de costos dentro del tiempo establecido | H102: (No. de procesos de obra (todas las Subdirecciones) tramitados en oportunidad al recibo del memorando con la solicitud estudio del sector (20 días)/Total de procesos de obra recibidos)*100 | I102: Gestión | J102: Calidad | K102: Trimestral | L102: 1 | M102: Porcentaje | N102: Matriz de tráfico ACEE | O102: Positiva | P102: No | R102: 2019 | S102: Febrero
A103: Mejorar continuamente los procesos del Sistema Integrado de Gestión | B103: Adquisición de Bienes y Servicios | C103: Realizar actividades contractuales para adquirir bienes y servicios con la oportunidad y de acuerdo con las especificaciones establecidas por la entidad | D103: Definición clara y precisa de requisitos técnicos, financieros, económicos, jurídicos y de riesgos de acuerdo con el bien o servicio a adquirir | G103: Porcentaje de procesos diferentes a obra tramitados en análisis de costos dentro del tiempo establecido | H103: (No. de procesos diferentes a obra tramitados en oportunidad al recibo del memorando con la solicitud estudio del sector (10 días hábiles)/Total de procesos recibidos diferentes a obra)*100 | I103: Gestión | J103: Calidad | K103: Trimestral | L103: 0.9 | M103: Porcentaje | N103: Matriz de tráfico ACEE | O103: Positiva | P103: No | Q103: En el análisis del indicador se presentará el resultado desagregado para procesos diferentes a obra. | R103: 2019 | S103: Febrero
A104: Mejorar continuamente los procesos del Sistema Integrado de Gestión | B104: Adquisición de Bienes y Servicios | C104: Realizar actividades contractuales para adquirir bienes y servicios con la oportunidad y de acuerdo con las especificaciones establecidas por la entidad | D104: Definición clara y precisa de requisitos técnicos, financieros, económicos, jurídicos y de riesgos de acuerdo con el bien o servicio a adquirir | G104: Porcentaje de procesos requeridos por precios artificialmente bajos | H104: (No. de procesos (excepto Subastas SAS) requeridos por precios artificialmente bajos/Total de procesos evaluados)*100 | I104: Gestión | J104: Calidad | K104: Trimestral | L104: 0.15 | M104: Porcentaje | N104: Evaluación económica de los proponentes Análisis de precios realizado por la ACEE | O104: Negativa | P104: No | Q104: En el análisis del indicador se presentará el resultado desagregado por tipo de proceso. | R104: 2019 | S104: Febrero
A105: Mejorar continuamente los procesos del Sistema Integrado de Gestión | B105: Control, Evaluación y Seguimiento | C105: Evaluar los controles y la gestión de la entidad con el fin de identificar e implementar acciones de mejora, en pro de la sostenibilidad del Sistema de Control Interno | D105: Pertinencia y oportunidad en la entrega de los resultados del seguimiento a las partes interesadas | G105: Porcentaje de acciones de mejoramiento interno con seguimiento efectuado | H105: (No. de acciones de mejoramiento interno con seguimiento efectuado)/Total de acciones de mejoramiento interno abiertas de auditorías internas de control interno)*100 | I105: Gestión | J105: Eficacia | K105: Trimestral | L105: 1 | M105: Porcentaje | N105: Plataforma Isolución | O105: Positiva | P105: No | Q105: En el análisis del indicador se presentará el resultado desagregado por proceso. | R105: 2019 | S105: Febrero
A106: Mejorar continuamente los procesos del Sistema Integrado de Gestión | B106: Control, Evaluación y Seguimiento | C106: Evaluar los controles y la gestión de la entidad con el fin de identificar e implementar acciones de mejora, en pro de la sostenibilidad del Sistema de Control Interno | D106: Pertinencia y oportunidad en la entrega de los resultados del seguimiento a las partes interesadas | G106: Porcentaje de acciones de mejoramiento externo con seguimiento efectuado | H106: (No. de acciones de mejoramiento externo con seguimiento efectuado)/Total de acciones de mejoramiento externo abiertas de auditorías externas)*100 | I106: Gestión | J106: Eficacia | K106: Trimestral | L106: 1 | M106: Porcentaje | N106: Matrices de consolidación del estado de las acciones de los diferentes entes de control y vigilancia | O106: Positiva | P106: No | Q106: En el análisis del indicador se presentará el resultado desagregado por auditoría externa. | R106: 2019 | S106: Febrero
A107: Mejorar continuamente los procesos del Sistema Integrado de Gestión | B107: Gestión Financiera | C107: Administrar los recursos financieros asignados y realizar los respectivos registros, para el cumplimiento de las funciones de la entidad y pago de sus obligaciones con terceros | D107: Oportunidad en la expedición de los certificados presupuestales y en la presentación de los informes de ejecución | G107: Porcentaje de ejecución presupuestal en gastos de funcionamiento | H107: (Presupuesto de funcionamiento ejecutado/Presupuesto disponible de funcionamiento)*100 | I107: Gestión | J107: Eficiencia | K107: Mensual | L107: 0.95 | M107: Porcentaje | N107: Ejecución presupuestal en SEVEN | O107: Positiva | P107: Si | Q107: La meta es anual con medición y análisis mensual. La medición está a cargo del Área Financiera y el análisis a cargo de la Subdirección Administrativa y Financiera. La medición y el análisis se deben realizar a más tardar el quinto día hábil de cada mes. Una vez se realice el Comité Financiero, el Área Financiera debe enviar a la Oficina Asesora de Planeación la presentación correspondiente, con el análisis respectivo en cuanto al desempeño del indicador. | R107: 2019 | S107: Febrero
A108: Mejorar continuamente los procesos del Sistema Integrado de Gestión | B108: Gestión Financiera | C108: Administrar los recursos financieros asignados y realizar los respectivos registros, para el cumplimiento de las funciones de la entidad y pago de sus obligaciones con terceros | D108: Oportunidad en la expedición de los certificados presupuestales y en la presentación de los informes de ejecución | E108: Oportunidad en la autorización de giro de los recursos de transferencia | G108: Porcentaje de ejecución presupuestal en gastos de inversión | H108: (Presupuesto de inversión ejecutado/Presupuesto disponible de inversión)*100 | I108: Gestión | J108: Eficiencia | K108: Mensual | L108: 1 | M108: Porcentaje | N108: Ejecución presupuestal en SEVEN | O108: Positiva | P108: Si | Q108: La meta es anual con medición y análisis mensual. La medición está a cargo del Área Financiera y el análisis a cargo de los Ordenadores del Gasto. La medición y el análisis se deben realizar a más tardar el quinto día hábil de cada mes. Una vez se realice el Comité Financiero, el Área Financiera debe enviar a la Oficina Asesora de Planeación la presentación correspondiente, con el análisis respectivo en cuanto al desempeño del indicador. | R108: 2019 | S108: Febrero
A109: Mejorar continuamente los procesos del Sistema Integrado de Gestión | B109: Gestión Financiera | C109: Administrar los recursos financieros asignados y realizar los respectivos registros, para el cumplimiento de las funciones de la entidad y pago de sus obligaciones con terceros | D109: Oportunidad en el pago de las obligaciones financieras de la entidad | G109: Porcentaje de ejecución del programa anual de caja | H109: (Recursos ejecutados de reserva, vigencia y pasivos exigibles/Recursos programados de reserva, vigencia y pasivos exigibles)*100 | I109: Gestión | J109: Eficiencia | K109: Mensual | L109: 1 | M109: Porcentaje | N109: Sistema de información SEVEN | O109: Positiva | P109: Si | Q109: La meta es anual con medición y análisis mensual. La medición está a cargo del Área Financiera y el análisis a cargo de los Ordenadores del Gasto. La medición y el análisis se deben realizar a más tardar el quinto día hábil de cada mes. Una vez se realice el Comité Financiero, el Área Financiera debe enviar a la Oficina Asesora de Planeación la presentación correspondiente, con el análisis respectivo en cuanto al desempeño del indicador. | R109: 2019 | S109: Febrero
A110: Mejorar continuamente los procesos del Sistema Integrado de Gestión | B110: Gestión Financiera | C110: Administrar los recursos financieros asignados y realizar los respectivos registros, para el cumplimiento de las funciones de la entidad y pago de sus obligaciones con terceros | D110: Oportunidad en el pago de las obligaciones financieras de la entidad | E110: Oportunidad en la causación de ordenes de pago que cumplan con todos los requisitos establecidos | F110: Oportunidad y veracidad de la información necesaria para la causación de las ordenes de pago reportada por los ordenadores del gasto | G110: Porcentaje de cuentas individuales pagadas dentro del tiempo establecido | H110: (No. de cuentas individuales pagadas en un tiempo menor o igual a 6 días/Total de cuentas de pago individuales tramitadas)*100 | I110: Gestión | J110: Calidad | K110: Mensual | L110: 1 | M110: Porcentaje | N110: Bitácora de cuentas en SEVEN | O110: Positiva | P110: No | Q110: La medición y el análisis están a cargo del Área Financiera. En el análisis del indicador se presentará el resultado del tiempo promedio en cada una de las etapas para el pago, según la bitácora de cuentas de SEVEN. | R110: 2019 | S110: Febrero | T110: 249 | U110: 249 | V110: =+T110/U110 -> 1 | W110: =+V110/L110 -> 1 | X110: =_xlfn.IFS(W110<=69%,"Crítico",W110>=90%,"Aceptable",W110>=70%,"Tolerable") -> Aceptable
A111: Mejorar continuamente los procesos del Sistema Integrado de Gestión | B111: Gestión Financiera | C111: Administrar los recursos financieros asignados y realizar los respectivos registros, para el cumplimiento de las funciones de la entidad y pago de sus obligaciones con terceros | D111: Oportunidad en el pago de las obligaciones financieras de la entidad | E111: Oportunidad en la causación de ordenes de pago que cumplan con todos los requisitos establecidos | F111: Oportunidad y veracidad de la información necesaria para la causación de las ordenes de pago reportada por los ordenadores del gasto | G111: Porcentaje de cuentas colectivas pagadas dentro del tiempo establecido | H111: (No. de cuentas colectivas pagadas en un tiempo menor o igual a 10 días/Total de cuentas de pago colectivas tramitadas)*100 | I111: Gestión | J111: Calidad | K111: Mensual | L111: 1 | M111: Porcentaje | N111: Bitácora de cuentas en SEVEN | O111: Positiva | P111: No | Q111: La medición y el análisis están a cargo del Área Financiera. En el análisis del indicador se debe presentar el resultado del tiempo promedio en cada una de las etapas para el pago, según la bitácora de cuentas de SEVEN. | R111: 2019 | S111: Febrero | T111: 57 | U111: 57 | V111: 1 | W111: 1 | X111: =_xlfn.IFS(W111<=69%,"Crítico",W111>=90%,"Aceptable",W111>=70%,"Tolerable") -> Aceptable
A112: Implementar las políticas y líneas de acción para la preservación e integridad de la documentación | B112: Gestión Documental | C112: Administrar, conservar y custodiar la documentación generada en la entidad, desde su origen hasta su disposición final, para preservar la memoria institucional | D112: Actualización del inventario documental en el Formato Único de Inventario Documental, con base en la aplicación de las tablas de retención documental | E112: Cumplimiento de los tiempos de retención documental establecidos en las tablas | F112: Actualización de los instrumentos archivísticos | G112: Porcentaje de inventario validado del fondo documental acumulado del archivo central | H112: (No. de metros lineales de inventario validado en cuanto a series, subseries, asuntos y oficinas productoras/Total de metros lineales de archivo inventariado en estado natural del archivo central)*100 | I112: Gestión | J112: Eficacia | K112: Mensual | L112: 1 | M112: Porcentaje | N112: Matriz de seguimiento a inventario documental | O112: Positiva | P112: Si | Q112: La meta es anual con medición y análisis mensual | R112: 2019 | S112: Febrero
A113: Implementar las políticas y líneas de acción para la preservación e integridad de la documentación | B113: Gestión Documental | C113: Administrar, conservar y custodiar la documentación generada en la entidad, desde su origen hasta su disposición final, para preservar la memoria institucional | D113: Oportunidad en las transferencias documentales de acuerdo con los tiempos de retención establecidos en las tablas | G113: Porcentaje de transferencias primarias realizadas de acuerdo con los tiempos de retención | H113: (No. de transferencias primarias realizadas de acuerdo con los tiempos de retención establecidos en las TRD/Total de transferencias documentales programadas)*100 | I113: Gestión | J113: Eficacia | K113: Mensual | L113: 0.8 | M113: Porcentaje | N113: Matriz de seguimiento a transferencias documentales | O113: Positiva | P113: Si | Q113: La meta es anual con medición y análisis mensual | R113: 2019 | S113: Febrero
A114: Implementar las políticas y líneas de acción para la preservación e integridad de la documentación | B114: Gestión Documental | C114: Administrar, conservar y custodiar la documentación generada en la entidad, desde su origen hasta su disposición final, para preservar la memoria institucional | D114: Cumplimiento de los estándares de temperatura, humedad relativa y luminosidad de los espacios de almacenamiento de material documental, dentro de los rangos establecidos en la normatividad vigente | G114: Porcentaje de espacios controlados para la conservación documental | H114: (No. de espacios monitoreados e intervenidos/Total de espacios monitoreados)*100 | I114: Gestión | J114: Eficacia | K114: Mensual | L114: 1 | M114: Porcentaje | N114: Informe de monitoreo de espacios controlados | O114: Positiva | P114: No | Q114: La medición es mes vencido | R114: 2019 | S114: Febrero
A115: Mejorar continuamente los procesos del Sistema Integrado de Gestión | B115: Servicio a la Ciudadanía | C115: Brindar información y atender los requerimientos de los grupos de valor y de interés de la entidad para responder a sus necesidades en cumplimiento de sus derechos | D115: Oportunidad y calidad en la respuesta a los requerimientos de los grupos de valor e interés de la entidad | G115: Porcentaje de peticiones, quejas, reclamos y sugerencias contestadas dentro de los términos legales vigentes | H115: (No. de peticiones, quejas, reclamos y sugerencias contestadas en el aplicativo SDQS dentro de los términos legales vigentes/Total de peticiones, quejas, reclamos y sugerencias recibidas)*100 | I115: Gestión | J115: Calidad | K115: Mensual | L115: 1 | M115: Porcentaje | N115: Sistema SDQS | O115: Positiva | P115: No | Q115: La medición es mes vencido | R115: 2019 | S115: Febrero | T115: 249 | U115: 270 | V115: 0.9222222222 | W115: 0.9222222222 | X115: =_xlfn.IFS(W115<=69%,"Crítico",W115>=90%,"Aceptable",W115>=70%,"Tolerable") -> Aceptable
A116: Satisfacer las necesidades de los usuarios a través de la prestación de servicios eficientes, eficaces y efectivos | B116: Servicio a la Ciudadanía | C116: Brindar información y atender los requerimientos de los grupos de valor y de interés de la entidad para responder a sus necesidades en cumplimiento de sus derechos | D116: Satisfacción del ciudadano frente a la atención brindada por la entidad | G116: Satisfacción del ciudadano con la atención recibida en los SUPERCADE | H116: (No. de ciudadanos satisfechos con la atención recibida en los SUPERCADE/Total de ciudadanos atendidos en los SUPERCADE)*100 | I116: Gestión | J116: Efectividad | K116: Mensual | L116: 0.95 | M116: Porcentaje | N116: Encuesta de satisfacción con la atención brindada en SUPERCADES | O116: Positiva | P116: No | R116: 2019 | S116: Febrero | T116: 1986 | U116: 1986 | V116: 1 | W116: 1.052631579 | X116: Aceptable
A117: Mejorar continuamente los procesos del Sistema Integrado de Gestión | B117: Servicio a la Ciudadanía | C117: Brindar información y atender los requerimientos de los grupos de valor y de interés de la entidad para responder a sus necesidades en cumplimiento de sus derechos | D117: Oportunidad en la actualización de la información publicada en la sección de ley de transparencia en la página web de la entidad | G117: Porcentaje de información actualizada en ley de transparencia | H117: (No. de subcategorías con información actualizada en la página web/Total de subcategorías definidas en ley de transparencia)*100 | I117: Gestión | J117: Eficacia | K117: Trimestral | L117: 1 | M117: Porcentaje | N117: Página web | O117: Positiva | P117: No | R117: 2019 | S117: Febrero
A118: Mejorar continuamente los procesos del Sistema Integrado de Gestión | B118: Servicio a la Ciudadanía | C118: Brindar información y atender los requerimientos de los grupos de valor y de interés de la entidad para responder a sus necesidades en cumplimiento de sus derechos | D118: Coherencia, claridad, solución de fondo, calidez y manejo del sistema en relación con los requerimientos atendidos por la entidad | G118: Porcentaje de requerimientos atendidos con oportunidad y calidad | H118: (No. de respuestas a requerimientos sin observaciones en cuanto a los criterios de oportunidad y calidad/Total de requerimientos evaluados en el aplicativo SDQS)*100 | I118: Gestión | J118: Eficacia | K118: Mensual | L118: 0.8 | M118: Porcentaje | N118: SDQS y base de datos de gestión de PQRS | O118: Positiva | P118: No | Q118: La medición es mes vencido | R118: 2019 | S118: Febrero | T118: 157 | U118: 202 | V118: 0.7772277228 | W118: 0.9715346535 | X118: Aceptable
A119: Implementar buenas prácticas ambientales para la prevención de la contaminación en el marco de una Bogotá que defiende lo público en su función administrativa y de desarrollo institucional | B119: Gestión de Recursos Físicos | C119: Administrar y controlar los bienes muebles y servicios para el funcionamiento administrativo de la entidad | D119: Calificación de la implementación del Plan Institucional de Gestión Ambiental, por parte de la Secretaría Distrital de Ambiente | E119: Oportunidad en el reporte de formularios y registros electrónicos del PIGA ante la Secretaría Distrital de Ambiente | G119: Índice de implementación del PIGA | H119: Promedio ponderado de cumplimiento de aspectos normativos y de implementación del PIGA, según auditoría realizada por la Secretaría Distrital de Ambiente en cada vigencia | I119: Gestión | J119: Eficacia | K119: Anual | L119: 0.7 | M119: Porcentaje | N119: Informe de auditoría anual realizada por la Secretaría Distrital de Ambiente | O119: Positiva | P119: No | Q119: En el análisis del indicador se presentará el resultado desagregado por cada uno de los aspectos evaluados en la visita de control y seguimiento por parte de la Secretaría Distrital de Ambiente. La meta está configurada como mayor a 70%. | R119: 2019 | S119: Febrero
A120: Proteger la integridad, confidencialidad y disponibilidad de la información | B120: Gestión de Tecnología de la Información y las Comunicaciones | C120: Proporcionar soluciones estratégicas de tecnologías de la información y las comunicaciones, para contribuir con la eficiencia administrativa, la mejora de los trámites y servicios y la protección de los activos de información de la entidad | D120: Impacto del plan de remediación frente a las vulnerabilidades identificadas | E120: Aseguramiento de incidencias en la seguridad de la información que afecten la confidencialidad, integridad y disponibilidad | G120: Porcentaje de remediación de vulnerabilidades de seguridad de la información | H120: (No. de vulnerabilidades críticas o altas remediadas/Total de vulnerabilidades de seguridad de la información detectadas como críticas o altas)*100 | I120: Gestión | J120: Eficacia | K120: Anual | L120: 0.7 | M120: Porcentaje | N120: Matriz de vulnerabilidades | O120: Positiva | P120: No | Q120: La meta está configurada como mínimo 70%. | R120: 2019 | S120: Febrero
A121: Proteger la integridad, confidencialidad y disponibilidad de la información | B121: Gestión de Tecnología de la Información y las Comunicaciones | C121: Proporcionar soluciones estratégicas de tecnologías de la información y las comunicaciones, para contribuir con la eficiencia administrativa, la mejora de los trámites y servicios y la protección de los activos de información de la entidad | D121: Avances en la implementación de gobierno digital de acuerdo con los componentes evaluados por MINTIC | G121: Índice de implementación de gobierno digital | H121: Sumatoria de la calificación obtenida por cada componente/Total de componentes de la política de gobierno digital | I121: Gestión | J121: Eficacia | K121: Anual | L121: 0.65 | M121: Porcentaje | N121: Instrumento de medición suministrado para el seguimiento a la política de gobierno digital | O121: Positiva | P121: No | Q121: En el análisis del indicador se presentará el resultado desagregado de las calificaciones obtenidas en cada componente de la política de seguridad digital. | R121: 2019 | S121: Febrero
A122: Mejorar continuamente los procesos del Sistema Integrado de Gestión | B122: Gestión de Tecnología de la Información y las Comunicaciones | C122: Proporcionar soluciones estratégicas de tecnologías de la información y las comunicaciones, para contribuir con la eficiencia administrativa, la mejora de los trámites y servicios y la protección de los activos de información de la entidad | D122: Cumplimiento del Plan Estratégico de Tecnologías de la Información PETI | G122: Porcentaje de avance en proyectos de TI | H122: (No. de hitos en proyectos de TI alcanzados/Total de hitos en proyectos de TI programados en la vigencia)*100 | I122: Gestión | J122: Eficacia | K122: Semestral | L122: 1 | M122: Porcentaje | N122: Cronograma de proyectos del PETI | O122: Positiva | P122: Si | Q122: La meta es anual con medición y análisis semestral. | R122: 2019 | S122: Febrero
A123: Proteger la integridad, confidencialidad y disponibilidad de la información | B123: Gestión de Tecnología de la Información y las Comunicaciones | C123: Proporcionar soluciones estratégicas de tecnologías de la información y las comunicaciones, para contribuir con la eficiencia administrativa, la mejora de los trámites y servicios y la protección de los activos de información de la entidad | D123: Disponibilidad de los sistemas de información de la entidad | G123: Porcentaje de disponibilidad de los sistemas de información | H123: (No. de horas disponibles de los sistemas de información/Total de horas en servicio de los sistemas de información)*100 | I123: Gestión | J123: Eficiencia | K123: Mensual | L123: 0.9 | M123: Porcentaje | N123: Herramienta de monitoreo ZABBIX | O123: Positiva | P123: No | Q123: En el análisis del indidicador se presentará el resultado desagregado de disponibilidad en ORFEO, SEVEN, KACTUS y SIM. La meta está configurada como mayor o igual a 90%. | R123: 2019 | S123: Febrero
A124: Mejorar continuamente los procesos del Sistema Integrado de Gestión | B124: Gestión de Tecnología de la Información y las Comunicaciones | C124: Proporcionar soluciones estratégicas de tecnologías de la información y las comunicaciones, para contribuir con la eficiencia administrativa, la mejora de los trámites y servicios y la protección de los activos de información de la entidad | D124: Disponibilidad de los servicios de comunicaciones en la entidad, según los acuerdos de niveles de servicios establecidos | G124: Porcentaje de disponibilidad de los servicios de comunicaciones | H124: (No. de horas disponibles de los servicios de comunicaciones /Total de horas de los servicios de comunicaciones)*100 | I124: Gestión | J124: Eficiencia | K124: Mensual | L124: 0.9 | M124: Porcentaje | N124: Herramienta de monitoreo ZABBIX | O124: Positiva | P124: No | Q124: En el análisis del indidicador se presentará el resultado desagregado de disponibilidad en Internet y Telefonía IP. La meta está configurada como mayor o igual a 90%. | R124: 2019 | S124: Febrero
A125: Mejorar continuamente los procesos del Sistema Integrado de Gestión | B125: Gestión de Tecnología de la Información y las Comunicaciones | C125: Proporcionar soluciones estratégicas de tecnologías de la información y las comunicaciones, para contribuir con la eficiencia administrativa, la mejora de los trámites y servicios y la protección de los activos de información de la entidad | D125: Incidencias reportadas en el funcionamiento del módulo o sistema de información implementado | E125: Cumplimiento de los acuerdos de niveles de servicios establecidos | G125: Porcentaje de solicitudes de servicio tecnológico atendidas dentro de los tiempos establecidos | H125: (No. de solicitudes atendidas dentro de los tiempos establecidos en los acuerdos de nivel de servicio/Total de solicitudes de servicio tecnológico recibidas)*100 | I125: Gestión | J125: Calidad | K125: Mensual | L125: 0.9 | M125: Porcentaje | N125: Herramienta GLPI | O125: Positiva | P125: No | R125: 2019 | S125: Febrero | T125: 1561 | U125: 1587 | V125: 0.9836168872 | W125: 1.092907652 | X125: =_xlfn.IFS(W125<=69%,"Crítico",W125>=90%,"Aceptable",W125>=70%,"Tolerable") -> Aceptable
A126: Mejorar continuamente los procesos del Sistema Integrado de Gestión | B126: Gestión de Talento Humano | C126: Gestionar el potencial del talento humano como factor estratégico, para contribuir con el desarrollo de la entidad en un ambiente seguro y saludable | D126: Cumplimiento de compromisos y competencias del servidor público en el desempeño laboral | E126: Oportunidad en el seguimiento y la evaluación anual u ordinaria del servidor público para continuar su permanencia en el servicio | G126: Índice de desempeño laboral de funcionarios | H126: (Sumatoria de calificaciones finales de la evaluación de desempeño de los funcionarios/Total de funcionarios evaluados)*100 | I126: Gestión | J126: Eficacia | K126: Anual | L126: 0.9 | M126: Porcentaje | N126: Consolidado de las calificaciones finales de la evaluación de desempeño | O126: Positiva | P126: No | Q126: En el análisis del indicador se presentará el resultado desagregado por niveles jerárquicos y comparar con la evaluación de las áreas. La meta está configurada como mayor a 90%. Nota: Se mide para vigencia 2018-2019. | R126: 2019 | S126: Febrero
A127: Mejorar continuamente los procesos del Sistema Integrado de Gestión | B127: Gestión de Talento Humano | C127: Gestionar el potencial del talento humano como factor estratégico, para contribuir con el desarrollo de la entidad en un ambiente seguro y saludable | D127: Cobertura de servidores públicos en las actividades del plan de bienestar e incentivos | G127: Porcentaje de funcionarios que participan en las actividades del plan de bienestar e incentivos | H127: (No. de funcionarios participantes en las actividades del plan de bienestar e incentivos/Total de funcionarios de la entidad)*100 | I127: Gestión | J127: Eficacia | K127: Semestral | L127: 0.8 | M127: Porcentaje | N127: Registros de asistencia a las actividades del plan de bienestar | O127: Positiva | P127: No | R127: 2019 | S127: Febrero
A128: Mejorar continuamente los procesos del Sistema Integrado de Gestión | B128: Gestión de Talento Humano | C128: Gestionar el potencial del talento humano como factor estratégico, para contribuir con el desarrollo de la entidad en un ambiente seguro y saludable | D128: Cobertura de servidores públicos en las actividades del plan institucional de capacitación | G128: Porcentaje de funcionarios que asisten a las actividades del plan institucional de capacitación | H128: (No. de funcionarios asistentes a las actividades del plan institucional de capacitación/Total de funcionarios citados a las actividades del plan institucional de capacitación)*100 | I128: Gestión | J128: Eficacia | K128: Semestral | L128: 0.8 | M128: Porcentaje | N128: Registros de asistencia a las actividades del plan de capacitación | O128: Positiva | P128: No | Q128: Las capacitaciones que se incluyen en el indicador son las que implican recursos. | R128: 2019 | S128: Febrero
A129: Mejorar continuamente los procesos del Sistema Integrado de Gestión | B129: Gestión de Talento Humano | C129: Gestionar el potencial del talento humano como factor estratégico, para contribuir con el desarrollo de la entidad en un ambiente seguro y saludable | D129: Evaluación del impacto de la capacitación en el desempeño de los servidores públicos y de la entidad | G129: Impacto de la capacitación en el desempeño laboral de funcionarios | H129: (No. de funcionarios con capacitaciones efectivas/Total de funcionarios evaluados)*100 | I129: Gestión | J129: Eficacia | K129: Trimestral | L129: 0.95 | M129: Porcentaje | N129: Consolidado de las evaluaciones de impacto de la capacitación | O129: Positiva | P129: No | R129: 2019 | S129: Febrero
A130: Mejorar continuamente los procesos del Sistema Integrado de Gestión | B130: Gestión de Talento Humano | C130: Gestionar el potencial del talento humano como factor estratégico, para contribuir con el desarrollo de la entidad en un ambiente seguro y saludable | D130: Satisfacción de los servidores públicos frente a las actividades de bienestar e incentivos | E130: Satisfacción de los servidores públicos frente a las actividades de capacitación | G130: Índice de clima organizacional | H130: Promedio ponderado de las dimensiones evaluadas en la encuesta de medición de clima organizacional | I130: Gestión | J130: Eficacia | K130: Anual | L130: 0.8 | M130: Porcentaje | N130: Informe de medición de clima organizacional | O130: Positiva | P130: No | Q130: En el análisis del indicador se presentará el resultado desagregado por áreas y/o dependencias, y por las dimensiones evaluadas. | R130: 2019 | S130: Febrero
A131: Mejorar continuamente los procesos del Sistema Integrado de Gestión | B131: Gestión de Talento Humano | C131: Gestionar el potencial del talento humano como factor estratégico, para contribuir con el desarrollo de la entidad en un ambiente seguro y saludable | D131: Cumplimiento del plan anual de bienestar e incentivos | G131: Porcentaje de ejecución del plan anual de bienestar e incentivos | H131: (No. de actividades de bienestar e incentivos desarrolladas/Total de actividades programadas en el plan anual de bienestar e incentivos)*100 | I131: Gestión | J131: Eficacia | K131: Semestral | L131: 1 | M131: Porcentaje | N131: Matriz de seguimiento a la ejecución de actividades de bienestar e incentivos | O131: Positiva | P131: Si | Q131: La meta es anual con medición y análisis semestral. | R131: 2019 | S131: Febrero
A132: Mejorar continuamente los procesos del Sistema Integrado de Gestión | B132: Gestión de Talento Humano | C132: Gestionar el potencial del talento humano como factor estratégico, para contribuir con el desarrollo de la entidad en un ambiente seguro y saludable | D132: Cumplimiento del plan institucional de capacitación | G132: Porcentaje de ejecución del plan institucional de capacitación | H132: (No. de actividades de capacitación desarrolladas/Total de actividades programadas en el plan institucional de capacitación)*100 | I132: Gestión | J132: Eficacia | K132: Semestral | L132: 1 | M132: Porcentaje | N132: Matriz de seguimiento a la ejecución de actividades de capacitación | O132: Positiva | P132: Si | Q132: La meta es anual con medición y análisis semestral. | R132: 2019 | S132: Febrero
A133: Prevenir los factores que afecten la salud y seguridad a fin de mejorar las condiciones del ambiente de trabajo | B133: Gestión de Talento Humano | C133: Gestionar el potencial del talento humano como factor estratégico, para contribuir con el desarrollo de la entidad en un ambiente seguro y saludable | D133: Cumplimiento del plan anual de trabajo | G133: Porcentaje de ejecución del plan anual de seguridad y salud en el trabajo | H133: (No. de actividades de seguridad y salud desarrolladas/Total de actividades programadas en el plan anual de seguridad y salud en el trabajo)*100 | I133: Gestión | J133: Eficacia | K133: Mensual | L133: 0.95 | M133: Porcentaje | N133: Plan de trabajo anual del Sistema de Gestión de Seguridad y Salud en el Trabajo | O133: Positiva | P133: No | R133: 2019 | S133: Febrero
A134: Prevenir los factores que afecten la salud y seguridad a fin de mejorar las condiciones del ambiente de trabajo | B134: Gestión de Talento Humano | C134: Gestionar el potencial del talento humano como factor estratégico, para contribuir con el desarrollo de la entidad en un ambiente seguro y saludable | D134: Tasa de accidentalidad | G134: Tasa de accidentalidad | H134: (No. de accidentes de trabajo reportados/Total de trabajadores (funcionarios y contratistas)*100 | I134: Gestión | J134: Efectividad | K134: Mensual | L134: 0.04 | M134: Porcentaje | N134: Matriz de accidentes de trabajo | O134: Negativa | P134: No | Q134: La meta está configurada como menor o igual a 4%. | R134: 2019 | S134: Febrero
A135: Prevenir los factores que afecten la salud y seguridad a fin de mejorar las condiciones del ambiente de trabajo | B135: Gestión de Talento Humano | C135: Gestionar el potencial del talento humano como factor estratégico, para contribuir con el desarrollo de la entidad en un ambiente seguro y saludable | D135: Incidencia y prevalencia de enfermedades laborales | G135: Prevalencia de la enfermedad laboral | H135: (No. de casos de enfermedad laboral calificada/Total de funcionarios)*100 | I135: Gestión | J135: Efectividad | K135: Trimestral | L135: 0.02 | M135: Porcentaje | N135: Matriz de seguimiento de enfermedades laborales | O135: Negativa | P135: No | Q135: La meta está configurada como menor o igual a 2%. | R135: 2019 | S135: Febrero
A136: Prevenir los factores que afecten la salud y seguridad a fin de mejorar las condiciones del ambiente de trabajo | B136: Gestión de Talento Humano | C136: Gestionar el potencial del talento humano como factor estratégico, para contribuir con el desarrollo de la entidad en un ambiente seguro y saludable | D136: Incidencia y prevalencia de enfermedades laborales | G136: Incidencia de la enfermedad laboral | H136: (No. de casos nuevos de enfermedad laboral calificados/Total de funcionarios)*100 | I136: Gestión | J136: Efectividad | K136: Trimestral | L136: 0.01 | M136: Porcentaje | N136: Matriz de seguimiento de enfermedades laborales | O136: Negativa | P136: No | Q136: La meta está configurada como menor o igual a 1%. | R136: 2019 | S136: Febrero
A137: Mejorar continuamente los procesos del Sistema Integrado de Gestión | B137: Gestión de Recursos Físicos | C137: Administrar y controlar los bienes muebles y servicios para el funcionamiento administrativo de la entidad | D137: Confiabilidad del inventario de bienes devolutivos | G137: Porcentaje de inventario individual validado físicamente | H137: (No. de elementos devolutivos del inventario individual validados físicamente/Total de elementos devolutivos del inventario individual registrados en el sistema de información SEVEN)*100 | I137: Gestión | J137: Eficacia | K137: Anual | L137: 1 | M137: Porcentaje | N137: Sistema de información SEVEN | O137: Positiva | P137: No | R137: 2019 | S137: Febrero
A138: Mejorar continuamente los procesos del Sistema Integrado de Gestión | B138: Gestión de Recursos Físicos | C138: Administrar y controlar los bienes muebles y servicios para el funcionamiento administrativo de la entidad | D138: Confiabilidad del inventario de bienes devolutivos | G138: Porcentaje de inventario aleatorio validado físicamente en bodega | H138: (No. de elementos devolutivos y de consumo en bodegas validados físicamente/Muestra de inventario de elementos devolutivos y de consumo registrados en el sistema de información SEVEN)*100 | I138: Gestión | J138: Eficacia | K138: Trimestral | L138: 1 | M138: Porcentaje | N138: Sistema de información SEVEN | O138: Positiva | P138: No | R138: 2019 | S138: Febrero
A139: Mejorar continuamente los procesos del Sistema Integrado de Gestión | B139: Gestión de Asuntos Locales | C139: Desarrollar acciones a nivel local para promover la participación ciudadana, brindar acompañamiento a las alcaldías locales en temas misionales de la entidad y ofertar sus programas | D139: Cumplimiento de los compromisos adquiridos por la entidad, en el marco de las instancias de participación locales | G139: Porcentaje de compromisos atendidos en el marco de las instancias de participación locales | H139: (No. de compromisos atendidos en las instancias Consejo Local de Gobierno, Unidad de Apoyo Técnico y Comisión Local Intersectorial de Participación /Total de compromisos generados en las instancias Consejo Local de Gobierno, Unidad de Apoyo Técnico y Comisión Local Intersectorial de Participación)*100 | I139: Gestión | J139: Eficacia | K139: Trimestral | L139: 1 | M139: Porcentaje | N139: Matriz de seguimiento a compromisos derivados de instancias de participación locales | O139: Positiva | P139: No | R139: 2019 | S139: Febrero
A140: Mejorar continuamente los procesos del Sistema Integrado de Gestión | B140: Gestión de Asuntos Locales | C140: Desarrollar acciones a nivel local para promover la participación ciudadana, brindar acompañamiento a las alcaldías locales en temas misionales de la entidad y ofertar sus programas | D140: Efectividad en la atención de la demanda de actividades recreodeportivas en las localidades de Bogotá | G140: Porcentaje de actividades recreativas programadas por asuntos locales | H140: (No. de actividades recreativas programadas en la plataforma SIM por los gestores locales/Total de actividades recreativas solicitadas por Promoción de la Recreación)*100 | I140: Gestión | J140: Eficacia | K140: Mensual | L140: 1 | M140: Porcentaje | N140: Sistema de información misional - SIM Cuadro de metas de actividades recreativas | O140: Positiva | P140: No | R140: 2019 | S140: Febrero
A141: Mejorar continuamente los procesos del Sistema Integrado de Gestión | B141: Gestión de Asuntos Locales | C141: Desarrollar acciones a nivel local para promover la participación ciudadana, brindar acompañamiento a las alcaldías locales en temas misionales de la entidad y ofertar sus programas | D141: Efectividad en la atención de la demanda de actividades recreodeportivas en las localidades de Bogotá | G141: Porcentaje de beneficiarios inscritos por asuntos locales en actividades deportivas | H141: (No. de beneficiarios inscritos en actividades deportivas por los gestores locales/Total de beneficiarios de actividades deportivas programados por Fomento al Deporte)*100 | I141: Gestión | J141: Eficacia | K141: Trimestral | L141: 1 | M141: Porcentaje | N141: Reporte de las distintas plataformas para inscripciones Cuadro de metas de actividades deportivas | O141: Positiva | P141: No | R141: 2019 | S141: Febrero
A142: Mejorar continuamente los procesos del Sistema Integrado de Gestión | B142: Gestión de Asuntos Locales | C142: Desarrollar acciones a nivel local para promover la participación ciudadana, brindar acompañamiento a las alcaldías locales en temas misionales de la entidad y ofertar sus programas | D142: Cumplimiento de lineamientos y criterios de elegibilidad y viabilidad de los proyectos de contratación | G142: Porcentaje de asistencias técnicas realizadas a los Fondos de Desarrollo Local | H142: (No. de asistencias técnicas realizadas a los Fondos de Desarrollo Local/Total de asistencias técnicas programadas a los Fondos de Desarrollo Local en las cuatro líneas de inversión)*100 | I142: Gestión | J142: Eficacia | K142: Trimestral | L142: 1 | M142: Porcentaje | N142: Cronograma de asistencias técnicas a los Fondos de Desarrollo Local | O142: Positiva | P142: No | R142: 2019 | S142: Febrero
A143: Mejorar continuamente los procesos del Sistema Integrado de Gestión | B143: Gestión de Asuntos Locales | C143: Desarrollar acciones a nivel local para promover la participación ciudadana, brindar acompañamiento a las alcaldías locales en temas misionales de la entidad y ofertar sus programas | D143: Ejecución de los proyectos con recursos de los fondos de desarrollo local, en concordancia con el concepto previo y favorable emitido por la entidad | G143: Porcentaje de proyectos viabilizados con seguimiento efectuado | H143: (No. de proyectos contratados con seguimiento efectuado/Total de proyectos viabilizados con contratación por parte de los Fondos de Desarrollo Local)*100 | I143: Gestión | J143: Eficacia | K143: Trimestral | L143: 1 | M143: Porcentaje | N143: SECOP Informe de seguimiento a viabilidades | O143: Positiva | P143: No | R143: 2019 | S143: Febrero
A144: Mejorar continuamente los procesos del Sistema Integrado de Gestión | B144: Control Disciplinario | C144: Investigar conductas presuntamente disciplinables e imponer sanciones cuando haya lugar, tanto a servidores como a ex-servidores públicos de la entidad, con el fin de que éstos cumplan con sus deberes y funciones | D144: Cumplimiento de los términos legales en las distintas etapas procesales | G144: Porcentaje de procesos disciplinarios resueltos de fondo | H144: (No. de procesos disciplinarios decididos de fondo/Total de procesos disciplinarios activos)*100 | I144: Gestión | J144: Eficacia | K144: Semestral | L144: 0.6 | M144: Porcentaje | N144: Matriz de autos | O144: Positiva | P144: No | R144: 2019 | S144: Febrero
A145: Mejorar continuamente los procesos del Sistema Integrado de Gestión | B145: Control Disciplinario | C145: Investigar conductas presuntamente disciplinables e imponer sanciones cuando haya lugar, tanto a servidores como a ex-servidores públicos de la entidad, con el fin de que éstos cumplan con sus deberes y funciones | D145: Garantía del debido proceso en las distintas etapas procesales | G145: Porcentaje de procesos disciplinarios sin nulidades decretadas | H145: (No. de procesos disciplinarios sin nulidades decretadas/Total de procesos disciplinarios activos)*100 | I145: Gestión | J145: Eficacia | K145: Trimestral | L145: 1 | M145: Porcentaje | N145: Matriz de autos | O145: Positiva | P145: No | R145: 2019 | S145: Febrero
A146: Mejorar continuamente los procesos del Sistema Integrado de Gestión | B146: Control Disciplinario | C146: Investigar conductas presuntamente disciplinables e imponer sanciones cuando haya lugar, tanto a servidores como a ex-servidores públicos de la entidad, con el fin de que éstos cumplan con sus deberes y funciones | D146: Cumplimiento de los términos legales en las distintas etapas procesales | G146: Porcentaje de procesos disciplinarios sin vencimiento de términos | H146: (No. de procesos disciplinarios sin vencimiento de términos/Total de procesos disciplinarios activos)*100 | I146: Gestión | J146: Calidad | K146: Trimestral | L146: 1 | M146: Porcentaje | N146: Expediente del proceso disciplinario | O146: Positiva | P146: No | R146: 2019 | S146: Febrero
A147: Mejorar continuamente los procesos del Sistema Integrado de Gestión | B147: Administración y Mantenimiento de Parques y Escenarios | C147: Ofrecer parques y escenarios del Sistema Distrital para el uso y disfrute de la comunidad general, gestionando la sostenibilidad física, social, ambiental y económica | D147: Uso de parques y escenarios con motivación económica que generen recursos para el mantenimiento de los mismos | G147: Aprovechamiento económico de parques y/o escenarios | H147: (Ingresos del mes + acumulado de los ingresos del mes anterior/Total presupuesto anual)*100 | I147: Gestión | J147: Eficiencia | K147: Mensual | L147: 1 | M147: Porcentaje | N147: Sistema de información SEVEN | O147: Positiva | P147: Si | Q147: La meta es anual con medición y análisis mensual. En el análisis del indicador se presentará la desagregación del aprovechamiento económico por tipo de parque y/o escenario, expresado en ingresos y participación porcentual. | R147: 2019 | S147: Febrero | T147: 4687561 | U147: 22044017 | V147: =+T147/U147 -> 0.2126454992 | W147: =+V147/L147 -> 0.2126454992
A148: Satisfacer las necesidades de los usuarios a través de la prestación de servicios eficientes, eficaces y efectivos | B148: Administración y Mantenimiento de Parques y Escenarios | C148: Ofrecer parques y escenarios del Sistema Distrital para el uso y disfrute de la comunidad general, gestionando la sostenibilidad física, social, ambiental y económica | D148: Satisfacción de los usuarios con las actividades de mantenimiento preventivo y correctivo | G148: Satisfacción de los usuarios con las obras de mantenimiento de nuevas tendencias | H148: (No. de usuarios satisfechos con las obras de mantenimiento realizadas/Total de usuarios de parques y escenarios encuestados para obras de mantenimiento de nuevas tendencias)*100 | I148: Gestión | J148: Efectividad | K148: Anual | L148: 0.9 | M148: Porcentaje | N148: Encuesta de satisfacción con las obras de mantenimiento de nuevas tendencias | O148: Positiva | P148: No | Q148: En el análisis del indicador se presentará el resultado desagregado por cada uno de los aspectos evaluados en la encuesta de satisfacción. | R148: 2019 | S148: Febrero
A149: Mejorar continuamente los procesos del Sistema Integrado de Gestión | B149: Administración y Mantenimiento de Parques y Escenarios | C149: Ofrecer parques y escenarios del Sistema Distrital para el uso y disfrute de la comunidad general, gestionando la sostenibilidad física, social, ambiental y económica | D149: Oportunidad y cumplimiento en la generación de compromisos o acuerdos ciudadanos frente al uso y sostenibilidad de los parques administrados | G149: Porcentaje de cumplimiento en acuerdos de sostenibilidad social de parques | H149: (No. de compromisos gestionados/Total de compromisos adquiridos mediante acuerdos ciudadanos en parques)*100 | I149: Gestión | J149: Eficacia | K149: Trimestral | L149: 1 | M149: Porcentaje | N149: Matriz de seguimiento a compromisos o acuerdos ciudadanos | O149: Positiva | P149: No | R149: 2019 | S149: Febrero
A150: Mejorar continuamente los procesos del Sistema Integrado de Gestión | B150: Administración y Mantenimiento de Parques y Escenarios | C150: Ofrecer parques y escenarios del Sistema Distrital para el uso y disfrute de la comunidad general, gestionando la sostenibilidad física, social, ambiental y económica | D150: Disponibilidad de los equipamientos en parques y escenarios | E150: Cumplimiento de las especificaciones técnicas en las actividades de mantenimiento preventivo y correctivo | F150: Cobertura en el mantenimiento de parques y escenarios de acuerdo con la priorización | G150: Porcentaje de avance en la ejecución de contratos de obras de mantenimiento o recuperación | H150: (Porcentaje contrato 1 + Porcentaje contrato 2 +...+ Porcentaje contrato n)/Total de contratos de obras de mantenimiento o recuperación en ejecución Donde: Porcentaje contrato n = Avance físico ejecutado/Avance físico programado n = Número de contratos de obras de mantenimiento o recuperación en ejecución | I150: Gestión | J150: Eficacia | K150: Bimestral | L150: 0.9 | M150: Porcentaje | N150: Informes mensuales de interventoría presentados según programación de los contratistas | O150: Positiva | P150: No | R150: 2019 | S150: Febrero
A151: Satisfacer las necesidades de los usuarios a través de la prestación de servicios eficientes, eficaces y efectivos | B151: Diseño y Construcción de Parques y Escenarios | C151: Ampliar y mejorar la infraestructura física recreativa y deportiva del Distrito Capital para el uso de la comunidad en general | D151: Cumplimiento de requisitos técnicos, administrativos, financieros y jurídicos de los proyectos | G151: Satisfacción de los usuarios con las obras de construcción y/o adecuación entregadas | H151: (No. de usuarios satisfechos con las obras de construcción y/o adecuación entregadas /Total de usuarios encuestados por proyecto)*100 | I151: Gestión | J151: Efectividad | K151: Anual | L151: 0.9 | M151: Porcentaje | N151: Resultados de la encuesta de satisfacción entregados por los contratistas de obra | O151: Positiva | P151: No | Q151: En el análisis del indicador se presentará el resultado desagregado por cada uno de los aspectos evaluados en la encuesta de satisfacción. | R151: 2019 | S151: Febrero
A152: Mejorar continuamente los procesos del Sistema Integrado de Gestión | B152: Diseño y Construcción de Parques y Escenarios | C152: Ampliar y mejorar la infraestructura física recreativa y deportiva del Distrito Capital para el uso de la comunidad en general | D152: Oportunidad en el seguimiento y adopción de medidas durante el seguimiento de la estabilidad de la obra | E152: Cumplimiento de especificaciones técnicas conforme a lo establecido en la etapa de construcción | G152: Porcentaje de fallas de calidad o estabilidad de obra atendidas en construcción y adecuación de parques y escenarios | H152: (No. de fallas de calidad o estabilidad de obra atendidas/Total de fallas de calidad o estabilidad de obra detectadas o reportadas por terceros)*100 Atendido = Se genera requerimiento al contratista para establecer compromisos de reparación. | I152: Gestión | J152: Eficacia | K152: Trimestral | L152: 0.9 | M152: Porcentaje | N152: Actas de visita o reconocimiento de estabilidad de obra Acta de compromiso de reparación constructiva Programación de visita Comunicación oficial- notificación de fallas visita de inspección por estabilidad Acta de verificación de reparación constructiva | O152: Positiva | P152: No | Q152: En el análisis del indicador se presentará la desagregación por parque y escenario. | R152: 2019 | S152: Febrero
A153: Mejorar continuamente los procesos del Sistema Integrado de Gestión | B153: Diseño y Construcción de Parques y Escenarios | C153: Ampliar y mejorar la infraestructura física recreativa y deportiva del Distrito Capital para el uso de la comunidad en general | D153: Cumplimiento de requisitos técnicos, administrativos, financieros y jurídicos de los proyectos | E153: Oportunidad en el seguimiento y adopción de medidas durante la ejecución de las obras | F153: Cumplimiento del alcance de las obras conforme a los estudios y diseños, especificaciones técnicas y normatividad vigente | G153: Porcentaje de avance en la ejecución de obras de construcción y adecuación de parques y escenarios | H153: ((%Ejecutado Obra 1*Plazo de ejecución Obra 1)+(%Ejecutado Obra 2*Plazo de ejecución Obra 2) +...+ (%Ejecutado Obra n*Plazo de ejecución Obra n))/((%Programado Obra 1*Plazo de ejecución Obra 1)+(%Programado Obra 2*Plazo de ejecución Obra 2) +...+ (%Programado Obra n*Plazo de ejecución Obra n)) Donde: n = Número de obras en ejecución | I153: Gestión | J153: Eficacia | K153: Mensual | L153: 0.9 | M153: Porcentaje | N153: Informes mensuales de interventoría Informes mensuales de supervisión | O153: Positiva | P153: No | Q153: En el análisis del indicador se presentará la desagregación por parque y escenario. | R153: 2019 | S153: Febrero
A154: Mejorar continuamente los procesos del Sistema Integrado de Gestión | B154: Diseño y Construcción de Parques y Escenarios | C154: Ampliar y mejorar la infraestructura física recreativa y deportiva del Distrito Capital para el uso de la comunidad en general | D154: Cumplimiento de requisitos técnicos, administrativos, financieros y legales de los proyectos de estudios y diseños | E154: Oportunidad en el seguimiento y adopción de medidas durante la ejecución de los proyectos de estudios y diseños | F154: Cumplimiento del alcance de los proyectos de estudios y diseños conforme a las necesidades identificadas | G154: Porcentaje de avance en la ejecución de proyectos de estudios y/o diseños de parques y escenarios | H154: (Porcentaje proyecto 1 + Porcentaje proyecto 2 +...+ Porcentaje proyecto n)/Total de proyectos de estudios y/o diseños en ejecución Donde: Porcentaje proyecto n =(Avance ejecutado de estudios y/o diseños/Avance programado de estudios y/o diseños al corte según forma de pago) n = Número de proyectos de estudios y/o diseños en ejecución | I154: Gestión | J154: Eficacia | K154: Mensual | L154: 0.9 | M154: Porcentaje | N154: Informes mensuales de interventoría Informes mensuales de supervisión | O154: Positiva | P154: No | Q154: En el análisis del indicador se presentará la desagregación por proyecto. | R154: 2019 | S154: Febrero
A155: Mejorar continuamente los procesos del Sistema Integrado de Gestión | B155: Gestión Jurídica | C155: Ejercer la defensa judicial y extrajudicial de la entidad y atender requerimientos jurídicos, para salvaguardar sus intereses y cumplir con los requisitos constitucionales y legales | D155: Intervención oportuna en las distintas actuaciones judiciales y extrajudiciales en que sea parte la entidad | E155: Oportunidad en el seguimiento a los procesos en los despachos e instancias judiciales | G155: Porcentaje de procesos judiciales y extrajudiciales atendidos dentro de los términos legales vigentes | H155: (No. de procesos jurídicos atendidos dentro de los términos legales vigentes)/Total de procesos jurídicos notificados)*100 | I155: Gestión | J155: Calidad | K155: Trimestral | L155: 1 | M155: Porcentaje | N155: SIPROJ Web ORFEO | O155: Positiva | P155: No | Q155: En el análisis del indicador se presentará la desagregación por procesos judiciales y extrajudiciales. | R155: 2019 | S155: Febrero
A156: Satisfacer las necesidades de los usuarios a través de la prestación de servicios eficientes, eficaces y efectivos | B156: Gestión Jurídica | C156: Ejercer la defensa judicial y extrajudicial de la entidad y atender requerimientos jurídicos, para salvaguardar sus intereses y cumplir con los requisitos constitucionales y legales | D156: Cumplimiento de los requisitos establecidos para el reconocimiento deportivo y el aval de escuelas deportivas | G156: Satisfacción de los usuarios con el trámite de reconocimiento deportivo | H156: (No. de usuarios satisfechos con el trámite de reconocimiento deportivo/Total de usuarios encuestados)*100 | I156: Gestión | J156: Efectividad | K156: Semestral | L156: 0.95 | M156: Porcentaje | N156: Encuesta de satisfacción de usuarios de reconocimiento deportivo | O156: Positiva | P156: No | Q156: En el análisis del indicador se presentarán los resultados desagregados por cada uno de los aspectos evaluados en la encuesta de satisfacción. | R156: 2019 | S156: Febrero
A157: Mejorar continuamente los procesos del Sistema Integrado de Gestión | B157: Gestión Jurídica | C157: Ejercer la defensa judicial y extrajudicial de la entidad y atender requerimientos jurídicos, para salvaguardar sus intereses y cumplir con los requisitos constitucionales y legales | D157: Oportunidad en la respuesta del trámite de otorgamiento deportivo (45 días hábiles siguientes al cumplimiento de requisitos de otorgamiento deportivo) | E157: Vigencia y aplicabilidad de la normatividad empleada para el reconocimiento deportivo y el aval de escuelas deportivas | G157: Porcentaje de trámites de reconocimiento deportivo atendidos dentro del término legal vigente | H157: (No. de trámites de reconocimiento deportivo atendidos dentro del término legal vigente/Total de trámites de reconocimiento deportivo atendidos)*100 | I157: Gestión | J157: Calidad | K157: Trimestral | L157: 0.92 | M157: Porcentaje | N157: Matriz de control de reconocimiento deportivo | O157: Positiva | P157: No | R157: 2019 | S157: Febrero
A158: Mejorar continuamente los procesos del Sistema Integrado de Gestión | B158: Gestión Jurídica | C158: Ejercer la defensa judicial y extrajudicial de la entidad y atender requerimientos jurídicos, para salvaguardar sus intereses y cumplir con los requisitos constitucionales y legales | D158: Oportunidad en la respuesta del trámite de aval de escuelas deportivas (58 días hábiles) | E158: Vigencia y aplicabilidad de la normatividad empleada para el reconocimiento deportivo y el aval de escuelas deportivas | G158: Porcentaje de trámites de aval de escuelas deportivas atendidos dentro del término legal vigente | H158: (No. de trámites de aval de escuelas deportivas atendidos dentro del término legal vigente/Total de trámites de aval de escuelas deportivas atendidos)*100 | I158: Gestión | J158: Calidad | K158: Trimestral | L158: 0.92 | M158: Porcentaje | N158: Matriz de control de aval de escuelas deportivas | O158: Positiva | P158: No | R158: 2019 | S158: Febrero
A159: Mejorar continuamente los procesos del Sistema Integrado de Gestión | B159: Gestión Jurídica | C159: Ejercer la defensa judicial y extrajudicial de la entidad y atender requerimientos jurídicos, para salvaguardar sus intereses y cumplir con los requisitos constitucionales y legales | D159: Oportunidad en la respuesta a conceptos de proyectos de acuerdo con los tiempos establecidos | E159: Suministro oportuno de la información de carácter técnico, de oportunidad y conveniencia del proyecto por parte de las dependencias y áreas de la entidad | G159: Porcentaje de solicitudes de concepto a proyectos de acuerdo, decreto o ley atendidas dentro del tiempo establecido | H159: (No. de solicitudes de concepto a proyectos de acuerdo, decreto o ley atendidas dentro del tiempo establecido/Total de solicitudes de concepto a proyectos de acuerdo, decreto o ley recibidas)*100 | I159: Gestión | J159: Calidad | K159: Semestral | L159: 0.9 | M159: Porcentaje | N159: Matriz de seguimiento a solicitudes Congreso y Concejo | O159: Positiva | P159: No | Q159: En el análisis del indicador se presentará la desagregación por proyectos de acuerdo, decreto y ley. | R159: 2019 | S159: Febrero
A160: Mejorar continuamente los procesos del Sistema Integrado de Gestión | B160: Gestión Jurídica | C160: Ejercer la defensa judicial y extrajudicial de la entidad y atender requerimientos jurídicos, para salvaguardar sus intereses y cumplir con los requisitos constitucionales y legales | D160: Recuperación de la cartera en mora | G160: Porcentaje de procesos de cobro de cartera efectuados | H160: (No. de procesos con etapas de cobro efectuadas/Total de procesos de cobro remitidos con documentación completa)*100 | I160: Gestión | J160: Eficacia | K160: Cuatrimestral | L160: 1 | M160: Porcentaje | N160: Matriz de seguimiento cobro de cartera | O160: Positiva | P160: No | Q160: Los primeros cinco días hábiles de mayo se reportará el indicador con corte a 31 de diciembre del año anterior. Los primeros días de septiembre se reportará con corte 30 de abril de la vigencia. Los primeros días de enero se reportará con corte a 31 de agosto del año anterior. En el análisis del indicador se presentará la desagregación por etapa (persuasivo y coactivo), así como también el porcentaje de recuperación de cartera. | R160: 2019 | S160: Febrero
A161: Mejorar continuamente los procesos del Sistema Integrado de Gestión | B161: Gestión Jurídica | C161: Ejercer la defensa judicial y extrajudicial de la entidad y atender requerimientos jurídicos, para salvaguardar sus intereses y cumplir con los requisitos constitucionales y legales | D161: Intervención oportuna en las distintas actuaciones judiciales y extrajudiciales en que sea parte la entidad - tipos de daño en que se resulte demandado o condenado | G161: Índice de condenas adversas | H161: (No. de condenas adversas/Total de procesos judiciales)*100 | I161: Gestión | J161: Calidad | K161: Semestral | L161: 0.08 | M161: Porcentaje | N161: Informe Siproj web mensual (procesos judiciales) | O161: Negativa | P161: No | Q161: El análisis del indicador debe evaluar dentro del comité de conciliación los procesos que cursen o hayan cursado en contra de la entidad, determinando causas generadoras de conflictos y los tipos de daño. | R161: 2019 | S161: Febrero
A162: Mejorar continuamente los procesos del Sistema Integrado de Gestión | B162: Gestión Jurídica | C162: Ejercer la defensa judicial y extrajudicial de la entidad y atender requerimientos jurídicos, para salvaguardar sus intereses y cumplir con los requisitos constitucionales y legales | D162: Intervención oportuna en las distintas actuaciones judiciales y extrajudiciales en que sea parte la entidad - tipos de daño en que se resulte demandado o condenado | G162: Índice de condenas adversas | H162: (No. de condenas adversas/Total de procesos judiciales)*100 | I162: Gestión | J162: Calidad | K162: Semestral | L162: 0.08 | M162: Porcentaje | N162: Informe Siproj web mensual (procesos judiciales) | O162: Negativa | P162: No | Q162: El análisis del indicador debe evaluar dentro del comité de conciliación los procesos que cursen o hayan cursado en contra de la entidad, determinando causas generadoras de conflictos y los tipos de daño. | R162: 2019 | S162: Marzo
A163: Mejorar continuamente los procesos del Sistema Integrado de Gestión | B163: Gestión de Comunicaciones | C163: Dar a conocer interna y externamente las actividades, programas y obras que realiza la entidad, para generar apropiación y participación que contribuyan al posicionamiento de la imagen institucional | D163: Exigencia de la solicitud de servicios para todos los procesos con la información completa y detallada de lo requerido | E163: Veracidad de la información reportada por los solicitantes del servicio | G163: Porcentaje de solicitudes de servicios de comunicaciones atendidas dentro de los tiempos establecidos | H163: (No. de solicitudes de servicio atendidas dentro de los tiempos establecidos/Total de solicitudes de servicio de comunicaciones recibidas)*100 | I163: Gestión | J163: Calidad | K163: Trimestral | L163: 0.9 | M163: Porcentaje | N163: Consolidado de solicitudes de servicios de comunicaciones | O163: Positiva | P163: No | R163: 2019 | S163: Febrero
A164: Mejorar continuamente los procesos del Sistema Integrado de Gestión | B164: Gestión de Comunicaciones | C164: Dar a conocer interna y externamente las actividades, programas y obras que realiza la entidad, para generar apropiación y participación que contribuyan al posicionamiento de la imagen institucional | D164: Relacionamiento con medios de comunicación | E164: Análisis de los resultados obtenidos mediante el monitoreo de medios para facilitar la toma de decisiones | G164: Impacto de noticias publicadas en medios de comunicación | H164: (No. de noticias positivas o neutras registradas/Total de noticias publicadas en medios de comunicación)*100 | I164: Gestión | J164: Eficacia | K164: Trimestral | L164: 1 | M164: Porcentaje | N164: Informes mensuales generados por la empresa contratada para realizar el monitoreo de medios | O164: Positiva | P164: No | Q164: En el análisis del indicador se presentará el resultado desagregado de noticias positivas y neutras, indicando los principales medios de comunicación. Se colocó una meta de 100%, mientras se levanta la línea base con la primera medición. | R164: 2019 | S164: Febrero
A165: Mejorar continuamente los procesos del Sistema Integrado de Gestión | B165: Gestión de Comunicaciones | C165: Dar a conocer interna y externamente las actividades, programas y obras que realiza la entidad, para generar apropiación y participación que contribuyan al posicionamiento de la imagen institucional | D165: Seguimiento a los cambios en las condiciones de publicación en redes sociales y página web | G165: Tasa de variación en el alcance total de las publicaciones en redes sociales | H165: ((Alcance total de publicaciones en el trimestre actual - Alcance total de publicaciones en el trimestre anterior)/Alcance total de publicaciones en el trimestre anterior)*100 Donde: Alcance total de las publicaciones = Total de usuarios que vieron las publicaciones de redes sociales | I165: Gestión | J165: Eficacia | K165: Trimestral | L165: 0.2 | M165: Porcentaje | N165: Métricas nativas de cada red social | O165: Positiva | P165: No | Q165: En el análisis del indicador se presentará el resultado desagregado del alcance de las publicaciones por cada red social. | R165: 2019 | S165: Febrero
A166: Mejorar continuamente los procesos del Sistema Integrado de Gestión | B166: Gestión de Comunicaciones | C166: Dar a conocer interna y externamente las actividades, programas y obras que realiza la entidad, para generar apropiación y participación que contribuyan al posicionamiento de la imagen institucional | D166: Análisis de los resultados obtenidos mediante el monitoreo de medios para facilitar la toma de decisiones | G166: Salidas publicadas en medios de comunicación | H166: N/A | I166: Gestión | J166: Eficacia | K166: Mensual | L166: 80 | M166: Número | N166: Informes mensuales generados por la empresa contratada para realizar el monitoreo de medios | O166: Positiva | P166: No | Q166: En el análisis del indicador se presentará el valor estimado de las publicaciones en medios de comunicación. | R166: 2019 | S166: Febrero
A167: Mejorar continuamente los procesos del Sistema Integrado de Gestión | B167: Planeación de la Gestión | C167: Establecer directrices para formular y realizar seguimiento a la planeación estratégica y operativa de la entidad con el propósito de contribuir al desarrollo de la misión y objetivos institucionales, así como facilitar la oportunidad y cumplimiento de los resultados esperados | D167: Oportunidad, veracidad y calidad de la información de inversión y gestión | G167: Porcentaje de reportes de información presentados dentro de los tiempos programados | H167: (No. de reportes de información elaborados y presentados/Total de reportes de información programados)*100 | I167: Gestión | J167: Calidad | K167: Trimestral | L167: 1 | M167: Porcentaje | N167: Cronograma de trabajo interno, plan operativo por dependencias (Oficina Asesora de Planeación), plan de adecuación y sostenibilidad SIGD-MIPG | O167: Positiva | P167: No | Q167: En el análisis del indicador se desagregará la programación para cada trimestre. | R167: 2019 | S167: Marzo
A168: Mejorar continuamente los procesos del Sistema Integrado de Gestión | B168: Planeación de la Gestión | C168: Establecer directrices para formular y realizar seguimiento a la planeación estratégica y operativa de la entidad con el propósito de contribuir al desarrollo de la misión y objetivos institucionales, así como facilitar la oportunidad y cumplimiento de los resultados esperados | D168: Oportunidad en el seguimiento de las acciones institucionales para la mejora (correcciones, acciones correctivas, oportunidades de mejora, acciones para abordar riesgos) | G168: Porcentaje de acciones de mejora con seguimiento efectuado dentro del Sistema de Gestión | H168: [No. de acciones de mejora con seguimiento efectuado dentro del tiempo programado/Total de acciones de mejora abiertas dentro del Sistema de Gestión de la Calidad (correcciones, acciones correctivas, oportunidades de mejora, acciones para abordar riesgos)]*100 | I168: Gestión | J168: Eficacia | K168: Mensual | L168: 1 | M168: Porcentaje | N168: Isolución | O168: Positiva | P168: No | Q168: En el análisis del indicador se presentará el resultado desagregado por cada tipología de mejora (corrección, acciones correctivas, oportunidades de mejora, acciones para abordar riesgos). | R168: 2019 | S168: Marzo
A169: Mejorar continuamente los procesos del Sistema Integrado de Gestión | B169: Gestión de Recursos Físicos | C169: Administrar y controlar los bienes muebles y servicios para el funcionamiento administrativo de la entidad | D169: Oportunidad en la atención de requerimientos y necesidades de servicios administrativos | G169: Porcentaje de mantenimientos realizados a la infraestructura física de la sede administrativa | H169: (No. de mantenimientos realizados a la infraestructura física/Total de mantenimientos programados a la infraestructura física de la sede administrativa)*100 | I169: Gestión | J169: Eficacia | K169: Trimestral | L169: 0.9 | M169: Porcentaje | N169: Expendientes contractuales en plataforma ORFEO | O169: Positiva | P169: No | R169: 2019 | S169: Marzo
A170: Mejorar continuamente los procesos del Sistema Integrado de Gestión | B170: Gestión de Asuntos Locales | C170: Desarrollar acciones a nivel local para promover la participación ciudadana, brindar acompañamiento a las alcaldías locales en temas misionales de la entidad y ofertar sus programas | D170: Oportunidad en la emisión del concepto previo y favorable según los tiempos establecidos en la normatividad vigente | G170: Porcentaje de conceptos previos tramitados dentro de los términos legales vigentes | H170: (No. de conceptos previos tramitados dentro de los términos legales vigentes/Total de solicitudes de conceptos previos recibidas)*100 | I170: Gestión | J170: Calidad | K170: Trimestral | L170: 0.5 | M170: Porcentaje | N170: Matriz de seguimiento a conceptos previos tramitados | O170: Positiva | P170: No | R170: 2019 | S170: Marzo | T170: 11 | U170: 16 | V170: =+T170/U170 -> 0.6875 | W170: =+V170/L170 -> 1.375 | X170: =_xlfn.IFS(W170<=69%,"Crítico",W170>=90%,"Aceptable",W170>=70%,"Tolerable") -> Aceptable
A171: Mejorar continuamente los procesos del Sistema Integrado de Gestión | B171: Control, Evaluación y Seguimiento | C171: Evaluar los controles y la gestión de la entidad con el fin de identificar e implementar acciones de mejora, en pro de la sostenibilidad del Sistema de Control Interno | D171: Pertinencia y oportunidad en la entrega de los resultados del seguimiento a las partes interesadas | E171: Oportunidad y calidad en la información reportada a las entidades competentes del orden nacional y distrital | G171: Porcentaje de informes presentados por la tercera línea de defensa dentro de los tiempos programados | H171: (No. de informes de ley y de gestión elaborados y presentados dentro de los tiempos programados/Total de informes de ley y de gestión a cargo de la tercera línea de defensa )*100 | I171: Gestión | J171: Calidad | K171: Trimestral | L171: 1 | M171: Porcentaje | N171: Plan anual de auditoría Cronograma presentación de informes | O171: Positiva | P171: No | Q171: En el análisis del indicador se presentará el resultado desagregado por cada uno de los informes realizados. | R171: 2019 | S171: Marzo | T171: 26 | U171: 26 | V171: 1 | W171: 1 | X171: Aceptable
A172: Mejorar continuamente los procesos del Sistema Integrado de Gestión | B172: Control, Evaluación y Seguimiento | C172: Evaluar los controles y la gestión de la entidad con el fin de identificar e implementar acciones de mejora, en pro de la sostenibilidad del Sistema de Control Interno | D172: Cumplimiento de los objetivos definidos en el plan de auditoría conforme al plan de pruebas | E172: Cobertura de las unidades a auditar de acuerdo con los parámetros establecidos en la matriz de priorización, en concordancia con los recursos disponibles para la ejecución del Plan Anual de Auditoría | G172: Índice de eficacia de auditorías internas de control interno | H172: (Índice auditoría 1 + índice auditoría 2 +...+Índice auditoría n)/Total de auditorías realizadas Donde: Índice auditoría n = Calificación porcentual de la variable Objetivos Específicos*Peso de la variable Objetivos Específicos + Calificación porcentual de la variable Actividad Plan de Auditoría*Peso de la variable Actividad Plan de Auditoría + Calificación porcentual de la variable Oportunidad*Peso de la variable Oportunidad Pesos de las variables: Objetivos Específicos = 40% Actividades Plan de Auditoría = 30% Oportunidad = 30%. Esta se medirá tomando como fecha de referencia la de emisión del informe preliminar de auditoría. n = número de auditorías realizadas | I172: Gestión | J172: Eficacia | K172: Trimestral | L172: 0.85 | M172: Porcentaje | N172: Planes de cada una de las auditorías | O172: Positiva | P172: No | Q172: En el análisis del indicador se presentará el resultado desagregado por cada una de las auditorías realizadas. | R172: 2019 | S172: Marzo | T172: 198 | U172: 300 | V172: 0.66 | W172: 0.7764705882 | X172: Tolerable
A173: Mejorar continuamente los procesos del Sistema Integrado de Gestión | B173: Gestión Financiera | C173: Administrar los recursos financieros asignados y realizar los respectivos registros, para el cumplimiento de las funciones de la entidad y pago de sus obligaciones con terceros | D173: Oportunidad en el seguimiento de las partidas pendientes por conciliar | G173: Porcentaje de partidas conciliatorias identificadas dentro del tiempo establecido | H173: (No. de partidas conciliatorias identificadas con edad inferior a 60 días/Total de partidas reportadas)*100 | I173: Gestión | J173: Calidad | K173: Mensual | L173: 0.9 | M173: Porcentaje | N173: Sistema de información SEVEN | O173: Positiva | P173: No | R173: 2019 | S173: Marzo
A174: Mejorar continuamente los procesos del Sistema Integrado de Gestión | B174: Gestión Financiera | C174: Administrar los recursos financieros asignados y realizar los respectivos registros, para el cumplimiento de las funciones de la entidad y pago de sus obligaciones con terceros | D174: Oportunidad e integridad de la información necesaria para realizar las diferentes conciliaciones | G174: Porcentaje de obligaciones contingentes registradas correctamente en la contabilidad | H174: (No. de procesos registrados correctamente en la contabilidad/Total de procesos reportados en SIPROJ Web)*100 | I174: Gestión | J174: Calidad | K174: Trimestral | L174: 1 | M174: Porcentaje | N174: Sistema de información SEVEN | O174: Positiva | P174: No | R174: 2019 | S174: Marzo
A175: Mejorar continuamente los procesos del Sistema Integrado de Gestión | B175: Gestión Financiera | C175: Administrar los recursos financieros asignados y realizar los respectivos registros, para el cumplimiento de las funciones de la entidad y pago de sus obligaciones con terceros | D175: Oportunidad en la presentación de informes y estados financieros a los diferentes entes de vigilancia y control | G175: Porcentaje de notas a los estados financieros reveladas correctamente | H175: (No. de notas sin observaciones por parte de los órganos de control internos y externos/Total de notas a los estados financieros elaboradas)*100 | I175: Gestión | J175: Calidad | K175: Anual | L175: 0.95 | M175: Porcentaje | N175: Informes de entes de control y vigilancia | O175: Positiva | P175: No | R175: 2019 | S175: Marzo
A176: Mejorar continuamente los procesos del Sistema Integrado de Gestión | B176: Gestión Financiera | C176: Administrar los recursos financieros asignados y realizar los respectivos registros, para el cumplimiento de las funciones de la entidad y pago de sus obligaciones con terceros | D176: Oportunidad en la presentación de informes y estados financieros a los diferentes entes de vigilancia y control | E176: Oportunidad en la presentación de las declaraciones tributarias | G176: Porcentaje de informes financieros presentados a los entes de vigilancia y control dentro de los términos legales vigentes | H176: (No. de informes financieros presentados dentro de los términos legales vigentes/Total de informes financieros a reportar a los entes de vigilancia y control)*100 | I176: Gestión | J176: Calidad | K176: Trimestral | L176: 1 | M176: Porcentaje | N176: Matriz de seguimiento a la presentación de informes | O176: Positiva | P176: No | R176: 2019 | S176: Marzo
A177: Satisfacer las necesidades de los usuarios a través de la prestación de servicios eficientes, eficaces y efectivos | B177: Promoción de la Recreación | C177: Desarrollar actividades recreativas en función de las características y necesidades de la población de Bogotá D.C., para promover el aprovechamiento del tiempo libre y el mejoramiento en la calidad de vida | D177: Satisfacción del usuario con las actividades recreativas realizadas | G177: Satisfacción de los usuarios con los eventos y/o programas recreativos | H177: (No. de usuarios satisfechos con los eventos y/o programas recreativos/Total de usuarios de eventos y/o programas recreativos encuestados)*100 | I177: Gestión | J177: Efectividad | K177: Anual | L177: 1 | M177: Porcentaje | N177: Encuesta de satisfacción sobre eventos y/o programas recreativos | O177: Positiva | P177: No | Q177: En el análisis del indicador se presentará el resultado desagregado por programa y por cada uno de los aspectos evaluados en la encuesta de satisfacción. Se colocó una meta de 100%, mientras se levanta la línea base con la primera medición. | R177: 2019 | S177: Marzo
A178: Mejorar continuamente los procesos del Sistema Integrado de Gestión | B178: Promoción de la Recreación | C178: Desarrollar actividades recreativas en función de las características y necesidades de la población de Bogotá D.C., para promover el aprovechamiento del tiempo libre y el mejoramiento en la calidad de vida | D178: Cumplimiento del programa de actividades recreativas, teniendo en cuenta lo establecido en las fichas técnicas o según lo concertado con la comunidad e instituciones | G178: Porcentaje de actividades recreativas que cumplen con los requisitos para su ejecución | H178: (No. de actividades recreativas que cumplen con los requisitos definidos para su ejecución/Total de actividades recreativas realizadas)*100 | I178: Gestión | J178: Eficacia | K178: Trimestral | L178: 0.97 | M178: Porcentaje | N178: Sistema de información misional - SIM | O178: Positiva | P178: No | Q178: En el análisis del indicador se presentará el resultado desagregado por programa y por actividad. | R178: 2019 | S178: Marzo | T178: 4453 | U178: 4465 | V178: 0.99731243 | W178: 1.028157144 | X178: Aceptable | Y178: Este indicador se venia reportando con frecuencia mensual, a partir del mes de abril se reportara trimestralmente.
A179: Satisfacer las necesidades de los usuarios a través de la prestación de servicios eficientes, eficaces y efectivos | B179: Fomento al Deporte | C179: Desarrollar e implementar programas deportivos y de actividad física, para contribuir con el mejoramiento de la calidad de vida en la población de Bogotá D.C. | D179: Satisfacción del usuario con las actividades deportivas realizadas | G179: Satisfacción de los usuarios con las actividades realizadas en los programas deportivos | H179: (No. de usuarios satisfechos con las actividades deportivas realizadas/Total de usuarios de actividades deportivas encuestados)*100 | I179: Gestión | J179: Efectividad | K179: Anual | L179: 1 | M179: Porcentaje | N179: Encuesta de satisfacción sobre actividades/programas deportivos | O179: Positiva | P179: No | Q179: En el análisis del indicador se presentará el resultado desagregado por programa y por cada uno de los aspectos evaluados en la encuesta de satisfacción. Se colocó una meta de 100%, mientras se levanta la línea base con la primera medición. | R179: 2019 | S179: Marzo
A180: Mejorar continuamente los procesos del Sistema Integrado de Gestión | B180: Fomento al Deporte | C180: Desarrollar e implementar programas deportivos y de actividad física, para contribuir con el mejoramiento de la calidad de vida en la población de Bogotá D.C. | D180: Cambios comportamentales como resultados de los programas deportivos y de actividad física | G180: Cambio comportamental frente a la actividad física y el deporte | H180: (No. de beneficiarios con percepción de cambio comportamental alrededor de las 4 dimensiones de la alfabetización física/Total de beneficiarios de programas deportivos y de actividad física seleccionados en la muestra)*100 | I180: Gestión | J180: Efectividad | K180: Anual | L180: 1 | M180: Porcentaje | N180: Encuesta para medir las 4 dimensiones de la alfabetización física | O180: Positiva | P180: No | Q180: La metodología se aplicará sobre una muestra por cada por cada programa. Se define en 4 tipos de mediciones: 1. Medición dimensión competencia física. Aplicar test de resistencia, fuerza de torso, habilidades y flexibilidad. 2. Medición dimensiones: competencia cognitiva, comportamental y motivacional a través de un cuestionario (on-line o presencial). Se colocó una meta de 100%, mientras se levanta la línea base con la primera medición. | R180: 2019 | S180: Marzo
A181: Satisfacer las necesidades de los usuarios a través de la prestación de servicios eficientes, eficaces y efectivos | B181: Servicio a la Ciudadanía | C181: Brindar información y atender los requerimientos de los grupos de valor y de interés de la entidad para responder a sus necesidades en cumplimiento de sus derechos | D181: Oportunidad y calidad en la respuesta a los requerimientos de los grupos de valor e interés de la entidad | E181: Satisfacción del ciudadano frente a las respuestas a sus requerimientos | G181: Satisfacción de peticionarios con la respuesta dada a sus requerimientos | H181: (No. de peticionarios satisfechos con la respuesta dada a sus peticiones, quejas, reclamos y sugerencias/Total de peticionarios contactados)*100 | I181: Gestión | J181: Efectividad | K181: Mensual | L181: 0.8 | M181: Porcentaje | N181: Base de datos de gestión de PQRS | O181: Positiva | P181: No | R181: 2019 | S181: Marzo | T181: 22 | U181: 26 | V181: 0.8461538462 | W181: 1.057692308 | X181: Aceptable
A182: Mejorar continuamente los procesos del Sistema Integrado de Gestión | B182: Gestión de Recursos Físicos | C182: Administrar y controlar los bienes muebles y servicios para el funcionamiento administrativo de la entidad | D182: Oportunidad en la atención de requerimientos y necesidades de servicios administrativos | G182: Porcentaje de requerimientos de mantenimiento correctivo atendidos en la sede administrativa dentro de los tiempos establecidos | H182: (No. de requerimientos de mantenimiento correctivo atendidos dentro de los tiempos establecidos/Total de requerimientos de mantenimiento correctivo reportados en la sede administrativa)*100 | I182: Gestión | J182: Calidad | K182: Trimestral | L182: 0.95 | M182: Porcentaje | N182: Aplicativo mesa de ayuda OTRS | O182: Positiva | P182: No | R182: 2019 | S182: Marzo | T182: 84 | U182: 84 | V182: 1 | W182: 1.052631579 | X182: Aceptable
A183: Mejorar continuamente los procesos del Sistema Integrado de Gestión | B183: Adquisición de Bienes y Servicios | C183: Realizar actividades contractuales para adquirir bienes y servicios con la oportunidad y de acuerdo con las especificaciones establecidas por la entidad | D183: Cumplimiento de requisitos de acuerdo con la modalidad de selección | G183: Porcentaje de procesos de selección publicados dentro del tiempo establecido | H183: (No. de actos de apertura de procesos de selección publicados en un tiempo menor o igual a 30 días hábiles después de la radicación/Total de actos de apertura expedidos)*100 | I183: Gestión | J183: Calidad | K183: Trimestral | L183: 0.9 | M183: Porcentaje | N183: Plataforma ORFEO y SECOP | O183: Positiva | P183: No | Q183: En el análisis del indicador se presentará el resultado desagregado para licitación pública, concurso de méritos y selección abreviada. | R183: 2019 | S183: Marzo | T183: N.R | U183: N.R
A184: Mejorar continuamente los procesos del Sistema Integrado de Gestión | B184: Adquisición de Bienes y Servicios | C184: Realizar actividades contractuales para adquirir bienes y servicios con la oportunidad y de acuerdo con las especificaciones establecidas por la entidad | D184: Oportunidad en la suscripción y legalización del contrato | G184: Porcentaje de contratos legalizados dentro del tiempo establecido | H184: (No. de contratos legalizados en un tiempo menor o igual a 10 días hábiles a partir del acto administrativo de adjudicación/Total de procesos de selección adjudicados)*100 | I184: Gestión | J184: Calidad | K184: Mensual | L184: 0.8 | M184: Porcentaje | N184: SECOP y Plataforma ORFEO | O184: Positiva | P184: No | Q184: En el análisis del indicador se presentará el resultado desagregado para licitación pública, concurso de méritos y selección abreviada. | R184: 2019 | S184: Marzo
A185: Mejorar continuamente los procesos del Sistema Integrado de Gestión | B185: Adquisición de Bienes y Servicios | C185: Realizar actividades contractuales para adquirir bienes y servicios con la oportunidad y de acuerdo con las especificaciones establecidas por la entidad | D185: Definición clara y precisa de requisitos técnicos, financieros, económicos, jurídicos y de riesgos de acuerdo con el bien o servicio a adquirir | G185: Porcentaje de procesos de obra tramitados en análisis de costos dentro del tiempo establecido | H185: (No. de procesos de obra (todas las Subdirecciones) tramitados en oportunidad al recibo del memorando con la solicitud estudio del sector (20 días)/Total de procesos de obra recibidos)*100 | I185: Gestión | J185: Calidad | K185: Trimestral | L185: 1 | M185: Porcentaje | N185: Matriz de tráfico ACEE | O185: Positiva | P185: No | R185: 2019 | S185: Marzo | T185: 14 | U185: 14 | V185: 1 | W185: 1 | X185: Aceptable
A186: Mejorar continuamente los procesos del Sistema Integrado de Gestión | B186: Adquisición de Bienes y Servicios | C186: Realizar actividades contractuales para adquirir bienes y servicios con la oportunidad y de acuerdo con las especificaciones establecidas por la entidad | D186: Definición clara y precisa de requisitos técnicos, financieros, económicos, jurídicos y de riesgos de acuerdo con el bien o servicio a adquirir | G186: Porcentaje de procesos diferentes a obra tramitados en análisis de costos dentro del tiempo establecido | H186: (No. de procesos diferentes a obra tramitados en oportunidad al recibo del memorando con la solicitud estudio del sector (10 días hábiles)/Total de procesos recibidos diferentes a obra)*100 | I186: Gestión | J186: Calidad | K186: Trimestral | L186: 0.9 | M186: Porcentaje | N186: Matriz de tráfico ACEE | O186: Positiva | P186: No | Q186: En el análisis del indicador se presentará el resultado desagregado para procesos diferentes a obra. | R186: 2019 | S186: Marzo | T186: 71 | U186: 72 | V186: 0.9861111111 | W186: 1.095679012 | X186: Aceptable
A187: Mejorar continuamente los procesos del Sistema Integrado de Gestión | B187: Adquisición de Bienes y Servicios | C187: Realizar actividades contractuales para adquirir bienes y servicios con la oportunidad y de acuerdo con las especificaciones establecidas por la entidad | D187: Definición clara y precisa de requisitos técnicos, financieros, económicos, jurídicos y de riesgos de acuerdo con el bien o servicio a adquirir | G187: Porcentaje de procesos requeridos por precios artificialmente bajos | H187: (No. de procesos (excepto Subastas SAS) requeridos por precios artificialmente bajos/Total de procesos evaluados)*100 | I187: Gestión | J187: Calidad | K187: Trimestral | L187: 0.15 | M187: Porcentaje | N187: Evaluación económica de los proponentes Análisis de precios realizado por la ACEE | O187: Negativa | P187: No | Q187: En el análisis del indicador se presentará el resultado desagregado por tipo de proceso. | R187: 2019 | S187: Marzo | T187: 1 | U187: 6 | V187: 0.1666666667 | W187: =((L187-V187)+L187)/L187 -> 0.8888888889 | X187: Tolerable
A188: Mejorar continuamente los procesos del Sistema Integrado de Gestión | B188: Control, Evaluación y Seguimiento | C188: Evaluar los controles y la gestión de la entidad con el fin de identificar e implementar acciones de mejora, en pro de la sostenibilidad del Sistema de Control Interno | D188: Pertinencia y oportunidad en la entrega de los resultados del seguimiento a las partes interesadas | G188: Porcentaje de acciones de mejoramiento interno con seguimiento efectuado | H188: (No. de acciones de mejoramiento interno con seguimiento efectuado)/Total de acciones de mejoramiento interno abiertas de auditorías internas de control interno)*100 | I188: Gestión | J188: Eficacia | K188: Trimestral | L188: 1 | M188: Porcentaje | N188: Plataforma Isolución | O188: Positiva | P188: No | Q188: En el análisis del indicador se presentará el resultado desagregado por proceso. | R188: 2019 | S188: Marzo | T188: 22 | U188: 28 | V188: 0.7857142857 | W188: =+V188/L188 -> 0.7857142857 | X188: Tolerable
A189: Mejorar continuamente los procesos del Sistema Integrado de Gestión | B189: Control, Evaluación y Seguimiento | C189: Evaluar los controles y la gestión de la entidad con el fin de identificar e implementar acciones de mejora, en pro de la sostenibilidad del Sistema de Control Interno | D189: Pertinencia y oportunidad en la entrega de los resultados del seguimiento a las partes interesadas | G189: Porcentaje de acciones de mejoramiento externo con seguimiento efectuado | H189: (No. de acciones de mejoramiento externo con seguimiento efectuado)/Total de acciones de mejoramiento externo abiertas de auditorías externas)*100 | I189: Gestión | J189: Eficacia | K189: Trimestral | L189: 1 | M189: Porcentaje | N189: Matrices de consolidación del estado de las acciones de los diferentes entes de control y vigilancia | O189: Positiva | P189: No | Q189: En el análisis del indicador se presentará el resultado desagregado por auditoría externa. | R189: 2019 | S189: Marzo | T189: 218 | U189: 218 | V189: 1 | W189: 1 | X189: Aceptable
A190: Mejorar continuamente los procesos del Sistema Integrado de Gestión | B190: Gestión Financiera | C190: Administrar los recursos financieros asignados y realizar los respectivos registros, para el cumplimiento de las funciones de la entidad y pago de sus obligaciones con terceros | D190: Oportunidad en la expedición de los certificados presupuestales y en la presentación de los informes de ejecución | G190: Porcentaje de ejecución presupuestal en gastos de funcionamiento | H190: (Presupuesto de funcionamiento ejecutado/Presupuesto disponible de funcionamiento)*100 | I190: Gestión | J190: Eficiencia | K190: Mensual | L190: 0.95 | M190: Porcentaje | N190: Ejecución presupuestal en SEVEN | O190: Positiva | P190: Si | Q190: La meta es anual con medición y análisis mensual. La medición está a cargo del Área Financiera y el análisis a cargo de la Subdirección Administrativa y Financiera. La medición y el análisis se deben realizar a más tardar el quinto día hábil de cada mes. Una vez se realice el Comité Financiero, el Área Financiera debe enviar a la Oficina Asesora de Planeación la presentación correspondiente, con el análisis respectivo en cuanto al desempeño del indicador. | R190: 2019 | S190: Marzo
A191: Mejorar continuamente los procesos del Sistema Integrado de Gestión | B191: Gestión Financiera | C191: Administrar los recursos financieros asignados y realizar los respectivos registros, para el cumplimiento de las funciones de la entidad y pago de sus obligaciones con terceros | D191: Oportunidad en la expedición de los certificados presupuestales y en la presentación de los informes de ejecución | E191: Oportunidad en la autorización de giro de los recursos de transferencia | G191: Porcentaje de ejecución presupuestal en gastos de inversión | H191: (Presupuesto de inversión ejecutado/Presupuesto disponible de inversión)*100 | I191: Gestión | J191: Eficiencia | K191: Mensual | L191: 1 | M191: Porcentaje | N191: Ejecución presupuestal en SEVEN | O191: Positiva | P191: Si | Q191: La meta es anual con medición y análisis mensual. La medición está a cargo del Área Financiera y el análisis a cargo de los Ordenadores del Gasto. La medición y el análisis se deben realizar a más tardar el quinto día hábil de cada mes. Una vez se realice el Comité Financiero, el Área Financiera debe enviar a la Oficina Asesora de Planeación la presentación correspondiente, con el análisis respectivo en cuanto al desempeño del indicador. | R191: 2019 | S191: Marzo
A192: Mejorar continuamente los procesos del Sistema Integrado de Gestión | B192: Gestión Financiera | C192: Administrar los recursos financieros asignados y realizar los respectivos registros, para el cumplimiento de las funciones de la entidad y pago de sus obligaciones con terceros | D192: Oportunidad en el pago de las obligaciones financieras de la entidad | G192: Porcentaje de ejecución del programa anual de caja | H192: (Recursos ejecutados de reserva, vigencia y pasivos exigibles/Recursos programados de reserva, vigencia y pasivos exigibles)*100 | I192: Gestión | J192: Eficiencia | K192: Mensual | L192: 1 | M192: Porcentaje | N192: Sistema de información SEVEN | O192: Positiva | P192: Si | Q192: La meta es anual con medición y análisis mensual. La medición está a cargo del Área Financiera y el análisis a cargo de los Ordenadores del Gasto. La medición y el análisis se deben realizar a más tardar el quinto día hábil de cada mes. Una vez se realice el Comité Financiero, el Área Financiera debe enviar a la Oficina Asesora de Planeación la presentación correspondiente, con el análisis respectivo en cuanto al desempeño del indicador. | R192: 2019 | S192: Marzo
A193: Mejorar continuamente los procesos del Sistema Integrado de Gestión | B193: Gestión Financiera | C193: Administrar los recursos financieros asignados y realizar los respectivos registros, para el cumplimiento de las funciones de la entidad y pago de sus obligaciones con terceros | D193: Oportunidad en el pago de las obligaciones financieras de la entidad | E193: Oportunidad en la causación de ordenes de pago que cumplan con todos los requisitos establecidos | F193: Oportunidad y veracidad de la información necesaria para la causación de las ordenes de pago reportada por los ordenadores del gasto | G193: Porcentaje de cuentas individuales pagadas dentro del tiempo establecido | H193: (No. de cuentas individuales pagadas en un tiempo menor o igual a 6 días/Total de cuentas de pago individuales tramitadas)*100 | I193: Gestión | J193: Calidad | K193: Mensual | L193: 1 | M193: Porcentaje | N193: Bitácora de cuentas en SEVEN | O193: Positiva | P193: No | Q193: La medición y el análisis están a cargo del Área Financiera. En el análisis del indicador se presentará el resultado del tiempo promedio en cada una de las etapas para el pago, según la bitácora de cuentas de SEVEN. | R193: 2019 | S193: Marzo | T193: 179 | U193: 180 | V193: =+T193/U193 -> 0.9944444444 | W193: 0.9944444444 | X193: =_xlfn.IFS(W193<=69%,"Crítico",W193>=90%,"Aceptable",W193>=70%,"Tolerable") -> Aceptable
A194: Mejorar continuamente los procesos del Sistema Integrado de Gestión | B194: Gestión Financiera | C194: Administrar los recursos financieros asignados y realizar los respectivos registros, para el cumplimiento de las funciones de la entidad y pago de sus obligaciones con terceros | D194: Oportunidad en el pago de las obligaciones financieras de la entidad | E194: Oportunidad en la causación de ordenes de pago que cumplan con todos los requisitos establecidos | F194: Oportunidad y veracidad de la información necesaria para la causación de las ordenes de pago reportada por los ordenadores del gasto | G194: Porcentaje de cuentas colectivas pagadas dentro del tiempo establecido | H194: (No. de cuentas colectivas pagadas en un tiempo menor o igual a 10 días/Total de cuentas de pago colectivas tramitadas)*100 | I194: Gestión | J194: Calidad | K194: Mensual | L194: 1 | M194: Porcentaje | N194: Bitácora de cuentas en SEVEN | O194: Positiva | P194: No | Q194: La medición y el análisis están a cargo del Área Financiera. En el análisis del indicador se debe presentar el resultado del tiempo promedio en cada una de las etapas para el pago, según la bitácora de cuentas de SEVEN. | R194: 2019 | S194: Marzo | T194: 78 | U194: 78 | V194: 1 | W194: 1 | X194: =_xlfn.IFS(W194<=69%,"Crítico",W194>=90%,"Aceptable",W194>=70%,"Tolerable") -> Aceptable
A195: Implementar las políticas y líneas de acción para la preservación e integridad de la documentación | B195: Gestión Documental | C195: Administrar, conservar y custodiar la documentación generada en la entidad, desde su origen hasta su disposición final, para preservar la memoria institucional | D195: Actualización del inventario documental en el Formato Único de Inventario Documental, con base en la aplicación de las tablas de retención documental | E195: Cumplimiento de los tiempos de retención documental establecidos en las tablas | F195: Actualización de los instrumentos archivísticos | G195: Porcentaje de inventario validado del fondo documental acumulado del archivo central | H195: (No. de metros lineales de inventario validado en cuanto a series, subseries, asuntos y oficinas productoras/Total de metros lineales de archivo inventariado en estado natural del archivo central)*100 | I195: Gestión | J195: Eficacia | K195: Mensual | L195: 1 | M195: Porcentaje | N195: Matriz de seguimiento a inventario documental | O195: Positiva | P195: Si | Q195: La meta es anual con medición y análisis mensual | R195: 2019 | S195: Marzo
A196: Implementar las políticas y líneas de acción para la preservación e integridad de la documentación | B196: Gestión Documental | C196: Administrar, conservar y custodiar la documentación generada en la entidad, desde su origen hasta su disposición final, para preservar la memoria institucional | D196: Oportunidad en las transferencias documentales de acuerdo con los tiempos de retención establecidos en las tablas | G196: Porcentaje de transferencias primarias realizadas de acuerdo con los tiempos de retención | H196: (No. de transferencias primarias realizadas de acuerdo con los tiempos de retención establecidos en las TRD/Total de transferencias documentales programadas)*100 | I196: Gestión | J196: Eficacia | K196: Mensual | L196: 0.8 | M196: Porcentaje | N196: Matriz de seguimiento a transferencias documentales | O196: Positiva | P196: Si | Q196: La meta es anual con medición y análisis mensual | R196: 2019 | S196: Marzo
A197: Implementar las políticas y líneas de acción para la preservación e integridad de la documentación | B197: Gestión Documental | C197: Administrar, conservar y custodiar la documentación generada en la entidad, desde su origen hasta su disposición final, para preservar la memoria institucional | D197: Cumplimiento de los estándares de temperatura, humedad relativa y luminosidad de los espacios de almacenamiento de material documental, dentro de los rangos establecidos en la normatividad vigente | G197: Porcentaje de espacios controlados para la conservación documental | H197: (No. de espacios monitoreados e intervenidos/Total de espacios monitoreados)*100 | I197: Gestión | J197: Eficacia | K197: Mensual | L197: 1 | M197: Porcentaje | N197: Informe de monitoreo de espacios controlados | O197: Positiva | P197: No | Q197: La medición es mes vencido | R197: 2019 | S197: Marzo
A198: Mejorar continuamente los procesos del Sistema Integrado de Gestión | B198: Servicio a la Ciudadanía | C198: Brindar información y atender los requerimientos de los grupos de valor y de interés de la entidad para responder a sus necesidades en cumplimiento de sus derechos | D198: Oportunidad y calidad en la respuesta a los requerimientos de los grupos de valor e interés de la entidad | G198: Porcentaje de peticiones, quejas, reclamos y sugerencias contestadas dentro de los términos legales vigentes | H198: (No. de peticiones, quejas, reclamos y sugerencias contestadas en el aplicativo SDQS dentro de los términos legales vigentes/Total de peticiones, quejas, reclamos y sugerencias recibidas)*100 | I198: Gestión | J198: Calidad | K198: Mensual | L198: 1 | M198: Porcentaje | N198: Sistema SDQS | O198: Positiva | P198: No | Q198: La medición es mes vencido | R198: 2019 | S198: Marzo | T198: 242 | U198: 263 | V198: 0.9201520913 | W198: 0.9201520913 | X198: =_xlfn.IFS(W198<=69%,"Crítico",W198>=90%,"Aceptable",W198>=70%,"Tolerable") -> Aceptable
A199: Satisfacer las necesidades de los usuarios a través de la prestación de servicios eficientes, eficaces y efectivos | B199: Servicio a la Ciudadanía | C199: Brindar información y atender los requerimientos de los grupos de valor y de interés de la entidad para responder a sus necesidades en cumplimiento de sus derechos | D199: Satisfacción del ciudadano frente a la atención brindada por la entidad | G199: Satisfacción del ciudadano con la atención recibida en los SUPERCADE | H199: (No. de ciudadanos satisfechos con la atención recibida en los SUPERCADE/Total de ciudadanos atendidos en los SUPERCADE)*100 | I199: Gestión | J199: Efectividad | K199: Mensual | L199: 0.95 | M199: Porcentaje | N199: Encuesta de satisfacción con la atención brindada en SUPERCADES | O199: Positiva | P199: No | R199: 2019 | S199: Marzo | T199: 1861 | U199: 1863 | V199: 0.9989264627 | W199: 1.05150154 | X199: Aceptable
A200: Mejorar continuamente los procesos del Sistema Integrado de Gestión | B200: Servicio a la Ciudadanía | C200: Brindar información y atender los requerimientos de los grupos de valor y de interés de la entidad para responder a sus necesidades en cumplimiento de sus derechos | D200: Oportunidad en la actualización de la información publicada en la sección de ley de transparencia en la página web de la entidad | G200: Porcentaje de información actualizada en ley de transparencia | H200: (No. de subcategorías con información actualizada en la página web/Total de subcategorías definidas en ley de transparencia)*100 | I200: Gestión | J200: Eficacia | K200: Trimestral | L200: 1 | M200: Porcentaje | N200: Página web | O200: Positiva | P200: No | R200: 2019 | S200: Marzo
... 785 more rows
